{"text_format":"1","workbook":"xlsx","n_sheets":6,"sheets":["SAPBEXqueriesDefunct","SAPBEXfiltersDefunct","BExRepositorySheet","Summary","Breakdown","Query"],"not_rendered":{"charts":0,"images":4,"macros":1,"external_links":1,"defined_names":150,"comments":0,"pivot_tables":0},"unopened":[],"bounds":{"document_bytes":16777216,"sheet_cells":100000,"rows_first":2000,"rows_last":500,"rows_between":2000,"halvings":0,"cell_chars":16384,"cell_head_chars":4096},"cells_cut":0,"cells_raw":0,"read":"whole","date_system":"1900"}

{"sheet":"SAPBEXqueriesDefunct","index":0,"n_rows":2775,"n_cols":233,"rows_kept":281,"cut":true,"hidden":true,"merged":[],"bounds":{"rows_first":125,"rows_last":31,"rows_between":125,"halvings":4}}
[9]
[8,null,null,null,null,null,null,null,null,null,null,null,null,null,null,null,null,null,null,null,null,null,null,null,null,null,null,null,null,null,72,null,null,null,null,null,null,null,null,null,null,null,null,null,null,null,null,null,null,null,null,null,null,null,null,null,null,null,null,null,null,null,null,null,null,null,null,null,null,null,null,null,null,null,null,null,null,null,null,null,null,null,null,null,null,null,null,null,null,null,340,null,null,null,null,null,null,null,null,null,null,null,null,null,null,null,null,null,null,null,208,null,null,null,null,null,null,null,null,null,null,null,null,null,null,null,null,null,null,null,2772,null,null,null,null,null,null,null,null,null,null,null,null,null,null,null,null,null,null,null,0,null,null,null,null,null,null,null,null,null,null,null,null,null,null,null,null,null,null,null,null,null,null,null,null,null,null,null,null,null,33,null,null,null,null,null,null,null,null,null,null,null,null,null,null,null,null,null,null,null,null,null,null,null,null,null,null,null,null,null,null,null,null,null,null,null,null,null,null,null,null,null,null,null,null,null,null,null,null,null,248]
[24,null,null,null,null,null,null,null,null,null,null,null,null,null,null,null,null,null,null,null,null,null,null,null,null,null,null,null,null,null,59,null,null,null,null,null,null,null,null,null,null,null,null,null,null,null,null,null,null,null,null,null,null,null,null,null,null,null,null,null,null,null,null,null,null,null,null,null,null,null,null,null,null,null,null,null,null,null,null,null,null,null,null,null,null,null,null,null,null,null,13,null,null,null,null,null,null,null,null,null,null,null,null,null,null,null,null,null,null,null,14,null,null,null,null,null,null,null,null,null,null,null,null,null,null,null,null,null,null,null,13,null,null,null,null,null,null,null,null,null,null,null,null,null,null,null,null,null,null,null,11,null,null,null,null,null,null,null,null,null,null,null,null,null,null,null,null,null,null,null,null,null,null,null,null,null,null,null,null,null,21,null,null,null,null,null,null,null,null,null,null,null,null,null,null,null,null,null,null,null,null,null,null,null,null,null,null,null,null,null,null,null,null,null,null,null,null,null,null,null,null,null,null,null,null,null,null,null,null,null,2]
[null,473,"DA5OMQDWOYLZ8U06FXZFKE589",true,true,"SAPBEXq0009",2,2,false,null,null,true,false,null,true,false,0,null,5,true,true,null,null,false,false,false,null,null,null,null,11,"0PAYRL_AREA","Payroll Area","X","","","0001","","","","","","","","0","03","","","","00000000","K","0PAYRL_AREA","A","","","H","","","","","","00000000","0000","","0","","","","","1","1","1","0","0","","","","","","DA5P73R937MDPOMR9UVV6LY49","","","","","","","0000","","","",11,"D4O2P4A3SH8H6WZIVSYIIRP4P","D4O2P4A3SHBJXEAK5YOYSHA7T","Teacher F/T","0001","","S","","L","","","","","",null,null,null,null,null,null,11,"0ORGUNIT","0BBPPURGRPX","Ind.Purchasing Group","0000","X","2","0","0","","","","","0000","",null,null,null,null,null,11,"D4O2P4A3SHBJXEAK5YOYSHA7T","DA5ON71OOUINO9L4702WMZG1L","","","","","","00","X","0","0","","",null,null,null,null,null,null,null,null,null,null,null,null,null,null,null,null,null,null,null,null,null,null,null,null,null,null,null,null,null,null,null,null,null,null,null,null,11,"ZS_DT_1","1","P","I","EQ","20150930","30/09/2015","","","","0","","0","","0","Target date 1","60","","","ZEMP_STRT","20150930",null,null,null,null,null,null,null,null,null,null,null,null,null,null,null,null,null,null,null,null,null,null,null,null,null,null,null,null,11,"0000000107","DA5P73R937G88Q0OPJEYN6RY1"]
[null,469,"DA5OMQDWOYLZ8U06FXZFKE589",true,true,"SAPBEXq0011",2,2,false,null,null,true,false,null,true,false,0,null,5,true,true,null,null,false,false,false,null,null,null,null,11,"ZPERSAREA","ZPersonal Area","X","","","0002","","","","","","","","2","03","","","","00000000","K","ZPERSAREA","A","","","H","","","","","","00000000","0000","","0","","","","","1","1","1","0","0","","","","","","DA5P73R937N5EAYILEBH91CE1","","","","","","","0000","","","",11,"DA5ON71OOUHVZN9CVGNAKK1RT","DA5ON71OOUINO9L4702WMZG1L","Buddhist","0001","","S","","L","X","","","","",null,null,null,null,null,null,11,"0ORGUNIT","0BBPPURORGX","Ind. Purchasing Org.","0000","X","2","0","0","","","","","0000","",null,null,null,null,null,11,"D4O2P4A3SHBJXEAK5YOYSHA7T","DA5ON71OOUJFCVWVIJIIPEUBD","","","","","","00","X","0","0","","",null,null,null,null,null,null,null,null,null,null,null,null,null,null,null,null,null,null,null,null,null,null,null,null,null,null,null,null,null,null,null,null,null,null,null,null,11,"ZS_PSAR2","1","P","","","","","","","","0","","0","","0","Pers. Sub-Area - optional","60","","","0PERS_SAREA","",null,null,null,null,null,null,null,null,null,null,null,null,null,null,null,null,null,null,null,null,null,null,null,null,null,null,null,null,11,"0000000100","X"]
[null,465,"DA5OMQDWOYLZ8U06FXZFKE589",true,true,"SAPBEXq0012",2,2,false,null,null,true,false,null,true,false,0,null,5,true,true,null,null,false,false,false,null,null,null,null,11,"0ORGUNIT","Organizational Unit","X","","","0003","","","","","","","","1","03","X","ORGEH","000","20150930","K","0ORGUNIT","A","","","H","0ORGUNIT","A","","","","00000000","0000","","0","","","","2","1","1","1","0","0","","","","","","DA5P73R937NX2XA9WXR3BGQNT","","","","","","","0000","","","",11,"DA5ON71OOUHVZN9CVGNAKK1RT","DA5ON71OOUJFCVWVIJIIPEUBD","Church of Scotland","0002","","S","","L","X","","","","",null,null,null,null,null,null,11,"0ORGUNIT","0BBP_BUYID","Buyer ID","0000","X","5","0","0","","","","","0000","",null,null,null,null,null,11,"D4O2P4A3SHBJXEAK5YOYSHA7T","DA5ON71OOUK71I8MU2Y4RU8L5","","","","","","00","X","0","0","","",null,null,null,null,null,null,null,null,null,null,null,null,null,null,null,null,null,null,null,null,null,null,null,null,null,null,null,null,null,null,null,null,null,null,null,null,11,"ZP_ORGUN","2","M","","","","","","","","0","","0","","0","Org Unit Hierarchy (Selection option, optional)","60","","","0ORGUNIT","",null,null,null,null,null,null,null,null,null,null,null,null,null,null,null,null,null,null,null,null,null,null,null,null,null,null,null,null,11,"0000000101",""]
[null,461,"DA5OMQDWOYLZ8U06FXZFKE589",true,true,"SAPBEXq0013",2,2,false,null,null,true,false,null,true,false,0,null,5,true,true,null,null,false,false,false,null,null,null,null,11,"0PERS_SAREA","Personnel Subarea","X","","","0004","","","","","","","U","1","03","","","","00000000","K","0PERS_SAREA","A","","","H","","","","","","00000000","0000","","0","","","","","1","1","1","0","0","","","","","","DA5P73R937OORJM18H6PDW4XL","","","","","","","0000","","","",11,"D4O2P4A3SH8H6WZIVSYIIRP4P","DEN9FTLAHPZM13J0WXXO1VFND","Teacher P/T","0002","","S","","L","","","","","",null,null,null,null,null,null,11,"0ORGUNIT","0BBP_ISCOMP","Organizational Unit is Company","0000","X","1","0","0","","","","","0000","",null,null,null,null,null,11,"D4O2P4A3SHBJXEAK5YOYSHA7T","DA5ON71OOUKYQ4KE5MDQU9MUX","","","","","","00","X","0","0","","",null,null,null,null,null,null,null,null,null,null,null,null,null,null,null,null,null,null,null,null,null,null,null,null,null,null,null,null,null,null,null,null,null,null,null,null,11,"ZBUDH","1","P","I","EQ","20150930","30/09/2015","","","","0","","0","","0","Master Data Key Date","60","","","0DATE","20150930",null,null,null,null,null,null,null,null,null,null,null,null,null,null,null,null,null,null,null,null,null,null,null,null,null,null,null,null,11,"0000000104","1"]
[null,457,"DA5OMQDWOYLZ8U06FXZFKE589",true,true,"SAPBEXq0014",2,2,false,null,null,true,false,null,true,false,0,null,5,true,true,null,null,false,false,false,null,null,null,null,11,"ZTEILK","Checkbox for Part-Ti","X","","","0005","","","","","","","","1","03","","","","00000000","K","ZTEILK","A","","","H","","","","","","00000000","0000","","0","","","","","1","1","1","0","0","","","","","","DA5P73R937PGG5XSK0MBGBJ7D","","","","","","","0000","","","",11,"DA5ON71OOUHVZN9CVGNAKK1RT","DA5ON71OOUK71I8MU2Y4RU8L5","Hindu","0003","","S","","L","X","","","","",null,null,null,null,null,null,11,"0ORGUNIT","0BUS_AREA","Business area","0000","X","0","0","0","","","","","0000","",null,null,null,null,null,11,"D4O2P4A3SHBJXEAK5YOYSHA7T","DA5ON71OOULQEQW5H5TCWP14P","","","","","","00","X","0","0","","",null,null,null,null,null,null,null,null,null,null,null,null,null,null,null,null,null,null,null,null,null,null,null,null,null,null,null,null,null,null,null,null,null,null,null,null,11,"ZZPERAR","1","M","","","","","","","","0","","0","","0","ZPersonnel Area","60","","","ZPERSAREA","",null,null,null,null,null,null,null,null,null,null,null,null,null,null,null,null,null,null,null,null,null,null,null,null,null,null,null,null,11,"0000000103",""]
[null,453,"DA5OMQDWOYLZ8U06FXZFKE589",true,true,"SAPBEXq0015",2,2,false,null,null,true,false,null,true,false,0,null,5,true,true,null,null,false,false,false,null,null,null,null,11,"ZPRIM_ID","ZPrimary Employee ID","X","","","0006","","","","","","","","2","03","","","","00000000","K","ZPRIM_ID","A","","","H","","","","","","00000000","0000","","0","","","","","1","1","1","0","0","","","","","","DA5P73R937Q84S9JVK1XIQXH5","","","","","","","0000","","","",11,"D4O2P4A3SH8H6WZIVSYIIRP4P","DEN9GQ7MCHA8Y0DFMMJUL514P","Teacher Total","0003","","S","","L","","","","","",null,null,null,null,null,null,11,"0ORGUNIT","0COMP_CODE","Company code","0000","X","0","0","0","","","","","0000","",null,null,null,null,null,11,"D4O2P4A3SHBJXEAK5YOYSHA7T","DA5ON71OOUMI3D7WSP8YZ4FEH","","","","","","00","X","0","0","","",null,null,null,null,null,null,null,null,null,null,null,null,null,null,null,null,null,null,null,null,null,null,null,null,null,null,null,null,null,null,null,null,null,null,null,null,10,"ZS_DT_1","1","P","I","EQ","20150930","30/09/2015","","","","0","","0","","0","Target date 1","60","","","ZEMP_STRT","20150930",null,null,null,null,null,null,null,null,null,null,null,null,null,null,null,null,null,null,null,null,null,null,null,null,null,null,null,null,11,"0000000102","1"]
[null,449,"DA5OMQDWOYLZ8U06FXZFKE589",true,true,"SAPBEXq0016",2,2,false,null,null,true,false,null,true,false,0,null,5,true,true,null,null,false,false,false,null,null,null,null,11,"0CNTRCTTYPE","Contract Type","X","","","0007","","","","","","","","1","03","","","","00000000","K","0CNTRCTTYPE","A","","","H","","","","","","00000000","0000","","0","","","","","1","1","1","0","0","","","","","","DB0Z1ZTZ5UF6JJ9S2J6RTTJP5","","","","","","","0000","","","",11,"DA5ON71OOUHVZN9CVGNAKK1RT","DA5ON71OOUKYQ4KE5MDQU9MUX","Jewish","0004","","S","","L","X","","","","",null,null,null,null,null,null,11,"0ORGUNIT","0CO_MST_AR","Controlling Area of Master Cost Center","0000","X","0","0","0","","","","","0000","",null,null,null,null,null,11,"D4O2P4A3SHBJXEAK5YOYSHA7T","DA5ON71OOUN9RZJO48OL1JTO9","","","","","","00","X","0","0","","",null,null,null,null,null,null,null,null,null,null,null,null,null,null,null,null,null,null,null,null,null,null,null,null,null,null,null,null,null,null,null,null,null,null,null,null,10,"ZP_ORGUN","2","M","","","","","","","","0","","0","","0","Org Unit Hierarchy (Selection option, optional)","60","","","0ORGUNIT","",null,null,null,null,null,null,null,null,null,null,null,null,null,null,null,null,null,null,null,null,null,null,null,null,null,null,null,null,11,"0000000108",""]
[null,445,"DA5P73R937RRI0X2IMX5NLQ0P",true,true,"SAPBEXq0017",2,2,false,null,null,true,false,null,true,false,0,null,5,true,true,null,null,false,false,false,null,null,null,null,11,"DA5ON71OOUHVZN9CVGNAKK1RT","Religion - Rev 2011","","X","X","0001","","","","","","","U","","00","","","","","K","DA5ON71OOUHVZN9CVGNAKK1RT","A","","","","","","","","","00000000","0000","X","0","","","","","0","0","0","0","0","","","","","","DA5ON71OOUHVZN9CVGNAKK1RT","","","","","","","0000","","","",11,"D4O2P4A3SH8H6WZIVSYIIRP4P","D4O2P4A3SHEMNVLLG4FF26VAX","Principal Teacher F/T","0004","","S","","L","","","","","",null,null,null,null,null,null,11,"0ORGUNIT","0CRMSALGRPX","Sls Group: Indicator","0000","X","2","0","0","","","","","0000","",null,null,null,null,null,11,"D4O2P4A3SHBJXEAK5YOYSHA7T","DA5ON71OOUO1GLVFFS473Z7Y1","","","","","","00","X","0","0","","",null,null,null,null,null,null,null,null,null,null,null,null,null,null,null,null,null,null,null,null,null,null,null,null,null,null,null,null,null,null,null,null,null,null,null,null,10,"ZBUDH","1","P","I","EQ","20150930","30/09/2015","","","","0","","0","","0","Master Data Key Date","60","","","0DATE","20150930",null,null,null,null,null,null,null,null,null,null,null,null,null,null,null,null,null,null,null,null,null,null,null,null,null,null,null,null,11,"0000009002","D4O2P4A3SH8H6WZIVSYIIRP4P"]
[null,null,null,null,null,null,null,null,null,null,null,null,null,null,null,null,null,null,null,null,null,null,null,null,null,false,null,null,null,null,11,"D4O2P4A3SH8H6WZIVSYIIRP4P","WP Teachers Bandings","","X","Y","0001","","","","","","","U","","00","","","","","K","D4O2P4A3SH8H6WZIVSYIIRP4P","A","","","","","","","","","00000000","0000","","0","","","","","0","0","0","0","0","","","","","","D4O2P4A3SH8H6WZIVSYIIRP4P","","","","","","","0000","","","",11,"D4O2P4A3SH8H6WZIVSYIIRP4P","DEN9FTLAHQ0DPPUS8HDA4ATX5","Principal Teacher P/T","0005","","S","","L","","","","","",null,null,null,null,null,null,11,"0ORGUNIT","0CRMSALOFFX","Sls Office:Indicator","0000","X","2","0","0","","","","","0000","",null,null,null,null,null,11,"D4O2P4A3SHBJXEAK5YOYSHA7T","DA5ON71OOUOT5876RBJT6EM7T","","","","","","00","X","0","0","","",null,null,null,null,null,null,null,null,null,null,null,null,null,null,null,null,null,null,null,null,null,null,null,null,null,null,null,null,null,null,null,null,null,null,null,null,10,"ZZPERAR","1","M","","","","","","","","0","","0","","0","ZPersonnel Area","60","","","ZPERSAREA","",null,null,null,null,null,null,null,null,null,null,null,null,null,null,null,null,null,null,null,null,null,null,null,null,null,null,null,null,11,"0000009000",""]
[null,null,null,null,null,null,null,null,null,null,null,null,null,null,null,null,null,null,null,null,null,null,null,null,null,false,null,null,null,null,10,"0PAYRL_AREA","Payroll Area","X","","","0001","","","","","","","","0","03","","","","00000000","K","0PAYRL_AREA","A","","","H","","","","","","00000000","0000","","0","","","","","1","1","1","0","0","","","","","","DA5OMQDWOYGLGHPV75Y53EDBT","","","","","","","0000","","","",11,"DA5ON71OOUHVZN9CVGNAKK1RT","DA5ON71OOULQEQW5H5TCWP14P","Muslim","0005","","S","","L","X","","","","",null,null,null,null,null,null,11,"0ORGUNIT","0CRMSALORGX","Sales Org. Indicator","0000","X","2","0","0","","","","","0000","",null,null,null,null,null,11,"D4O2P4A3SHBJXEAK5YOYSHA7T","DA5ON71OOUPKTUIY2UZF8U0HL","","","","","","00","X","0","0","","",null,null,null,null,null,null,null,null,null,null,null,null,null,null,null,null,null,null,null,null,null,null,null,null,null,null,null,null,null,null,null,null,null,null,null,null,9,"ZS_DT_1","1","P","I","EQ","20150930","30/09/2015","","","","0","","0","","0","Target date 1","60","","","ZEMP_STRT","20150930",null,null,null,null,null,null,null,null,null,null,null,null,null,null,null,null,null,null,null,null,null,null,null,null,null,null,null,null,11,"0000000010",""]
[null,null,null,null,null,null,null,null,null,null,null,null,null,null,null,null,null,null,null,null,null,null,null,null,null,false,null,null,null,null,10,"ZPERSAREA","ZPersonal Area","X","","","0002","","Education","","","","","","2","03","","","","00000000","K","ZPERSAREA","A","","","H","","","","","","00000000","0000","","0","","1","","","1","1","1","0","0","","","","","","DA5OMQDWOYHD541MIPDR5TRLL","","","","","","","0000","","","",11,"DA5ON71OOUHVZN9CVGNAKK1RT","DA5ON71OOUMI3D7WSP8YZ4FEH","Other Christian","0006","","S","","L","X","","","","",null,null,null,null,null,null,11,"0ORGUNIT","0CRMSRVTGRP","Ex. CRM Service Org.","0000","X","1","0","0","","","","","0000","",null,null,null,null,null,11,"D4O2P4A3SHBJXEAK5YOYSHA7T","DA5ON71OOUQCIGUPEEF1B9ERD","","","","","","00","X","0","0","","",null,null,null,null,null,null,null,null,null,null,null,null,null,null,null,null,null,null,null,null,null,null,null,null,null,null,null,null,null,null,null,null,null,null,null,null,9,"ZP_ORGUN","2","M","","","","","","","","0","","0","","0","Org Unit Hierarchy (Selection option, optional)","60","","","0ORGUNIT","",null,null,null,null,null,null,null,null,null,null,null,null,null,null,null,null,null,null,null,null,null,null,null,null,null,null,null,null,11,"0000000021",""]
[null,null,null,null,null,null,null,null,null,null,null,null,null,null,null,null,null,null,null,null,null,null,null,null,null,false,null,null,null,null,10,"0ORGUNIT","Organizational Unit","X","","","0003","","","","","","","","1","03","X","ORGEH","000","20150930","K","0ORGUNIT","A","","","H","0ORGUNIT","A","","","","00000000","0000","","0","","","","2","1","1","1","0","0","","","","","","DA5OMQDWOYI4TQDDU8TD895VD","","","","","","","0000","","","",11,"D4O2P4A3SH8H6WZIVSYIIRP4P","DEN9GQ7MCHB0MMP6Y5ZGNKFEH","Principal Teacher Total","0006","","S","","L","","","","","",null,null,null,null,null,null,11,"0ORGUNIT","0CRM_SALGRP","CRM Sales Group","0000","X","1","0","0","","","","","0000","",null,null,null,null,null,11,"D4O2P4A3SHEMNVLLG4FF26VAX","DA5ON71OOUINO9L4702WMZG1L","","","","","","00","X","0","0","","",null,null,null,null,null,null,null,null,null,null,null,null,null,null,null,null,null,null,null,null,null,null,null,null,null,null,null,null,null,null,null,null,null,null,null,null,9,"ZBUDH","1","P","I","EQ","20150930","30/09/2015","","","","0","","0","","0","Master Data Key Date","60","","","0DATE","20150930",null,null,null,null,null,null,null,null,null,null,null,null,null,null,null,null,null,null,null,null,null,null,null,null,null,null,null,null,11,"0000000022",""]
[null,null,null,null,null,null,null,null,null,null,null,null,null,null,null,null,null,null,null,null,null,null,null,null,null,false,null,null,null,null,10,"0PERS_SAREA","Personnel Subarea","X","","","0004","","","","","","","U","1","03","","","","00000000","K","0PERS_SAREA","A","","","H","","","","","","00000000","0000","","0","","","","","1","1","1","0","0","","","","","","DA5OMQDWOYIWICP55S8ZAOK55","","","","","","","0000","","","",11,"DA5ON71OOUHVZN9CVGNAKK1RT","DA5ON71OOUN9RZJO48OL1JTO9","Roman Catholic","0007","","S","","L","X","","","","",null,null,null,null,null,null,11,"0ORGUNIT","0CRM_SALOFF","CRM Sales Office","0000","X","1","0","0","","","","","0000","",null,null,null,null,null,11,"D4O2P4A3SHEMNVLLG4FF26VAX","DA5ON71OOUJFCVWVIJIIPEUBD","","","","","","00","X","0","0","","",null,null,null,null,null,null,null,null,null,null,null,null,null,null,null,null,null,null,null,null,null,null,null,null,null,null,null,null,null,null,null,null,null,null,null,null,9,"ZZPERAR","1","M","","","","","","","","0","","0","","0","ZPersonnel Area","60","","","ZPERSAREA","",null,null,null,null,null,null,null,null,null,null,null,null,null,null,null,null,null,null,null,null,null,null,null,null,null,null,null,null,11,"0000000023",""]
[null,null,null,null,null,null,null,null,null,null,null,null,null,null,null,null,null,null,null,null,null,null,null,null,null,false,null,null,null,null,10,"ZTEILK","Checkbox for Part-Ti","X","","","0005","","","","","","","","1","03","","","","00000000","K","ZTEILK","A","","","H","","","","","","00000000","0000","","0","","","","","1","1","1","0","0","","","","","","DA5OMQDWOYJO6Z0WHBOLD3YEX","","","","","","","0000","","","",11,"D4O2P4A3SH8H6WZIVSYIIRP4P","D4O2P4A3SHHPECWMQA5VBWGE1","AHT/DHT F/T","0007","","S","","L","","","","","",null,null,null,null,null,null,11,"0ORGUNIT","0CRM_SALORG","CRM Sales Org.","0000","X","1","0","0","","","","","0000","",null,null,null,null,null,11,"D4O2P4A3SHEMNVLLG4FF26VAX","DA5ON71OOUK71I8MU2Y4RU8L5","","","","","","00","X","0","0","","",null,null,null,null,null,null,null,null,null,null,null,null,null,null,null,null,null,null,null,null,null,null,null,null,null,null,null,null,null,null,null,null,null,null,null,null,8,"ZS_DT_1","1","P","I","EQ","20150930","30/09/2015","","","","0","","0","","0","Target date 1","60","","","ZEMP_STRT","20150930",null,null,null,null,null,null,null,null,null,null,null,null,null,null,null,null,null,null,null,null,null,null,null,null,null,null,null,null,11,"0000000030",""]
[null,null,null,null,null,null,null,null,null,null,null,null,null,null,null,null,null,null,null,null,null,null,null,null,null,false,null,null,null,null,10,"ZPRIM_ID","ZPrimary Employee ID","X","","","0006","","","","","","","","2","03","","","","00000000","K","ZPRIM_ID","A","","","H","","","","","","00000000","0000","","0","","","","","1","1","1","0","0","","","","","","DA5OMQDWOYKFVLCNSV47FJCOP","","","","","","","0000","","","",11,"D4O2P4A3SH8H6WZIVSYIIRP4P","DEN9FTLAHQ15EC6JK0SW6Q86X","AHT/DHT P/T","0008","","S","","L","","","","","",null,null,null,null,null,null,11,"0ORGUNIT","0CRM_SRVORG","Service Org. CRM","0000","X","1","0","0","","","","","0000","",null,null,null,null,null,11,"D4O2P4A3SHEMNVLLG4FF26VAX","DA5ON71OOUKYQ4KE5MDQU9MUX","","","","","","00","X","0","0","","",null,null,null,null,null,null,null,null,null,null,null,null,null,null,null,null,null,null,null,null,null,null,null,null,null,null,null,null,null,null,null,null,null,null,null,null,8,"ZP_ORGUN","2","M","","","","","","","","0","","0","","0","Org Unit Hierarchy (Selection option, optional)","60","","","0ORGUNIT","",null,null,null,null,null,null,null,null,null,null,null,null,null,null,null,null,null,null,null,null,null,null,null,null,null,null,null,null,11,"0000000040",""]
[null,null,null,null,null,null,null,null,null,null,null,null,null,null,null,null,null,null,null,null,null,null,null,null,null,false,null,null,null,null,10,"0CNTRCTTYPE","Contract Type","X","","","0007","","","","","","","","1","03","","","","00000000","K","0CNTRCTTYPE","A","","","H","","","","","","00000000","0000","","0","","","","","1","1","1","0","0","","","","","","DB0Z0NXRBHRCNXGYD9FB0EOZD","","","","","","","0000","","","",11,"DA5ON71OOUHVZN9CVGNAKK1RT","DA5ON71OOUO1GLVFFS473Z7Y1","Sikh","0008","","S","","L","X","","","","",null,null,null,null,null,null,11,"0ORGUNIT","0LOGSYS","Source System","0000","X","1","0","0","","","","","0000","",null,null,null,null,null,11,"D4O2P4A3SHEMNVLLG4FF26VAX","DA5ON71OOULQEQW5H5TCWP14P","","","","","","00","X","0","0","","",null,null,null,null,null,null,null,null,null,null,null,null,null,null,null,null,null,null,null,null,null,null,null,null,null,null,null,null,null,null,null,null,null,null,null,null,8,"ZBUDH","1","P","I","EQ","20150930","30/09/2015","","","","0","","0","","0","Master Data Key Date","60","","","0DATE","20150930",null,null,null,null,null,null,null,null,null,null,null,null,null,null,null,null,null,null,null,null,null,null,null,null,null,null,null,null,11,"0000000041",""]
[null,null,null,null,null,null,null,null,null,null,null,null,null,null,null,null,null,null,null,null,null,null,null,null,null,false,null,null,null,null,10,"DA5ON71OOUHVZN9CVGNAKK1RT","Religion - Rev 2011","","X","X","0001","","","","","","","U","","00","","","","","K","DA5ON71OOUHVZN9CVGNAKK1RT","A","","","","","","","","","00000000","0000","X","0","","","","","0","0","0","0","0","","","","","","DA5ON71OOUHVZN9CVGNAKK1RT","","","","","","","0000","","","",11,"DA5ON71OOUHVZN9CVGNAKK1RT","DA5ON71OOUOT5876RBJT6EM7T","Another Religion","0009","","S","","L","X","","","","",null,null,null,null,null,null,11,"0ORGUNIT","0MAST_CCTR","Master Cost Center","0000","X","0","0","0","","","","","0000","",null,null,null,null,null,11,"D4O2P4A3SHEMNVLLG4FF26VAX","DA5ON71OOUMI3D7WSP8YZ4FEH","","","","","","00","X","0","0","","",null,null,null,null,null,null,null,null,null,null,null,null,null,null,null,null,null,null,null,null,null,null,null,null,null,null,null,null,null,null,null,null,null,null,null,null,8,"ZZPERAR","1","M","","","","","","","","0","","0","","0","ZPersonnel Area","60","","","ZPERSAREA","",null,null,null,null,null,null,null,null,null,null,null,null,null,null,null,null,null,null,null,null,null,null,null,null,null,null,null,null,11,"0000000042","0"]
[null,null,null,null,null,null,null,null,null,null,null,null,null,null,null,null,null,null,null,null,null,null,null,null,null,null,null,null,null,null,10,"D4O21W1IBUB3HEML1KWP5YGOP","WP Bandings","","X","Y","0001","","","","","","","U","","00","","","","","K","D4O21W1IBUB3HEML1KWP5YGOP","A","","","","","","","","","00000000","0000","","0","","","","","0","0","0","0","0","","","","","","D4O21W1IBUB3HEML1KWP5YGOP","","","","","","","0000","","","",11,"D4O2P4A3SH8H6WZIVSYIIRP4P","DEN9GQ7MCHBSB90Y9PF2PZTO9","AHT/DHT Total","0009","","S","","L","","","","","",null,null,null,null,null,null,11,"0ORGUNIT","0PERS_AREA","Personnel Area","0000","X","1","0","0","","","","","0000","",null,null,null,null,null,11,"D4O2P4A3SHEMNVLLG4FF26VAX","DA5ON71OOUN9RZJO48OL1JTO9","","","","","","00","X","0","0","","",null,null,null,null,null,null,null,null,null,null,null,null,null,null,null,null,null,null,null,null,null,null,null,null,null,null,null,null,null,null,null,null,null,null,null,null,7,"ZS_DT_1","1","P","I","EQ","20150930","30/09/2015","","","","0","","0","","0","Target date 1","60","","","ZEMP_STRT","20150930",null,null,null,null,null,null,null,null,null,null,null,null,null,null,null,null,null,null,null,null,null,null,null,null,null,null,null,null,11,"0000000043","0"]
[null,null,null,null,null,null,null,null,null,null,null,null,null,null,null,null,null,null,null,null,null,null,null,null,null,null,null,null,null,null,9,"0PAYRL_AREA","Payroll Area","X","","","0001","","","","","","","","0","03","","","","00000000","K","0PAYRL_AREA","A","","","H","","","","","","00000000","0000","","0","","","","","1","1","1","0","0","","","","","","DA5OMQDWOYGLGHPV75Y53EDBT","","","","","","","0000","","","",11,"DA5ON71OOUHVZN9CVGNAKK1RT","DA5ON71OOUPKTUIY2UZF8U0HL","None","0010","","S","","L","X","","","","",null,null,null,null,null,null,11,"0ORGUNIT","0PERS_SAREA","Personnel Subarea","0000","X","1","0","0","","","","","0000","",null,null,null,null,null,11,"D4O2P4A3SHEMNVLLG4FF26VAX","DA5ON71OOUO1GLVFFS473Z7Y1","","","","","","00","X","0","0","","",null,null,null,null,null,null,null,null,null,null,null,null,null,null,null,null,null,null,null,null,null,null,null,null,null,null,null,null,null,null,null,null,null,null,null,null,7,"ZP_ORGUN","2","M","","","","","","","","0","","0","","0","Org Unit Hierarchy (Selection option, optional)","60","","","0ORGUNIT","",null,null,null,null,null,null,null,null,null,null,null,null,null,null,null,null,null,null,null,null,null,null,null,null,null,null,null,null,11,"0000000109","0"]
[null,null,null,null,null,null,null,null,null,null,null,null,null,null,null,null,null,null,null,null,null,null,null,null,null,null,null,null,null,null,9,"ZPERSAREA","ZPersonal Area","X","","","0002","","Development and Regeneration","","","","","","2","03","","","","00000000","K","ZPERSAREA","A","","","H","","","","","","00000000","0000","","0","","1","","","1","1","1","0","0","","","","","","DA5OMQDWOYHD541MIPDR5TRLL","","","","","","","0000","","","",11,"D4O2P4A3SH8H6WZIVSYIIRP4P","D4O2P4A3SHKS4U7O0FWBLM1H5","Head Teacher F/T","0010","","S","","L","","","","","",null,null,null,null,null,null,11,"0ORGUNIT","0PLANT","Plant","0000","X","0","0","0","","","","","0000","",null,null,null,null,null,11,"D4O2P4A3SHEMNVLLG4FF26VAX","DA5ON71OOUOT5876RBJT6EM7T","","","","","","00","X","0","0","","",null,null,null,null,null,null,null,null,null,null,null,null,null,null,null,null,null,null,null,null,null,null,null,null,null,null,null,null,null,null,null,null,null,null,null,null,7,"ZBUDH","1","P","I","EQ","20150930","30/09/2015","","","","0","","0","","0","Master Data Key Date","60","","","0DATE","20150930",null,null,null,null,null,null,null,null,null,null,null,null,null,null,null,null,null,null,null,null,null,null,null,null,null,null,null,null,11,"0000000113",""]
[null,null,null,null,null,null,null,null,null,null,null,null,null,null,null,null,null,null,null,null,null,null,null,null,null,null,null,null,null,null,9,"0ORGUNIT","Organizational Unit","X","","","0003","","","","","","","","1","03","X","ORGEH","000","20150930","K","0ORGUNIT","A","","","H","0ORGUNIT","A","","","","00000000","0000","","0","","","","2","1","1","1","0","0","","","","","","DA5OMQDWOYI4TQDDU8TD895VD","","","","","","","0000","","","",11,"DA5ON71OOUHVZN9CVGNAKK1RT","DA5ON71OOUQCIGUPEEF1B9ERD","Non Disclosed","0011","","S","","L","X","","","","",null,null,null,null,null,null,11,"0ORGUNIT","0PURCH_ORG","Purchasing org.","0000","X","0","0","0","","","","","0000","",null,null,null,null,null,11,"D4O2P4A3SHEMNVLLG4FF26VAX","DA5ON71OOUPKTUIY2UZF8U0HL","","","","","","00","X","0","0","","",null,null,null,null,null,null,null,null,null,null,null,null,null,null,null,null,null,null,null,null,null,null,null,null,null,null,null,null,null,null,null,null,null,null,null,null,7,"ZZPERAR","1","M","","","","","","","","0","","0","","0","ZPersonnel Area","60","","","ZPERSAREA","",null,null,null,null,null,null,null,null,null,null,null,null,null,null,null,null,null,null,null,null,null,null,null,null,null,null,null,null,11,"0000000120",""]
[null,null,null,null,null,null,null,null,null,null,null,null,null,null,null,null,null,null,null,null,null,null,null,null,null,null,null,null,null,null,9,"0PERS_SAREA","Personnel Subarea","X","","","0004","","","","","","","U","1","03","","","","00000000","K","0PERS_SAREA","A","","","H","","","","","","00000000","0000","","0","","","","","1","1","1","0","0","","","","","","DA5OMQDWOYIWICP55S8ZAOK55","","","","","","","0000","","","",11,"D4O2P4A3SH8H6WZIVSYIIRP4P","DEN9FTLAHQ1X2YIAVK8I95MGP","Head Teacher P/T","0011","","S","","L","","","","","",null,null,null,null,null,null,11,"0ORGUNIT","0PUR_GROUP","Purchasing group","0000","X","0","0","0","","","","","0000","",null,null,null,null,null,11,"D4O2P4A3SHEMNVLLG4FF26VAX","DA5ON71OOUQCIGUPEEF1B9ERD","","","","","","00","X","0","0","","",null,null,null,null,null,null,null,null,null,null,null,null,null,null,null,null,null,null,null,null,null,null,null,null,null,null,null,null,null,null,null,null,null,null,null,null,6,"ZS_DT_1","1","P","I","EQ","20150930","30/09/2015","","","","0","","0","","0","Target date 1","60","","","ZEMP_STRT","20150930",null,null,null,null,null,null,null,null,null,null,null,null,null,null,null,null,null,null,null,null,null,null,null,null,null,null,null,null,11,"0000000121",""]
[null,null,null,null,null,null,null,null,null,null,null,null,null,null,null,null,null,null,null,null,null,null,null,null,null,null,null,null,null,null,9,"ZTEILK","Checkbox for Part-Ti","X","","","0005","","","","","","","","1","03","","","","00000000","K","ZTEILK","A","","","H","","","","","","00000000","0000","","0","","","","","1","1","1","0","0","","","","","","DA5OMQDWOYJO6Z0WHBOLD3YEX","","","","","","","0000","","","",11,"D4O2P4A3SH8H6WZIVSYIIRP4P","DEN9GQ7MCHCJZVCPL8UOSF7Y1","Head Teacher Total","0012","","S","","L","","","","","",null,null,null,null,null,null,11,"0ORGUNIT","0SALESORG","Sales Organization","0000","X","0","0","0","","","","","0000","",null,null,null,null,null,11,"D4O2P4A3SHHPECWMQA5VBWGE1","DA5ON71OOUINO9L4702WMZG1L","","","","","","00","X","0","0","","",null,null,null,null,null,null,null,null,null,null,null,null,null,null,null,null,null,null,null,null,null,null,null,null,null,null,null,null,null,null,null,null,null,null,null,null,6,"ZP_ORGUN","2","M","","","","","","","","0","","0","","0","Org Unit Hierarchy (Selection option, optional)","60","","","0ORGUNIT","",null,null,null,null,null,null,null,null,null,null,null,null,null,null,null,null,null,null,null,null,null,null,null,null,null,null,null,null,11,"0000010001","DA5P73R937RRI0X2IMX5NLQ0P"]
[null,null,null,null,null,null,null,null,null,null,null,null,null,null,null,null,null,null,null,null,null,null,null,null,null,null,null,null,null,null,9,"ZPRIM_ID","ZPrimary Employee ID","X","","","0006","","","","","","","","2","03","","","","00000000","K","ZPRIM_ID","A","","","H","","","","","","00000000","0000","","0","","","","","1","1","1","0","0","","","","","","DA5OMQDWOYKFVLCNSV47FJCOP","","","","","","","0000","","","",11,"D4O2P4A3SH8H6WZIVSYIIRP4P","D4O2P4A3SHNUVBIPALMRVBMK9","Advisor F/T","0013","","S","","L","","","","","",null,null,null,null,null,null,11,"0ORGUNIT","0SALES_GRP","Sales group","0000","X","0","0","0","","","","","0000","",null,null,null,null,null,11,"D4O2P4A3SHHPECWMQA5VBWGE1","DA5ON71OOUJFCVWVIJIIPEUBD","","","","","","00","X","0","0","","",null,null,null,null,null,null,null,null,null,null,null,null,null,null,null,null,null,null,null,null,null,null,null,null,null,null,null,null,null,null,null,null,null,null,null,null,6,"ZBUDH","1","P","I","EQ","20150930","30/09/2015","","","","0","","0","","0","Master Data Key Date","60","","","0DATE","20150930",null,null,null,null,null,null,null,null,null,null,null,null,null,null,null,null,null,null,null,null,null,null,null,null,null,null,null,null,11,"0000010002","DA5P73R937G88Q0OPJEYN6RY1"]
[null,null,null,null,null,null,null,null,null,null,null,null,null,null,null,null,null,null,null,null,null,null,null,null,null,null,null,null,null,null,9,"0CNTRCTTYPE","Contract Type","X","","","0007","","","","","","","","1","03","","","","00000000","K","0CNTRCTTYPE","A","","","H","","","","","","00000000","0000","","0","","","","","1","1","1","0","0","","","","","","DB0Z0NXRBHRCNXGYD9FB0EOZD","","","","","","","0000","","","",11,"D4O2P4A3SH8H6WZIVSYIIRP4P","DEN9FTLAHQ2ORKU273O4BL0QH","Advisor P/T","0014","","S","","L","","","","","",null,null,null,null,null,null,11,"0ORGUNIT","0SALES_OFF","Sales Office","0000","X","0","0","0","","","","","0000","",null,null,null,null,null,11,"D4O2P4A3SHHPECWMQA5VBWGE1","DA5ON71OOUK71I8MU2Y4RU8L5","","","","","","00","X","0","0","","",null,null,null,null,null,null,null,null,null,null,null,null,null,null,null,null,null,null,null,null,null,null,null,null,null,null,null,null,null,null,null,null,null,null,null,null,6,"ZZPERAR","1","M","","","","","","","","0","","0","","0","ZPersonnel Area","60","","","ZPERSAREA","",null,null,null,null,null,null,null,null,null,null,null,null,null,null,null,null,null,null,null,null,null,null,null,null,null,null,null,null,11,"0000000105",""]
[null,null,null,null,null,null,null,null,null,null,null,null,null,null,null,null,null,null,null,null,null,null,null,null,null,null,null,null,null,null,9,"DA5ON71OOUHVZN9CVGNAKK1RT","Religion - Rev 2011","","X","X","0001","","","","","","","U","","00","","","","","K","DA5ON71OOUHVZN9CVGNAKK1RT","A","","","","","","","","","00000000","0000","X","0","","","","","0","0","0","0","0","","","","","","DA5ON71OOUHVZN9CVGNAKK1RT","","","","","","","0000","","","",11,"D4O2P4A3SH8H6WZIVSYIIRP4P","DEN9GQ7MCHDBOHOGWSAAUUM7T","Advisor Total","0015","","S","","L","","","","","",null,null,null,null,null,null,11,"0CNTRCTTYPE","0CNTRCTISFT","Fixed-Term Contract","0000","X","2","0","0","","","","","0000","",null,null,null,null,null,11,"D4O2P4A3SHHPECWMQA5VBWGE1","DA5ON71OOUKYQ4KE5MDQU9MUX","","","","","","00","X","0","0","","",null,null,null,null,null,null,null,null,null,null,null,null,null,null,null,null,null,null,null,null,null,null,null,null,null,null,null,null,null,null,null,null,null,null,null,null,5,"ZS_DT_1","1","P","I","EQ","20150930","30/09/2015","","","","0","","0","","0","Target date 1","60","","","ZEMP_STRT","20150930",null,null,null,null,null,null,null,null,null,null,null,null,null,null,null,null,null,null,null,null,null,null,null,null,null,null,null,null,11,"0000000106",""]
[null,null,null,null,null,null,null,null,null,null,null,null,null,null,null,null,null,null,null,null,null,null,null,null,null,null,null,null,null,null,9,"D4O21W1IBUB3HEML1KWP5YGOP","WP Bandings","","X","Y","0001","","","","","","","U","","00","","","","","K","D4O21W1IBUB3HEML1KWP5YGOP","A","","","","","","","","","00000000","0000","","0","","","","","0","0","0","0","0","","","","","","D4O21W1IBUB3HEML1KWP5YGOP","","","","","","","0000","","","",11,"D4O2P4A3SH8H6WZIVSYIIRP4P","D4O2P4A3SHQXLSTQKRD8517ND","Psychologist F/T","0016","","S","","L","","","","","",null,null,null,null,null,null,10,"0ORGUNIT","0BBPPURGRPX","Ind.Purchasing Group","0000","X","2","0","0","","","","","0000","",null,null,null,null,null,11,"D4O2P4A3SHHPECWMQA5VBWGE1","DA5ON71OOULQEQW5H5TCWP14P","","","","","","00","X","0","0","","",null,null,null,null,null,null,null,null,null,null,null,null,null,null,null,null,null,null,null,null,null,null,null,null,null,null,null,null,null,null,null,null,null,null,null,null,5,"ZP_ORGUN","2","M","","","","","","","","0","","0","","0","Org Unit Hierarchy (Selection option, optional)","60","","","0ORGUNIT","",null,null,null,null,null,null,null,null,null,null,null,null,null,null,null,null,null,null,null,null,null,null,null,null,null,null,null,null,11,"0000000112","0"]
[null,null,null,null,null,null,null,null,null,null,null,null,null,null,null,null,null,null,null,null,null,null,null,null,null,null,null,null,null,null,8,"0PAYRL_AREA","Payroll Area","X","","","0001","","","","","","","","0","03","","","","00000000","K","0PAYRL_AREA","A","","","H","","","","","","00000000","0000","","0","","","","","1","1","1","0","0","","","","","","DA5OMQDWOYGLGHPV75Y53EDBT","","","","","","","0000","","","",11,"D4O2P4A3SH8H6WZIVSYIIRP4P","DEN9FTLAHQ3GG75TIN3QE0F09","Psychologist P/T","0017","","S","","L","","","","","",null,null,null,null,null,null,10,"0ORGUNIT","0BBPPURORGX","Ind. Purchasing Org.","0000","X","2","0","0","","","","","0000","",null,null,null,null,null,11,"D4O2P4A3SHHPECWMQA5VBWGE1","DA5ON71OOUMI3D7WSP8YZ4FEH","","","","","","00","X","0","0","","",null,null,null,null,null,null,null,null,null,null,null,null,null,null,null,null,null,null,null,null,null,null,null,null,null,null,null,null,null,null,null,null,null,null,null,null,5,"ZBUDH","1","P","I","EQ","20150930","30/09/2015","","","","0","","0","","0","Master Data Key Date","60","","","0DATE","20150930",null,null,null,null,null,null,null,null,null,null,null,null,null,null,null,null,null,null,null,null,null,null,null,null,null,null,null,null,11,"0000000200","X"]
[null,null,null,null,null,null,null,null,null,null,null,null,null,null,null,null,null,null,null,null,null,null,null,null,null,null,null,null,null,null,8,"ZPERSAREA","ZPersonal Area","X","","","0002","","","","","","","","2","03","","","","00000000","K","ZPERSAREA","A","","","H","","","","","","00000000","0000","","0","","","","","1","1","1","0","0","","","","","","DA5OMQDWOYHD541MIPDR5TRLL","","","","","","","0000","","","",11,"D4O2P4A3SH8H6WZIVSYIIRP4P","DEN9GQ7MCHE3D4088BPWXA0HL","Psychologist Total","0018","","S","","L","","","","","",null,null,null,null,null,null,10,"0ORGUNIT","0BBP_BUYID","Buyer ID","0000","X","5","0","0","","","","","0000","",null,null,null,null,null,11,"D4O2P4A3SHHPECWMQA5VBWGE1","DA5ON71OOUN9RZJO48OL1JTO9","","","","","","00","X","0","0","","",null,null,null,null,null,null,null,null,null,null,null,null,null,null,null,null,null,null,null,null,null,null,null,null,null,null,null,null,null,null,null,null,null,null,null,null,5,"ZZPERAR","1","M","","","","","","","","0","","0","","0","ZPersonnel Area","60","","","ZPERSAREA","",null,null,null,null,null,null,null,null,null,null,null,null,null,null,null,null,null,null,null,null,null,null,null,null,null,null,null,null,11,"0000004000","X"]
[null,null,null,null,null,null,null,null,null,null,null,null,null,null,null,null,null,null,null,null,null,null,null,null,null,null,null,null,null,null,8,"0ORGUNIT","Organizational Unit","X","","","0003","","Corporate Services","","","","","","1","03","X","ORGEH","000","20150930","K","0ORGUNIT","A","","","H","0ORGUNIT","A","","","","00000000","0000","","0","","1","","2","1","1","1","0","0","","","","","","DA5OMQDWOYI4TQDDU8TD895VD","","","","","","","0000","","","",11,"D4O2P4A3SH8H6WZIVSYIIRP4P","D4O2P4A3SHU0CA4RUX3OEQSQH","Total Workforce F/T","0019","","F","","L","","","","","",null,null,null,null,null,null,10,"0ORGUNIT","0BBP_ISCOMP","Organizational Unit is Company","0000","X","1","0","0","","","","","0000","",null,null,null,null,null,11,"D4O2P4A3SHHPECWMQA5VBWGE1","DA5ON71OOUO1GLVFFS473Z7Y1","","","","","","00","X","0","0","","",null,null,null,null,null,null,null,null,null,null,null,null,null,null,null,null,null,null,null,null,null,null,null,null,null,null,null,null,null,null,null,null,null,null,null,null,4,"ZS_DT_1","1","P","I","EQ","20150930","30/09/2015","","","","0","","0","","0","Target date 1","60","","","ZEMP_STRT","20150930",null,null,null,null,null,null,null,null,null,null,null,null,null,null,null,null,null,null,null,null,null,null,null,null,null,null,null,null,11,"0000009001","Workforce Profile Religion Teachers (2011) Revised"]
[null,null,null,null,null,null,null,null,null,null,null,null,null,null,null,null,null,null,null,null,null,null,null,null,null,null,null,null,null,null,8,"0PERS_SAREA","Personnel Subarea","X","","","0004","","","","","","","U","1","03","","","","00000000","K","0PERS_SAREA","A","","","H","","","","","","00000000","0000","","0","","","","","1","1","1","0","0","","","","","","DA5OMQDWOYIWICP55S8ZAOK55","","","","","","","0000","","","",11,"D4O2P4A3SH8H6WZIVSYIIRP4P","DEN9FTLAHQ484THKU6JCGFTA1","Total Workforce P/T","0020","","F","","L","","","","","",null,null,null,null,null,null,10,"0ORGUNIT","0BUS_AREA","Business area","0000","X","0","0","0","","","","","0000","",null,null,null,null,null,11,"D4O2P4A3SHHPECWMQA5VBWGE1","DA5ON71OOUOT5876RBJT6EM7T","","","","","","00","X","0","0","","",null,null,null,null,null,null,null,null,null,null,null,null,null,null,null,null,null,null,null,null,null,null,null,null,null,null,null,null,null,null,null,null,null,null,null,null,4,"ZP_ORGUN","2","M","","","","","","","","0","","0","","0","Org Unit Hierarchy (Selection option, optional)","60","","","0ORGUNIT","",null,null,null,null,null,null,null,null,null,null,null,null,null,null,null,null,null,null,null,null,null,null,null,null,null,null,null,null,11,"0000000114","1"]
[null,null,null,null,null,null,null,null,null,null,null,null,null,null,null,null,null,null,null,null,null,null,null,null,null,null,null,null,null,null,8,"ZTEILK","Checkbox for Part-Ti","X","","","0005","","","","","","","","1","03","","","","00000000","K","ZTEILK","A","","","H","","","","","","00000000","0000","","0","","","","","1","1","1","0","0","","","","","","DA5OMQDWOYJO6Z0WHBOLD3YEX","","","","","","","0000","","","",11,"D4O2P4A3SH8H6WZIVSYIIRP4P","DEN9GQ7MCHEV1QBZJV5IZPERD","Total Workforce Total","0021","","F","","L","","","","","",null,null,null,null,null,null,10,"0ORGUNIT","0COMP_CODE","Company code","0000","X","0","0","0","","","","","0000","",null,null,null,null,null,11,"D4O2P4A3SHHPECWMQA5VBWGE1","DA5ON71OOUPKTUIY2UZF8U0HL","","","","","","00","X","0","0","","",null,null,null,null,null,null,null,null,null,null,null,null,null,null,null,null,null,null,null,null,null,null,null,null,null,null,null,null,null,null,null,null,null,null,null,null,4,"ZBUDH","1","P","I","EQ","20150930","30/09/2015","","","","0","","0","","0","Master Data Key Date","60","","","0DATE","20150930",null,null,null,null,null,null,null,null,null,null,null,null,null,null,null,null,null,null,null,null,null,null,null,null,null,null,null,null,10,"0000000107","DA5OMQDWOY9OAWS1BB1MHJSVT"]
[null,null,null,null,null,null,null,null,null,null,null,null,null,null,null,null,null,null,null,null,null,null,null,null,null,null,null,null,null,null,8,"ZPRIM_ID","ZPrimary Employee ID","X","","","0006","","","","","","","","2","03","","","","00000000","K","ZPRIM_ID","A","","","H","","","","","","00000000","0000","","0","","","","","1","1","1","0","0","","","","","","DA5OMQDWOYKFVLCNSV47FJCOP","","","","","","","0000","","","",10,"D4O21W1IBUB3HEML1KWP5YGOP","D4O21W1IBUDEJ9LV077JD8NI1","Grade 1 - 4 F/T","0001","","S","","L","","","","","",null,null,null,null,null,null,10,"0ORGUNIT","0CO_MST_AR","Controlling Area of Master Cost Center","0000","X","0","0","0","","","","","0000","",null,null,null,null,null,11,"D4O2P4A3SHHPECWMQA5VBWGE1","DA5ON71OOUQCIGUPEEF1B9ERD","","","","","","00","X","0","0","","",null,null,null,null,null,null,null,null,null,null,null,null,null,null,null,null,null,null,null,null,null,null,null,null,null,null,null,null,null,null,null,null,null,null,null,null,4,"ZZPERAR","1","M","","","","","","","","0","","0","","0","ZPersonnel Area","60","","","ZPERSAREA","",null,null,null,null,null,null,null,null,null,null,null,null,null,null,null,null,null,null,null,null,null,null,null,null,null,null,null,null,10,"0000000100","X"]
[null,null,null,null,null,null,null,null,null,null,null,null,null,null,null,null,null,null,null,null,null,null,null,null,null,null,null,null,null,null,8,"0CNTRCTTYPE","Contract Type","X","","","0007","","","","","","","","1","03","","","","00000000","K","0CNTRCTTYPE","A","","","H","","","","","","00000000","0000","","0","","","","","1","1","1","0","0","","","","","","DB0Z0NXRBHRCNXGYD9FB0EOZD","","","","","","","0000","","","",10,"DA5ON71OOUHVZN9CVGNAKK1RT","DA5ON71OOUINO9L4702WMZG1L","Buddhist","0001","","S","","L","X","","","","",null,null,null,null,null,null,10,"0ORGUNIT","0CRMSALGRPX","Sls Group: Indicator","0000","X","2","0","0","","","","","0000","",null,null,null,null,null,11,"D4O2P4A3SHKS4U7O0FWBLM1H5","DA5ON71OOUINO9L4702WMZG1L","","","","","","00","X","0","0","","",null,null,null,null,null,null,null,null,null,null,null,null,null,null,null,null,null,null,null,null,null,null,null,null,null,null,null,null,null,null,null,null,null,null,null,null,null,null,null,null,null,null,null,null,null,null,null,null,null,null,null,null,null,null,null,null,null,null,null,null,null,null,null,null,null,null,null,null,null,null,null,null,null,null,null,null,null,null,null,null,null,null,null,null,null,null,10,"0000000101",""]
[null,null,null,null,null,null,null,null,null,null,null,null,null,null,null,null,null,null,null,null,null,null,null,null,null,null,null,null,null,null,8,"DA5ON71OOUHVZN9CVGNAKK1RT","Religion - Rev 2011","","X","X","0001","","","","","","","U","","00","","","","","K","DA5ON71OOUHVZN9CVGNAKK1RT","A","","","","","","","","","00000000","0000","X","0","","","","","0","0","0","0","0","","","","","","DA5ON71OOUHVZN9CVGNAKK1RT","","","","","","","0000","","","",10,"DA5ON71OOUHVZN9CVGNAKK1RT","DA5ON71OOUJFCVWVIJIIPEUBD","Church of Scotland","0002","","S","","L","X","","","","",null,null,null,null,null,null,10,"0ORGUNIT","0CRMSALOFFX","Sls Office:Indicator","0000","X","2","0","0","","","","","0000","",null,null,null,null,null,11,"D4O2P4A3SHKS4U7O0FWBLM1H5","DA5ON71OOUJFCVWVIJIIPEUBD","","","","","","00","X","0","0","","",null,null,null,null,null,null,null,null,null,null,null,null,null,null,null,null,null,null,null,null,null,null,null,null,null,null,null,null,null,null,null,null,null,null,null,null,null,null,null,null,null,null,null,null,null,null,null,null,null,null,null,null,null,null,null,null,null,null,null,null,null,null,null,null,null,null,null,null,null,null,null,null,null,null,null,null,null,null,null,null,null,null,null,null,null,null,10,"0000000104","1"]
[null,null,null,null,null,null,null,null,null,null,null,null,null,null,null,null,null,null,null,null,null,null,null,null,null,null,null,null,null,null,8,"D4O21W1IBUB3HEML1KWP5YGOP","WP Bandings","","X","Y","0001","","","","","","","U","","00","","","","","K","D4O21W1IBUB3HEML1KWP5YGOP","A","","","","","","","","","00000000","0000","","0","","","","","0","0","0","0","0","","","","","","D4O21W1IBUB3HEML1KWP5YGOP","","","","","","","0000","","","",10,"D4O21W1IBUB3HEML1KWP5YGOP","D4O21W1IBUKBOUJOW241Z37Y1","Grade 1 - 4 P/T","0002","","S","","L","","","","","",null,null,null,null,null,null,10,"0ORGUNIT","0CRMSALORGX","Sales Org. Indicator","0000","X","2","0","0","","","","","0000","",null,null,null,null,null,11,"D4O2P4A3SHKS4U7O0FWBLM1H5","DA5ON71OOUK71I8MU2Y4RU8L5","","","","","","00","X","0","0","","",null,null,null,null,null,null,null,null,null,null,null,null,null,null,null,null,null,null,null,null,null,null,null,null,null,null,null,null,null,null,null,null,null,null,null,null,null,null,null,null,null,null,null,null,null,null,null,null,null,null,null,null,null,null,null,null,null,null,null,null,null,null,null,null,null,null,null,null,null,null,null,null,null,null,null,null,null,null,null,null,null,null,null,null,null,null,10,"0000000103",""]
[null,null,null,null,null,null,null,null,null,null,null,null,null,null,null,null,null,null,null,null,null,null,null,null,null,null,null,null,null,null,7,"0PAYRL_AREA","Payroll Area","X","","","0001","","","","","","","","0","03","","","","00000000","K","0PAYRL_AREA","A","","","H","","","","","","00000000","0000","","0","","","","","1","1","1","0","0","","","","","","DA5OMQDWOYGLGHPV75Y53EDBT","","","","","","","0000","","","",10,"DA5ON71OOUHVZN9CVGNAKK1RT","DA5ON71OOUK71I8MU2Y4RU8L5","Hindu","0003","","S","","L","X","","","","",null,null,null,null,null,null,10,"0ORGUNIT","0CRMSRVTGRP","Ex. CRM Service Org.","0000","X","1","0","0","","","","","0000","",null,null,null,null,null,11,"D4O2P4A3SHKS4U7O0FWBLM1H5","DA5ON71OOUKYQ4KE5MDQU9MUX","","","","","","00","X","0","0","","",null,null,null,null,null,null,null,null,null,null,null,null,null,null,null,null,null,null,null,null,null,null,null,null,null,null,null,null,null,null,null,null,null,null,null,null,null,null,null,null,null,null,null,null,null,null,null,null,null,null,null,null,null,null,null,null,null,null,null,null,null,null,null,null,null,null,null,null,null,null,null,null,null,null,null,null,null,null,null,null,null,null,null,null,null,null,10,"0000000102","1"]
[null,null,null,null,null,null,null,null,null,null,null,null,null,null,null,null,null,null,null,null,null,null,null,null,null,null,null,null,null,null,7,"ZPERSAREA","ZPersonal Area","X","","","0002","","","","","","","","2","03","","","","00000000","K","ZPERSAREA","A","","","H","","","","","","00000000","0000","","0","","","","","1","1","1","0","0","","","","","","DA5OMQDWOYHD541MIPDR5TRLL","","","","","","","0000","","","",10,"D4O21W1IBUB3HEML1KWP5YGOP","DEMAFDB5LZ4S252XBVM7GJP4P","Grade 1 - 4 Total","0003","","S","","L","","","","","",null,null,null,null,null,null,10,"0ORGUNIT","0CRM_SALGRP","CRM Sales Group","0000","X","1","0","0","","","","","0000","",null,null,null,null,null,11,"D4O2P4A3SHKS4U7O0FWBLM1H5","DA5ON71OOULQEQW5H5TCWP14P","","","","","","00","X","0","0","","",null,null,null,null,null,null,null,null,null,null,null,null,null,null,null,null,null,null,null,null,null,null,null,null,null,null,null,null,null,null,null,null,null,null,null,null,null,null,null,null,null,null,null,null,null,null,null,null,null,null,null,null,null,null,null,null,null,null,null,null,null,null,null,null,null,null,null,null,null,null,null,null,null,null,null,null,null,null,null,null,null,null,null,null,null,null,10,"0000000108",""]
[null,null,null,null,null,null,null,null,null,null,null,null,null,null,null,null,null,null,null,null,null,null,null,null,null,null,null,null,null,null,7,"0ORGUNIT","Organizational Unit","X","","","0003","","Chief Executive Srv, Chief Executive Organisation Structu...","","","","","","1","03","X","ORGEH","000","20150930","K","0ORGUNIT","A","","","H","0ORGUNIT","A","","","","00000000","0000","","0","","X","","2","1","1","1","0","0","","","","","","DA5OMQDWOYI4TQDDU8TD895VD","","","","","","","0000","","","",10,"D4O21W1IBUB3HEML1KWP5YGOP","D4O21W1IBUE67VXMBQN5FO1RT","Grade 5 - 7 F/T","0004","","S","","L","","","","","",null,null,null,null,null,null,10,"0ORGUNIT","0CRM_SALOFF","CRM Sales Office","0000","X","1","0","0","","","","","0000","",null,null,null,null,null,11,"D4O2P4A3SHKS4U7O0FWBLM1H5","DA5ON71OOUMI3D7WSP8YZ4FEH","","","","","","00","X","0","0","","",null,null,null,null,null,null,null,null,null,null,null,null,null,null,null,null,null,null,null,null,null,null,null,null,null,null,null,null,null,null,null,null,null,null,null,null,null,null,null,null,null,null,null,null,null,null,null,null,null,null,null,null,null,null,null,null,null,null,null,null,null,null,null,null,null,null,null,null,null,null,null,null,null,null,null,null,null,null,null,null,null,null,null,null,null,null,10,"0000009002","D4O21W1IBUB3HEML1KWP5YGOP"]
[null,null,null,null,null,null,null,null,null,null,null,null,null,null,null,null,null,null,null,null,null,null,null,null,null,null,null,null,null,null,7,"0PERS_SAREA","Personnel Subarea","X","","","0004","","","","","","","U","1","03","","","","00000000","K","0PERS_SAREA","A","","","H","","","","","","00000000","0000","","0","","","","","1","1","1","0","0","","","","","","DA5OMQDWOYIWICP55S8ZAOK55","","","","","","","0000","","","",10,"DA5ON71OOUHVZN9CVGNAKK1RT","DA5ON71OOUKYQ4KE5MDQU9MUX","Jewish","0004","","S","","L","X","","","","",null,null,null,null,null,null,10,"0ORGUNIT","0CRM_SALORG","CRM Sales Org.","0000","X","1","0","0","","","","","0000","",null,null,null,null,null,11,"D4O2P4A3SHKS4U7O0FWBLM1H5","DA5ON71OOUN9RZJO48OL1JTO9","","","","","","00","X","0","0","","",null,null,null,null,null,null,null,null,null,null,null,null,null,null,null,null,null,null,null,null,null,null,null,null,null,null,null,null,null,null,null,null,null,null,null,null,null,null,null,null,null,null,null,null,null,null,null,null,null,null,null,null,null,null,null,null,null,null,null,null,null,null,null,null,null,null,null,null,null,null,null,null,null,null,null,null,null,null,null,null,null,null,null,null,null,null,10,"0000009000",""]
[null,null,null,null,null,null,null,null,null,null,null,null,null,null,null,null,null,null,null,null,null,null,null,null,null,null,null,null,null,null,7,"ZTEILK","Checkbox for Part-Ti","X","","","0005","","","","","","","","1","03","","","","00000000","K","ZTEILK","A","","","H","","","","","","00000000","0000","","0","","","","","1","1","1","0","0","","","","","","DA5OMQDWOYJO6Z0WHBOLD3YEX","","","","","","","0000","","","",10,"D4O21W1IBUB3HEML1KWP5YGOP","D4O21W1IBUL3DGVG7LJO1IM7T","Grade 5 - 7 P/T","0005","","S","","L","","","","","",null,null,null,null,null,null,10,"0ORGUNIT","0CRM_SRVORG","Service Org. CRM","0000","X","1","0","0","","","","","0000","",null,null,null,null,null,11,"D4O2P4A3SHKS4U7O0FWBLM1H5","DA5ON71OOUO1GLVFFS473Z7Y1","","","","","","00","X","0","0","","",null,null,null,null,null,null,null,null,null,null,null,null,null,null,null,null,null,null,null,null,null,null,null,null,null,null,null,null,null,null,null,null,null,null,null,null,null,null,null,null,null,null,null,null,null,null,null,null,null,null,null,null,null,null,null,null,null,null,null,null,null,null,null,null,null,null,null,null,null,null,null,null,null,null,null,null,null,null,null,null,null,null,null,null,null,null,10,"0000000010",""]
[null,null,null,null,null,null,null,null,null,null,null,null,null,null,null,null,null,null,null,null,null,null,null,null,null,null,null,null,null,null,7,"ZPRIM_ID","ZPrimary Employee ID","X","","","0006","","","","","","","","2","03","","","","00000000","K","ZPRIM_ID","A","","","H","","","","","","00000000","0000","","0","","","","","1","1","1","0","0","","","","","","DA5OMQDWOYKFVLCNSV47FJCOP","","","","","","","0000","","","",10,"DA5ON71OOUHVZN9CVGNAKK1RT","DA5ON71OOULQEQW5H5TCWP14P","Muslim","0005","","S","","L","X","","","","",null,null,null,null,null,null,10,"0ORGUNIT","0LOGSYS","Source System","0000","X","1","0","0","","","","","0000","",null,null,null,null,null,11,"D4O2P4A3SHKS4U7O0FWBLM1H5","DA5ON71OOUOT5876RBJT6EM7T","","","","","","00","X","0","0","","",null,null,null,null,null,null,null,null,null,null,null,null,null,null,null,null,null,null,null,null,null,null,null,null,null,null,null,null,null,null,null,null,null,null,null,null,null,null,null,null,null,null,null,null,null,null,null,null,null,null,null,null,null,null,null,null,null,null,null,null,null,null,null,null,null,null,null,null,null,null,null,null,null,null,null,null,null,null,null,null,null,null,null,null,null,null,10,"0000000021",""]
[null,null,null,null,null,null,null,null,null,null,null,null,null,null,null,null,null,null,null,null,null,null,null,null,null,null,null,null,null,null,7,"0CNTRCTTYPE","Contract Type","X","","","0007","","","","","","","","1","03","","","","00000000","K","0CNTRCTTYPE","A","","","H","","","","","","00000000","0000","","0","","","","","1","1","1","0","0","","","","","","DB0Z0NXRBHRCNXGYD9FB0EOZD","","","","","","","0000","","","",10,"D4O21W1IBUB3HEML1KWP5YGOP","DEMAGSP8VDTMCQ2Z9KSRG7UGP","Grade 5 - 7 Total","0006","","S","","L","","","","","",null,null,null,null,null,null,10,"0ORGUNIT","0MAST_CCTR","Master Cost Center","0000","X","0","0","0","","","","","0000","",null,null,null,null,null,11,"D4O2P4A3SHKS4U7O0FWBLM1H5","DA5ON71OOUPKTUIY2UZF8U0HL","","","","","","00","X","0","0","","",null,null,null,null,null,null,null,null,null,null,null,null,null,null,null,null,null,null,null,null,null,null,null,null,null,null,null,null,null,null,null,null,null,null,null,null,null,null,null,null,null,null,null,null,null,null,null,null,null,null,null,null,null,null,null,null,null,null,null,null,null,null,null,null,null,null,null,null,null,null,null,null,null,null,null,null,null,null,null,null,null,null,null,null,null,null,10,"0000000022",""]
[null,null,null,null,null,null,null,null,null,null,null,null,null,null,null,null,null,null,null,null,null,null,null,null,null,null,null,null,null,null,7,"DA5ON71OOUHVZN9CVGNAKK1RT","Religion - Rev 2011","","X","X","0001","","","","","","","U","","00","","","","","K","DA5ON71OOUHVZN9CVGNAKK1RT","A","","","","","","","","","00000000","0000","X","0","","","","","0","0","0","0","0","","","","","","DA5ON71OOUHVZN9CVGNAKK1RT","","","","","","","0000","","","",10,"DA5ON71OOUHVZN9CVGNAKK1RT","DA5ON71OOUMI3D7WSP8YZ4FEH","Other Christian","0006","","S","","L","X","","","","",null,null,null,null,null,null,10,"0ORGUNIT","0PERS_AREA","Personnel Area","0000","X","1","0","0","","","","","0000","",null,null,null,null,null,11,"D4O2P4A3SHKS4U7O0FWBLM1H5","DA5ON71OOUQCIGUPEEF1B9ERD","","","","","","00","X","0","0","","",null,null,null,null,null,null,null,null,null,null,null,null,null,null,null,null,null,null,null,null,null,null,null,null,null,null,null,null,null,null,null,null,null,null,null,null,null,null,null,null,null,null,null,null,null,null,null,null,null,null,null,null,null,null,null,null,null,null,null,null,null,null,null,null,null,null,null,null,null,null,null,null,null,null,null,null,null,null,null,null,null,null,null,null,null,null,10,"0000000023",""]
[null,null,null,null,null,null,null,null,null,null,null,null,null,null,null,null,null,null,null,null,null,null,null,null,null,null,null,null,null,null,7,"D4O21W1IBUB3HEML1KWP5YGOP","WP Bandings","","X","Y","0001","","","","","","","U","","00","","","","","K","D4O21W1IBUB3HEML1KWP5YGOP","A","","","","","","","","","00000000","0000","","0","","","","","0","0","0","0","0","","","","","","D4O21W1IBUB3HEML1KWP5YGOP","","","","","","","0000","","","",10,"D4O21W1IBUB3HEML1KWP5YGOP","D4O21W1IBUEXWI9DNA2RI3G1L","Grade 8 F/T","0007","","S","","L","","","","","",null,null,null,null,null,null,10,"0ORGUNIT","0PERS_SAREA","Personnel Subarea","0000","X","1","0","0","","","","","0000","",null,null,null,null,null,11,"D4O2P4A3SHNUVBIPALMRVBMK9","DA5ON71OOUINO9L4702WMZG1L","","","","","","00","X","0","0","","",null,null,null,null,null,null,null,null,null,null,null,null,null,null,null,null,null,null,null,null,null,null,null,null,null,null,null,null,null,null,null,null,null,null,null,null,null,null,null,null,null,null,null,null,null,null,null,null,null,null,null,null,null,null,null,null,null,null,null,null,null,null,null,null,null,null,null,null,null,null,null,null,null,null,null,null,null,null,null,null,null,null,null,null,null,null,10,"0000000030",""]
[null,null,null,null,null,null,null,null,null,null,null,null,null,null,null,null,null,null,null,null,null,null,null,null,null,null,null,null,null,null,6,"0PAYRL_AREA","Payroll Area","X","","","0001","","","","","","","","0","03","","","","00000000","K","0PAYRL_AREA","A","","","H","","","","","","00000000","0000","","0","","","","","1","1","1","0","0","","","","","","DA5OMQDWOYGLGHPV75Y53EDBT","","","","","","","0000","","","",10,"DA5ON71OOUHVZN9CVGNAKK1RT","DA5ON71OOUN9RZJO48OL1JTO9","Roman Catholic","0007","","S","","L","X","","","","",null,null,null,null,null,null,10,"0ORGUNIT","0PLANT","Plant","0000","X","0","0","0","","","","","0000","",null,null,null,null,null,11,"D4O2P4A3SHNUVBIPALMRVBMK9","DA5ON71OOUJFCVWVIJIIPEUBD","","","","","","00","X","0","0","","",null,null,null,null,null,null,null,null,null,null,null,null,null,null,null,null,null,null,null,null,null,null,null,null,null,null,null,null,null,null,null,null,null,null,null,null,null,null,null,null,null,null,null,null,null,null,null,null,null,null,null,null,null,null,null,null,null,null,null,null,null,null,null,null,null,null,null,null,null,null,null,null,null,null,null,null,null,null,null,null,null,null,null,null,null,null,10,"0000000040",""]
[null,null,null,null,null,null,null,null,null,null,null,null,null,null,null,null,null,null,null,null,null,null,null,null,null,null,null,null,null,null,6,"ZPERSAREA","ZPersonal Area","X","","","0002","","Financial","","","","","","2","03","","","","00000000","K","ZPERSAREA","A","","","H","","","","","","00000000","0000","","0","","1","","","1","1","1","0","0","","","","","","DA5OMQDWOYHD541MIPDR5TRLL","","","","","","","0000","","","",10,"D4O21W1IBUB3HEML1KWP5YGOP","D4O21W1IBULV2377J4ZA3Y0HL","Grade 8 P/T","0008","","S","","L","","","","","",null,null,null,null,null,null,10,"0ORGUNIT","0PURCH_ORG","Purchasing org.","0000","X","0","0","0","","","","","0000","",null,null,null,null,null,11,"D4O2P4A3SHNUVBIPALMRVBMK9","DA5ON71OOUK71I8MU2Y4RU8L5","","","","","","00","X","0","0","","",null,null,null,null,null,null,null,null,null,null,null,null,null,null,null,null,null,null,null,null,null,null,null,null,null,null,null,null,null,null,null,null,null,null,null,null,null,null,null,null,null,null,null,null,null,null,null,null,null,null,null,null,null,null,null,null,null,null,null,null,null,null,null,null,null,null,null,null,null,null,null,null,null,null,null,null,null,null,null,null,null,null,null,null,null,null,10,"0000000041",""]
[null,null,null,null,null,null,null,null,null,null,null,null,null,null,null,null,null,null,null,null,null,null,null,null,null,null,null,null,null,null,6,"0ORGUNIT","Organizational Unit","X","","","0003","","","","","","","","1","03","X","ORGEH","000","20150930","K","0ORGUNIT","A","","","H","0ORGUNIT","A","","","","00000000","0000","","0","","","","2","1","1","1","0","0","","","","","","DA5OMQDWOYI4TQDDU8TD895VD","","","","","","","0000","","","",10,"DA5ON71OOUHVZN9CVGNAKK1RT","DA5ON71OOUO1GLVFFS473Z7Y1","Sikh","0008","","S","","L","X","","","","",null,null,null,null,null,null,10,"0ORGUNIT","0PUR_GROUP","Purchasing group","0000","X","0","0","0","","","","","0000","",null,null,null,null,null,11,"D4O2P4A3SHNUVBIPALMRVBMK9","DA5ON71OOUKYQ4KE5MDQU9MUX","","","","","","00","X","0","0","","",null,null,null,null,null,null,null,null,null,null,null,null,null,null,null,null,null,null,null,null,null,null,null,null,null,null,null,null,null,null,null,null,null,null,null,null,null,null,null,null,null,null,null,null,null,null,null,null,null,null,null,null,null,null,null,null,null,null,null,null,null,null,null,null,null,null,null,null,null,null,null,null,null,null,null,null,null,null,null,null,null,null,null,null,null,null,10,"0000000042","0"]
[null,null,null,null,null,null,null,null,null,null,null,null,null,null,null,null,null,null,null,null,null,null,null,null,null,null,null,null,null,null,6,"0PERS_SAREA","Personnel Subarea","X","","","0004","","","","","","","U","1","03","","","","00000000","K","0PERS_SAREA","A","","","H","","","","","","00000000","0000","","0","","","","","1","1","1","0","0","","","","","","DA5OMQDWOYIWICP55S8ZAOK55","","","","","","","0000","","","",10,"DA5ON71OOUHVZN9CVGNAKK1RT","DA5ON71OOUOT5876RBJT6EM7T","Another Religion","0009","","S","","L","X","","","","",null,null,null,null,null,null,10,"0ORGUNIT","0SALESORG","Sales Organization","0000","X","0","0","0","","","","","0000","",null,null,null,null,null,11,"D4O2P4A3SHNUVBIPALMRVBMK9","DA5ON71OOULQEQW5H5TCWP14P","","","","","","00","X","0","0","","",null,null,null,null,null,null,null,null,null,null,null,null,null,null,null,null,null,null,null,null,null,null,null,null,null,null,null,null,null,null,null,null,null,null,null,null,null,null,null,null,null,null,null,null,null,null,null,null,null,null,null,null,null,null,null,null,null,null,null,null,null,null,null,null,null,null,null,null,null,null,null,null,null,null,null,null,null,null,null,null,null,null,null,null,null,null,10,"0000000043","0"]
[null,null,null,null,null,null,null,null,null,null,null,null,null,null,null,null,null,null,null,null,null,null,null,null,null,null,null,null,null,null,6,"ZTEILK","Checkbox for Part-Ti","X","","","0005","","","","","","","","1","03","","","","00000000","K","ZTEILK","A","","","H","","","","","","00000000","0000","","0","","","","","1","1","1","0","0","","","","","","DA5OMQDWOYJO6Z0WHBOLD3YEX","","","","","","","0000","","","",10,"D4O21W1IBUB3HEML1KWP5YGOP","D4O21W1IBV18QHQDXXNJGHXX5","Grade 8 Total","0009","","S","","L","","","","","",null,null,null,null,null,null,10,"0ORGUNIT","0SALES_GRP","Sales group","0000","X","0","0","0","","","","","0000","",null,null,null,null,null,11,"D4O2P4A3SHNUVBIPALMRVBMK9","DA5ON71OOUMI3D7WSP8YZ4FEH","","","","","","00","X","0","0","","",null,null,null,null,null,null,null,null,null,null,null,null,null,null,null,null,null,null,null,null,null,null,null,null,null,null,null,null,null,null,null,null,null,null,null,null,null,null,null,null,null,null,null,null,null,null,null,null,null,null,null,null,null,null,null,null,null,null,null,null,null,null,null,null,null,null,null,null,null,null,null,null,null,null,null,null,null,null,null,null,null,null,null,null,null,null,10,"0000000109","0"]
[null,null,null,null,null,null,null,null,null,null,null,null,null,null,null,null,null,null,null,null,null,null,null,null,null,null,null,null,null,null,6,"ZPRIM_ID","ZPrimary Employee ID","X","","","0006","","","","","","","","2","03","","","","00000000","K","ZPRIM_ID","A","","","H","","","","","","00000000","0000","","0","","","","","1","1","1","0","0","","","","","","DA5OMQDWOYKFVLCNSV47FJCOP","","","","","","","0000","","","",10,"DA5ON71OOUHVZN9CVGNAKK1RT","DA5ON71OOUPKTUIY2UZF8U0HL","None","0010","","S","","L","X","","","","",null,null,null,null,null,null,10,"0ORGUNIT","0SALES_OFF","Sales Office","0000","X","0","0","0","","","","","0000","",null,null,null,null,null,11,"D4O2P4A3SHNUVBIPALMRVBMK9","DA5ON71OOUN9RZJO48OL1JTO9","","","","","","00","X","0","0","","",null,null,null,null,null,null,null,null,null,null,null,null,null,null,null,null,null,null,null,null,null,null,null,null,null,null,null,null,null,null,null,null,null,null,null,null,null,null,null,null,null,null,null,null,null,null,null,null,null,null,null,null,null,null,null,null,null,null,null,null,null,null,null,null,null,null,null,null,null,null,null,null,null,null,null,null,null,null,null,null,null,null,null,null,null,null,10,"0000000113",""]
[null,null,null,null,null,null,null,null,null,null,null,null,null,null,null,null,null,null,null,null,null,null,null,null,null,null,null,null,null,null,6,"0CNTRCTTYPE","Contract Type","X","","","0007","","","","","","","","1","03","","","","00000000","K","0CNTRCTTYPE","A","","","H","","","","","","00000000","0000","","0","","","","","1","1","1","0","0","","","","","","DB0Z0NXRBHRCNXGYD9FB0EOZD","","","","","","","0000","","","",10,"D4O21W1IBUB3HEML1KWP5YGOP","D4O21W1IBUFPL4L4YTIDKIUBD","ACZ Grade 8 F/T","0010","","S","","L","","","","","",null,null,null,null,null,null,10,"0CNTRCTTYPE","0CNTRCTISFT","Fixed-Term Contract","0000","X","2","0","0","","","","","0000","",null,null,null,null,null,11,"D4O2P4A3SHNUVBIPALMRVBMK9","DA5ON71OOUO1GLVFFS473Z7Y1","","","","","","00","X","0","0","","",null,null,null,null,null,null,null,null,null,null,null,null,null,null,null,null,null,null,null,null,null,null,null,null,null,null,null,null,null,null,null,null,null,null,null,null,null,null,null,null,null,null,null,null,null,null,null,null,null,null,null,null,null,null,null,null,null,null,null,null,null,null,null,null,null,null,null,null,null,null,null,null,null,null,null,null,null,null,null,null,null,null,null,null,null,null,10,"0000000120",""]
[null,null,null,null,null,null,null,null,null,null,null,null,null,null,null,null,null,null,null,null,null,null,null,null,null,null,null,null,null,null,6,"DA5ON71OOUHVZN9CVGNAKK1RT","Religion - Rev 2011","","X","X","0001","","","","","","","U","","00","","","","","K","DA5ON71OOUHVZN9CVGNAKK1RT","A","","","","","","","","","00000000","0000","X","0","","","","","0","0","0","0","0","","","","","","DA5ON71OOUHVZN9CVGNAKK1RT","","","","","","","0000","","","",10,"D4O21W1IBUB3HEML1KWP5YGOP","D4O21W1IBUMMQPIYUOEW6DERD","ACZ Grade 8 P/T","0011","","S","","L","","","","","",null,null,null,null,null,null,9,"0ORGUNIT","0BBPPURGRPX","Ind.Purchasing Group","0000","X","2","0","0","","","","","0000","",null,null,null,null,null,11,"D4O2P4A3SHNUVBIPALMRVBMK9","DA5ON71OOUOT5876RBJT6EM7T","","","","","","00","X","0","0","","",null,null,null,null,null,null,null,null,null,null,null,null,null,null,null,null,null,null,null,null,null,null,null,null,null,null,null,null,null,null,null,null,null,null,null,null,null,null,null,null,null,null,null,null,null,null,null,null,null,null,null,null,null,null,null,null,null,null,null,null,null,null,null,null,null,null,null,null,null,null,null,null,null,null,null,null,null,null,null,null,null,null,null,null,null,null,10,"0000000121",""]
[null,null,null,null,null,null,null,null,null,null,null,null,null,null,null,null,null,null,null,null,null,null,null,null,null,null,null,null,null,null,6,"D4O21W1IBUB3HEML1KWP5YGOP","WP Bandings","","X","Y","0001","","","","","","","U","","00","","","","","K","D4O21W1IBUB3HEML1KWP5YGOP","A","","","","","","","","","00000000","0000","","0","","","","","0","0","0","0","0","","","","","","D4O21W1IBUB3HEML1KWP5YGOP","","","","","","","0000","","","",10,"DA5ON71OOUHVZN9CVGNAKK1RT","DA5ON71OOUQCIGUPEEF1B9ERD","Non Disclosed","0011","","S","","L","X","","","","",null,null,null,null,null,null,9,"0ORGUNIT","0BBPPURORGX","Ind. Purchasing Org.","0000","X","2","0","0","","","","","0000","",null,null,null,null,null,11,"D4O2P4A3SHNUVBIPALMRVBMK9","DA5ON71OOUPKTUIY2UZF8U0HL","","","","","","00","X","0","0","","",null,null,null,null,null,null,null,null,null,null,null,null,null,null,null,null,null,null,null,null,null,null,null,null,null,null,null,null,null,null,null,null,null,null,null,null,null,null,null,null,null,null,null,null,null,null,null,null,null,null,null,null,null,null,null,null,null,null,null,null,null,null,null,null,null,null,null,null,null,null,null,null,null,null,null,null,null,null,null,null,null,null,null,null,null,null,10,"0000010001","DA5OMQDWOYLZ8U06FXZFKE589"]
[null,null,null,null,null,null,null,null,null,null,null,null,null,null,null,null,null,null,null,null,null,null,null,null,null,null,null,null,null,null,5,"0PAYRL_AREA","Payroll Area","X","","","0001","","","","","","","","0","03","","","","00000000","K","0PAYRL_AREA","A","","","H","","","","","","00000000","0000","","0","","","","","1","1","1","0","0","","","","","","DA5OMQDWOYGLGHPV75Y53EDBT","","","","","","","0000","","","",10,"D4O21W1IBUB3HEML1KWP5YGOP","D4O21W1IBV0H1VEMME7XE2JND","ACZ Grade 8 Total","0012","","S","","L","","","","","",null,null,null,null,null,null,9,"0ORGUNIT","0BBP_BUYID","Buyer ID","0000","X","5","0","0","","","","","0000","",null,null,null,null,null,11,"D4O2P4A3SHNUVBIPALMRVBMK9","DA5ON71OOUQCIGUPEEF1B9ERD","","","","","","00","X","0","0","","",null,null,null,null,null,null,null,null,null,null,null,null,null,null,null,null,null,null,null,null,null,null,null,null,null,null,null,null,null,null,null,null,null,null,null,null,null,null,null,null,null,null,null,null,null,null,null,null,null,null,null,null,null,null,null,null,null,null,null,null,null,null,null,null,null,null,null,null,null,null,null,null,null,null,null,null,null,null,null,null,null,null,null,null,null,null,10,"0000010002","DA5OMQDWOY9OAWS1BB1MHJSVT"]
[null,null,null,null,null,null,null,null,null,null,null,null,null,null,null,null,null,null,null,null,null,null,null,null,null,null,null,null,null,null,5,"ZPERSAREA","ZPersonal Area","X","","","0002","","Land and Environmental","","","","","","2","03","","","","00000000","K","ZPERSAREA","A","","","H","","","","","","00000000","0000","","0","","1","","","1","1","1","0","0","","","","","","DA5OMQDWOYHD541MIPDR5TRLL","","","","","","","0000","","","",10,"D4O21W1IBUB3HEML1KWP5YGOP","D4O21W1IBUH8YD8NLWDLPDMUX","Grade 9 - 15 F/T","0013","","S","","L","","","","","",null,null,null,null,null,null,9,"0ORGUNIT","0BBP_ISCOMP","Organizational Unit is Company","0000","X","1","0","0","","","","","0000","",null,null,null,null,null,11,"D4O2P4A3SHQXLSTQKRD8517ND","DA5ON71OOUINO9L4702WMZG1L","","","","","","00","X","0","0","","",null,null,null,null,null,null,null,null,null,null,null,null,null,null,null,null,null,null,null,null,null,null,null,null,null,null,null,null,null,null,null,null,null,null,null,null,null,null,null,null,null,null,null,null,null,null,null,null,null,null,null,null,null,null,null,null,null,null,null,null,null,null,null,null,null,null,null,null,null,null,null,null,null,null,null,null,null,null,null,null,null,null,null,null,null,null,10,"0000000105",""]
[null,null,null,null,null,null,null,null,null,null,null,null,null,null,null,null,null,null,null,null,null,null,null,null,null,null,null,null,null,null,5,"0ORGUNIT","Organizational Unit","X","","","0003","","","","","","","","1","03","X","ORGEH","000","20150930","K","0ORGUNIT","A","","","H","0ORGUNIT","A","","","","00000000","0000","","0","","","","2","1","1","1","0","0","","","","","","DA5OMQDWOYI4TQDDU8TD895VD","","","","","","","0000","","","",10,"D4O21W1IBUB3HEML1KWP5YGOP","DEN03PYIT5FSSAA2U7ST53H15","Grade 9 - 15 P/T","0014","","S","","L","","","","","",null,null,null,null,null,null,9,"0ORGUNIT","0BUS_AREA","Business area","0000","X","0","0","0","","","","","0000","",null,null,null,null,null,11,"D4O2P4A3SHQXLSTQKRD8517ND","DA5ON71OOUJFCVWVIJIIPEUBD","","","","","","00","X","0","0","","",null,null,null,null,null,null,null,null,null,null,null,null,null,null,null,null,null,null,null,null,null,null,null,null,null,null,null,null,null,null,null,null,null,null,null,null,null,null,null,null,null,null,null,null,null,null,null,null,null,null,null,null,null,null,null,null,null,null,null,null,null,null,null,null,null,null,null,null,null,null,null,null,null,null,null,null,null,null,null,null,null,null,null,null,null,null,10,"0000000106",""]
[null,null,null,null,null,null,null,null,null,null,null,null,null,null,null,null,null,null,null,null,null,null,null,null,null,null,null,null,null,null,5,"0PERS_SAREA","Personnel Subarea","X","","","0004","","","","","","","U","1","03","","","","00000000","K","0PERS_SAREA","A","","","H","","","","","","00000000","0000","","0","","","","","1","1","1","0","0","","","","","","DA5OMQDWOYIWICP55S8ZAOK55","","","","","","","0000","","","",10,"D4O21W1IBUB3HEML1KWP5YGOP","D4O21W1IBUO63Y6HHRA4B87AX","Grade 9 - 15 Total","0015","","S","","L","","","","","",null,null,null,null,null,null,9,"0ORGUNIT","0COMP_CODE","Company code","0000","X","0","0","0","","","","","0000","",null,null,null,null,null,11,"D4O2P4A3SHQXLSTQKRD8517ND","DA5ON71OOUK71I8MU2Y4RU8L5","","","","","","00","X","0","0","","",null,null,null,null,null,null,null,null,null,null,null,null,null,null,null,null,null,null,null,null,null,null,null,null,null,null,null,null,null,null,null,null,null,null,null,null,null,null,null,null,null,null,null,null,null,null,null,null,null,null,null,null,null,null,null,null,null,null,null,null,null,null,null,null,null,null,null,null,null,null,null,null,null,null,null,null,null,null,null,null,null,null,null,null,null,null,10,"0000000112","0"]
[null,null,null,null,null,null,null,null,null,null,null,null,null,null,null,null,null,null,null,null,null,null,null,null,null,null,null,null,null,null,5,"ZTEILK","Checkbox for Part-Ti","X","","","0005","","","","","","","","1","03","","","","00000000","K","ZTEILK","A","","","H","","","","","","00000000","0000","","0","","","","","1","1","1","0","0","","","","","","DA5OMQDWOYJO6Z0WHBOLD3YEX","","","","","","","0000","","","",10,"D4O21W1IBUB3HEML1KWP5YGOP","D4O21W1IBUGH9QWWACXZMY8L5","ACZ Grade 9 - 15 F/T","0016","","S","","L","","","","","",null,null,null,null,null,null,9,"0ORGUNIT","0CO_MST_AR","Controlling Area of Master Cost Center","0000","X","0","0","0","","","","","0000","",null,null,null,null,null,11,"D4O2P4A3SHQXLSTQKRD8517ND","DA5ON71OOUKYQ4KE5MDQU9MUX","","","","","","00","X","0","0","","",null,null,null,null,null,null,null,null,null,null,null,null,null,null,null,null,null,null,null,null,null,null,null,null,null,null,null,null,null,null,null,null,null,null,null,null,null,null,null,null,null,null,null,null,null,null,null,null,null,null,null,null,null,null,null,null,null,null,null,null,null,null,null,null,null,null,null,null,null,null,null,null,null,null,null,null,null,null,null,null,null,null,null,null,null,null,10,"0000000200","X"]
[null,null,null,null,null,null,null,null,null,null,null,null,null,null,null,null,null,null,null,null,null,null,null,null,null,null,null,null,null,null,5,"ZPRIM_ID","ZPrimary Employee ID","X","","","0006","","","","","","","","2","03","","","","00000000","K","ZPRIM_ID","A","","","H","","","","","","00000000","0000","","0","","","","","1","1","1","0","0","","","","","","DA5OMQDWOYKFVLCNSV47FJCOP","","","","","","","0000","","","",10,"D4O21W1IBUB3HEML1KWP5YGOP","D4O21W1IBUNEFBUQ67UI8ST15","ACZ Grade 9 - 15 P/T","0017","","S","","L","","","","","",null,null,null,null,null,null,9,"0ORGUNIT","0CRMSALGRPX","Sls Group: Indicator","0000","X","2","0","0","","","","","0000","",null,null,null,null,null,11,"D4O2P4A3SHQXLSTQKRD8517ND","DA5ON71OOULQEQW5H5TCWP14P","","","","","","00","X","0","0","","",null,null,null,null,null,null,null,null,null,null,null,null,null,null,null,null,null,null,null,null,null,null,null,null,null,null,null,null,null,null,null,null,null,null,null,null,null,null,null,null,null,null,null,null,null,null,null,null,null,null,null,null,null,null,null,null,null,null,null,null,null,null,null,null,null,null,null,null,null,null,null,null,null,null,null,null,null,null,null,null,null,null,null,null,null,null,10,"0000004000","X"]
[null,null,null,null,null,null,null,null,null,null,null,null,null,null,null,null,null,null,null,null,null,null,null,null,null,null,null,null,null,null,5,"0CNTRCTTYPE","Contract Type","X","","","0007","","","","","","","","1","03","","","","00000000","K","0CNTRCTTYPE","A","","","H","","","","","","00000000","0000","","0","","","","","1","1","1","0","0","","","","","","DB0Z0NXRBHRCNXGYD9FB0EOZD","","","","","","","0000","","","",10,"D4O21W1IBUB3HEML1KWP5YGOP","DEN04FDC1K04NBJW47LA7T915","ACZ Grade 9 - 15 Total","0018","","S","","L","","","","","",null,null,null,null,null,null,9,"0ORGUNIT","0CRMSALOFFX","Sls Office:Indicator","0000","X","2","0","0","","","","","0000","",null,null,null,null,null,11,"D4O2P4A3SHQXLSTQKRD8517ND","DA5ON71OOUMI3D7WSP8YZ4FEH","","","","","","00","X","0","0","","",null,null,null,null,null,null,null,null,null,null,null,null,null,null,null,null,null,null,null,null,null,null,null,null,null,null,null,null,null,null,null,null,null,null,null,null,null,null,null,null,null,null,null,null,null,null,null,null,null,null,null,null,null,null,null,null,null,null,null,null,null,null,null,null,null,null,null,null,null,null,null,null,null,null,null,null,null,null,null,null,null,null,null,null,null,null,10,"0000009001","Workforce Profile Religion & Belief (2011) Revised"]
[null,null,null,null,null,null,null,null,null,null,null,null,null,null,null,null,null,null,null,null,null,null,null,null,null,null,null,null,null,null,5,"DA5ON71OOUHVZN9CVGNAKK1RT","Religion - Rev 2011","","X","X","0001","","","","","","","U","","00","","","","","K","DA5ON71OOUHVZN9CVGNAKK1RT","A","","","","","","","","","00000000","0000","X","0","","","","","0","0","0","0","0","","","","","","DA5ON71OOUHVZN9CVGNAKK1RT","","","","","","","0000","","","",10,"D4O21W1IBUB3HEML1KWP5YGOP","D4O21W1IBUWMMRRU0P1V1XKAH","Other (Not Migrated) F/T","0019","","F","","L","","","","","",null,null,null,null,null,null,9,"0ORGUNIT","0CRMSALORGX","Sales Org. Indicator","0000","X","2","0","0","","","","","0000","",null,null,null,null,null,11,"D4O2P4A3SHQXLSTQKRD8517ND","DA5ON71OOUN9RZJO48OL1JTO9","","","","","","00","X","0","0","","",null,null,null,null,null,null,null,null,null,null,null,null,null,null,null,null,null,null,null,null,null,null,null,null,null,null,null,null,null,null,null,null,null,null,null,null,null,null,null,null,null,null,null,null,null,null,null,null,null,null,null,null,null,null,null,null,null,null,null,null,null,null,null,null,null,null,null,null,null,null,null,null,null,null,null,null,null,null,null,null,null,null,null,null,null,null,10,"0000000114","1"]
[null,null,null,null,null,null,null,null,null,null,null,null,null,null,null,null,null,null,null,null,null,null,null,null,null,null,null,null,null,null,5,"D4O21W1IBUB3HEML1KWP5YGOP","WP Bandings","","X","Y","0001","","","","","","","U","","00","","","","","K","D4O21W1IBUB3HEML1KWP5YGOP","A","","","","","","","","","00000000","0000","","0","","","","","0","0","0","0","0","","","","","","D4O21W1IBUB3HEML1KWP5YGOP","","","","","","","0000","","","",10,"D4O21W1IBUB3HEML1KWP5YGOP","DEN07Y1DTSNAWTLQYCBLILED5","Other (Not Migrated) P/T","0020","","F","","L","","","","","",null,null,null,null,null,null,9,"0ORGUNIT","0CRMSRVTGRP","Ex. CRM Service Org.","0000","X","1","0","0","","","","","0000","",null,null,null,null,null,11,"D4O2P4A3SHQXLSTQKRD8517ND","DA5ON71OOUO1GLVFFS473Z7Y1","","","","","","00","X","0","0","","",null,null,null,null,null,null,null,null,null,null,null,null,null,null,null,null,null,null,null,null,null,null,null,null,null,null,null,null,null,null,null,null,null,null,null,null,null,null,null,null,null,null,null,null,null,null,null,null,null,null,null,null,null,null,null,null,null,null,null,null,null,null,null,null,null,null,null,null,null,null,null,null,null,null,null,null,null,null,null,null,null,null,null,null,null,null,9,"0000000107","DA5OMQDWOY9OAWS1BB1MHJSVT"]
[null,null,null,null,null,null,null,null,null,null,null,null,null,null,null,null,null,null,null,null,null,null,null,null,null,null,null,null,null,null,4,"0PAYRL_AREA","Payroll Area","X","","","0001","","","","","","","","0","03","","","","00000000","K","0PAYRL_AREA","A","","","H","","","","","","00000000","0000","","0","","","","","1","1","1","0","0","","","","","","DA5OMQDWOYGLGHPV75Y53EDBT","","","","","","","0000","","","",10,"D4O21W1IBUB3HEML1KWP5YGOP","DEN07Y1DTSPLYOL0WYMFPVL6H","Other (Not Migrated) Total","0021","","F","","L","","","","","",null,null,null,null,null,null,9,"0ORGUNIT","0CRM_SALGRP","CRM Sales Group","0000","X","1","0","0","","","","","0000","",null,null,null,null,null,11,"D4O2P4A3SHQXLSTQKRD8517ND","DA5ON71OOUOT5876RBJT6EM7T","","","","","","00","X","0","0","","",null,null,null,null,null,null,null,null,null,null,null,null,null,null,null,null,null,null,null,null,null,null,null,null,null,null,null,null,null,null,null,null,null,null,null,null,null,null,null,null,null,null,null,null,null,null,null,null,null,null,null,null,null,null,null,null,null,null,null,null,null,null,null,null,null,null,null,null,null,null,null,null,null,null,null,null,null,null,null,null,null,null,null,null,null,null,9,"0000000100","X"]
[null,null,null,null,null,null,null,null,null,null,null,null,null,null,null,null,null,null,null,null,null,null,null,null,null,null,null,null,null,null,4,"ZPERSAREA","ZPersonal Area","X","","","0002","","Social Work","","","","","","2","03","","","","00000000","K","ZPERSAREA","A","","","H","","","","","","00000000","0000","","0","","1","","","1","1","1","0","0","","","","","","DA5OMQDWOYHD541MIPDR5TRLL","","","","","","","0000","","","",10,"D4O21W1IBUB3HEML1KWP5YGOP","D4O21W1IBUY600FCNRX36SCU1","Total Teaching Staff F/T","0022","","S","","L","","","","","",null,null,null,null,null,null,9,"0ORGUNIT","0CRM_SALOFF","CRM Sales Office","0000","X","1","0","0","","","","","0000","",null,null,null,null,null,11,"D4O2P4A3SHQXLSTQKRD8517ND","DA5ON71OOUPKTUIY2UZF8U0HL","","","","","","00","X","0","0","","",null,null,null,null,null,null,null,null,null,null,null,null,null,null,null,null,null,null,null,null,null,null,null,null,null,null,null,null,null,null,null,null,null,null,null,null,null,null,null,null,null,null,null,null,null,null,null,null,null,null,null,null,null,null,null,null,null,null,null,null,null,null,null,null,null,null,null,null,null,null,null,null,null,null,null,null,null,null,null,null,null,null,null,null,null,null,9,"0000000101",""]
[null,null,null,null,null,null,null,null,null,null,null,null,null,null,null,null,null,null,null,null,null,null,null,null,null,null,null,null,null,null,4,"0ORGUNIT","Organizational Unit","X","","","0003","","","","","","","","1","03","X","ORGEH","000","20150930","K","0ORGUNIT","A","","","H","0ORGUNIT","A","","","","00000000","0000","","0","","","","2","1","1","1","0","0","","","","","","DA5OMQDWOYI4TQDDU8TD895VD","","","","","","","0000","","","",10,"D4O21W1IBUB3HEML1KWP5YGOP","DEN0OSIFULCZTDTFE8U7RBQIH","Total Teaching Staff P/T","0023","","S","","L","","","","","",null,null,null,null,null,null,9,"0ORGUNIT","0CRM_SALORG","CRM Sales Org.","0000","X","1","0","0","","","","","0000","",null,null,null,null,null,11,"D4O2P4A3SHQXLSTQKRD8517ND","DA5ON71OOUQCIGUPEEF1B9ERD","","","","","","00","X","0","0","","",null,null,null,null,null,null,null,null,null,null,null,null,null,null,null,null,null,null,null,null,null,null,null,null,null,null,null,null,null,null,null,null,null,null,null,null,null,null,null,null,null,null,null,null,null,null,null,null,null,null,null,null,null,null,null,null,null,null,null,null,null,null,null,null,null,null,null,null,null,null,null,null,null,null,null,null,null,null,null,null,null,null,null,null,null,null,9,"0000000104","1"]
[null,null,null,null,null,null,null,null,null,null,null,null,null,null,null,null,null,null,null,null,null,null,null,null,null,null,null,null,null,null,4,"0PERS_SAREA","Personnel Subarea","X","","","0004","","","","","","","U","1","03","","","","00000000","K","0PERS_SAREA","A","","","H","","","","","","00000000","0000","","0","","","","","1","1","1","0","0","","","","","","DA5OMQDWOYIWICP55S8ZAOK55","","","","","","","0000","","","",10,"D4O21W1IBUB3HEML1KWP5YGOP","DEN0OSIFULDRI056PS9TTR4S9","Total Teaching Staff","0024","","S","","L","","","","","",null,null,null,null,null,null,9,"0ORGUNIT","0CRM_SRVORG","Service Org. CRM","0000","X","1","0","0","","","","","0000","",null,null,null,null,null,11,"D4O2P4A3SHU0CA4RUX3OEQSQH","DA5ON71OOUINO9L4702WMZG1L","","0","","","","00","X","0","0","","",null,null,null,null,null,null,null,null,null,null,null,null,null,null,null,null,null,null,null,null,null,null,null,null,null,null,null,null,null,null,null,null,null,null,null,null,null,null,null,null,null,null,null,null,null,null,null,null,null,null,null,null,null,null,null,null,null,null,null,null,null,null,null,null,null,null,null,null,null,null,null,null,null,null,null,null,null,null,null,null,null,null,null,null,null,null,9,"0000000103",""]
[null,null,null,null,null,null,null,null,null,null,null,null,null,null,null,null,null,null,null,null,null,null,null,null,null,null,null,null,null,null,4,"ZTEILK","Checkbox for Part-Ti","X","","","0005","","","","","","","","1","03","","","","00000000","K","ZTEILK","A","","","H","","","","","","00000000","0000","","0","","","","","1","1","1","0","0","","","","","","DA5OMQDWOYJO6Z0WHBOLD3YEX","","","","","","","0000","","","",10,"D4O21W1IBUB3HEML1KWP5YGOP","DEN0OSIFULEJ6MGY1BPFW6J21","Total Non-Teaching Staff F/T","0025","","S","","L","","","","","",null,null,null,null,null,null,9,"0ORGUNIT","0LOGSYS","Source System","0000","X","1","0","0","","","","","0000","",null,null,null,null,null,11,"D4O2P4A3SHU0CA4RUX3OEQSQH","DA5ON71OOUJFCVWVIJIIPEUBD","","0","","","","00","X","0","0","","",null,null,null,null,null,null,null,null,null,null,null,null,null,null,null,null,null,null,null,null,null,null,null,null,null,null,null,null,null,null,null,null,null,null,null,null,null,null,null,null,null,null,null,null,null,null,null,null,null,null,null,null,null,null,null,null,null,null,null,null,null,null,null,null,null,null,null,null,null,null,null,null,null,null,null,null,null,null,null,null,null,null,null,null,null,null,9,"0000000102","1"]
[null,null,null,null,null,null,null,null,null,null,null,null,null,null,null,null,null,null,null,null,null,null,null,null,null,null,null,null,null,null,4,"ZPRIM_ID","ZPrimary Employee ID","X","","","0006","","","","","","","","2","03","","","","00000000","K","ZPRIM_ID","A","","","H","","","","","","00000000","0000","","0","","","","","1","1","1","0","0","","","","","","DA5OMQDWOYKFVLCNSV47FJCOP","","","","","","","0000","","","",10,"D4O21W1IBUB3HEML1KWP5YGOP","DEN07Y1DTSOUA299LF6TNG6WP","Total Non-Teaching Staff P/T","0026","","S","","L","","","","","",null,null,null,null,null,null,9,"0ORGUNIT","0MAST_CCTR","Master Cost Center","0000","X","0","0","0","","","","","0000","",null,null,null,null,null,11,"D4O2P4A3SHU0CA4RUX3OEQSQH","DA5ON71OOUK71I8MU2Y4RU8L5","","0","","","","00","X","0","0","","",null,null,null,null,null,null,null,null,null,null,null,null,null,null,null,null,null,null,null,null,null,null,null,null,null,null,null,null,null,null,null,null,null,null,null,null,null,null,null,null,null,null,null,null,null,null,null,null,null,null,null,null,null,null,null,null,null,null,null,null,null,null,null,null,null,null,null,null,null,null,null,null,null,null,null,null,null,null,null,null,null,null,null,null,null,null,9,"0000000108",""]
[null,null,null,null,null,null,null,null,null,null,null,null,null,null,null,null,null,null,null,null,null,null,null,null,null,null,null,null,null,null,4,"0CNTRCTTYPE","Contract Type","X","","","0007","","","","","","","","1","03","","","","00000000","K","0CNTRCTTYPE","A","","","H","","","","","","00000000","0000","","0","","","","","1","1","1","0","0","","","","","","DB0Z0NXRBHRCNXGYD9FB0EOZD","","","","","","","0000","","","",10,"D4O21W1IBUB3HEML1KWP5YGOP","DEN07Y1DTSR5BX8JK1HNUQDQ1","Total Non-Teaching Staff","0027","","S","","L","","","","","",null,null,null,null,null,null,9,"0ORGUNIT","0PERS_AREA","Personnel Area","0000","X","1","0","0","","","","","0000","",null,null,null,null,null,11,"D4O2P4A3SHU0CA4RUX3OEQSQH","DA5ON71OOUKYQ4KE5MDQU9MUX","","0","","","","00","X","0","0","","",null,null,null,null,null,null,null,null,null,null,null,null,null,null,null,null,null,null,null,null,null,null,null,null,null,null,null,null,null,null,null,null,null,null,null,null,null,null,null,null,null,null,null,null,null,null,null,null,null,null,null,null,null,null,null,null,null,null,null,null,null,null,null,null,null,null,null,null,null,null,null,null,null,null,null,null,null,null,null,null,null,null,null,null,null,null,9,"0000009002","D4O21W1IBUB3HEML1KWP5YGOP"]
[null,null,null,null,null,null,null,null,null,null,null,null,null,null,null,null,null,null,null,null,null,null,null,null,null,null,null,null,null,null,4,"DA5ON71OOUHVZN9CVGNAKK1RT","Religion - Rev 2011","","X","X","0001","","","","","","","U","","00","","","","","K","DA5ON71OOUHVZN9CVGNAKK1RT","A","","","","","","","","","00000000","0000","X","0","","","","","0","0","0","0","0","","","","","","DA5ON71OOUHVZN9CVGNAKK1RT","","","","","","","0000","","","",10,"D4O21W1IBUB3HEML1KWP5YGOP","D4O21W1IBUXEBE3LC8HH4CYK9","Total - All WPBR Grades F/T","0028","","F","","L","","","","","",null,null,null,null,null,null,9,"0ORGUNIT","0PERS_SAREA","Personnel Subarea","0000","X","1","0","0","","","","","0000","",null,null,null,null,null,11,"D4O2P4A3SHU0CA4RUX3OEQSQH","DA5ON71OOULQEQW5H5TCWP14P","","0","","","","00","X","0","0","","",null,null,null,null,null,null,null,null,null,null,null,null,null,null,null,null,null,null,null,null,null,null,null,null,null,null,null,null,null,null,null,null,null,null,null,null,null,null,null,null,null,null,null,null,null,null,null,null,null,null,null,null,null,null,null,null,null,null,null,null,null,null,null,null,null,null,null,null,null,null,null,null,null,null,null,null,null,null,null,null,null,null,null,null,null,null,9,"0000009000",""]
[null,null,null,null,null,null,null,null,null,null,null,null,null,null,null,null,null,null,null,null,null,null,null,null,null,null,null,null,null,null,4,"D4O21W1IBUB3HEML1KWP5YGOP","WP Bandings","","X","Y","0001","","","","","","","U","","00","","","","","K","D4O21W1IBUB3HEML1KWP5YGOP","A","","","","","","","","","00000000","0000","","0","","","","","0","0","0","0","0","","","","","","D4O21W1IBUB3HEML1KWP5YGOP","","","","","","","0000","","","",10,"D4O21W1IBUB3HEML1KWP5YGOP","DEN07Y1DTSO2LFXI9VR7L0SMX","Total - All WPBR Grades P/T","0029","","F","","L","","","","","",null,null,null,null,null,null,9,"0ORGUNIT","0PLANT","Plant","0000","X","0","0","0","","","","","0000","",null,null,null,null,null,11,"D4O2P4A3SHU0CA4RUX3OEQSQH","DA5ON71OOUMI3D7WSP8YZ4FEH","","0","","","","00","X","0","0","","",null,null,null,null,null,null,null,null,null,null,null,null,null,null,null,null,null,null,null,null,null,null,null,null,null,null,null,null,null,null,null,null,null,null,null,null,null,null,null,null,null,null,null,null,null,null,null,null,null,null,null,null,null,null,null,null,null,null,null,null,null,null,null,null,null,null,null,null,null,null,null,null,null,null,null,null,null,null,null,null,null,null,null,null,null,null,9,"0000000010",""]
[null,null,null,null,null,null,null,null,null,null,null,null,null,null,null,null,null,null,null,null,null,null,null,null,null,null,null,null,null,null,null,null,null,null,null,null,null,null,null,null,null,null,null,null,null,null,null,null,null,null,null,null,null,null,null,null,null,null,null,null,null,null,null,null,null,null,null,null,null,null,null,null,null,null,null,null,null,null,null,null,null,null,null,null,null,null,null,null,null,null,10,"D4O21W1IBUB3HEML1KWP5YGOP","DEN07Y1DTSQDNAWS8I21SAZG9","Total Workforce - All WPBR Grades","0030","","F","","L","","","","","",null,null,null,null,null,null,9,"0ORGUNIT","0PURCH_ORG","Purchasing org.","0000","X","0","0","0","","","","","0000","",null,null,null,null,null,11,"D4O2P4A3SHU0CA4RUX3OEQSQH","DA5ON71OOUN9RZJO48OL1JTO9","","0","","","","00","X","0","0","","",null,null,null,null,null,null,null,null,null,null,null,null,null,null,null,null,null,null,null,null,null,null,null,null,null,null,null,null,null,null,null,null,null,null,null,null,null,null,null,null,null,null,null,null,null,null,null,null,null,null,null,null,null,null,null,null,null,null,null,null,null,null,null,null,null,null,null,null,null,null,null,null,null,null,null,null,null,null,null,null,null,null,null,null,null,null,9,"0000000021",""]
[null,null,null,null,null,null,null,null,null,null,null,null,null,null,null,null,null,null,null,null,null,null,null,null,null,null,null,null,null,null,null,null,null,null,null,null,null,null,null,null,null,null,null,null,null,null,null,null,null,null,null,null,null,null,null,null,null,null,null,null,null,null,null,null,null,null,null,null,null,null,null,null,null,null,null,null,null,null,null,null,null,null,null,null,null,null,null,null,null,null,10,"D4O21W1IBUB3HEML1KWP5YGOP","D4O21W1IBV8XKOZZ5BZO4RWMX","Total Workforce (All) F/T","0031","","S","","L","","","","","",null,null,null,null,null,null,9,"0ORGUNIT","0PUR_GROUP","Purchasing group","0000","X","0","0","0","","","","","0000","",null,null,null,null,null,11,"D4O2P4A3SHU0CA4RUX3OEQSQH","DA5ON71OOUO1GLVFFS473Z7Y1","","0","","","","00","X","0","0","","",null,null,null,null,null,null,null,null,null,null,null,null,null,null,null,null,null,null,null,null,null,null,null,null,null,null,null,null,null,null,null,null,null,null,null,null,null,null,null,null,null,null,null,null,null,null,null,null,null,null,null,null,null,null,null,null,null,null,null,null,null,null,null,null,null,null,null,null,null,null,null,null,null,null,null,null,null,null,null,null,null,null,null,null,null,null,9,"0000000022",""]
[null,null,null,null,null,null,null,null,null,null,null,null,null,null,null,null,null,null,null,null,null,null,null,null,null,null,null,null,null,null,null,null,null,null,null,null,null,null,null,null,null,null,null,null,null,null,null,null,null,null,null,null,null,null,null,null,null,null,null,null,null,null,null,null,null,null,null,null,null,null,null,null,null,null,null,null,null,null,null,null,null,null,null,null,null,null,null,null,null,null,10,"D4O21W1IBUB3HEML1KWP5YGOP","DEN07Y1DTSRX0JKAVKX9X5RZT","Total Workforce (All) P/T","0032","","S","","L","","","","","",null,null,null,null,null,null,9,"0ORGUNIT","0SALESORG","Sales Organization","0000","X","0","0","0","","","","","0000","",null,null,null,null,null,11,"D4O2P4A3SHU0CA4RUX3OEQSQH","DA5ON71OOUOT5876RBJT6EM7T","","0","","","","00","X","0","0","","",null,null,null,null,null,null,null,null,null,null,null,null,null,null,null,null,null,null,null,null,null,null,null,null,null,null,null,null,null,null,null,null,null,null,null,null,null,null,null,null,null,null,null,null,null,null,null,null,null,null,null,null,null,null,null,null,null,null,null,null,null,null,null,null,null,null,null,null,null,null,null,null,null,null,null,null,null,null,null,null,null,null,null,null,null,null,9,"0000000023",""]
[null,null,null,null,null,null,null,null,null,null,null,null,null,null,null,null,null,null,null,null,null,null,null,null,null,null,null,null,null,null,null,null,null,null,null,null,null,null,null,null,null,null,null,null,null,null,null,null,null,null,null,null,null,null,null,null,null,null,null,null,null,null,null,null,null,null,null,null,null,null,null,null,null,null,null,null,null,null,null,null,null,null,null,null,null,null,null,null,null,null,10,"D4O21W1IBUB3HEML1KWP5YGOP","DEN07Y1DTSSOP5W274CVZL69L","Total Workforce (All)","0033","","S","","L","","","","","",null,null,null,null,null,null,9,"0ORGUNIT","0SALES_GRP","Sales group","0000","X","0","0","0","","","","","0000","",null,null,null,null,null,11,"D4O2P4A3SHU0CA4RUX3OEQSQH","DA5ON71OOUPKTUIY2UZF8U0HL","","0","","","","00","X","0","0","","",null,null,null,null,null,null,null,null,null,null,null,null,null,null,null,null,null,null,null,null,null,null,null,null,null,null,null,null,null,null,null,null,null,null,null,null,null,null,null,null,null,null,null,null,null,null,null,null,null,null,null,null,null,null,null,null,null,null,null,null,null,null,null,null,null,null,null,null,null,null,null,null,null,null,null,null,null,null,null,null,null,null,null,null,null,null,9,"0000000030",""]
[null,null,null,null,null,null,null,null,null,null,null,null,null,null,null,null,null,null,null,null,null,null,null,null,null,null,null,null,null,null,null,null,null,null,null,null,null,null,null,null,null,null,null,null,null,null,null,null,null,null,null,null,null,null,null,null,null,null,null,null,null,null,null,null,null,null,null,null,null,null,null,null,null,null,null,null,null,null,null,null,null,null,null,null,null,null,null,null,null,null,9,"D4O21W1IBUB3HEML1KWP5YGOP","D4O21W1IBUDEJ9LV077JD8NI1","Grade 1 - 4 F/T","0001","","S","","L","","","","","",null,null,null,null,null,null,9,"0ORGUNIT","0SALES_OFF","Sales Office","0000","X","0","0","0","","","","","0000","",null,null,null,null,null,11,"D4O2P4A3SHU0CA4RUX3OEQSQH","DA5ON71OOUQCIGUPEEF1B9ERD","","0","","","","00","X","0","0","","",null,null,null,null,null,null,null,null,null,null,null,null,null,null,null,null,null,null,null,null,null,null,null,null,null,null,null,null,null,null,null,null,null,null,null,null,null,null,null,null,null,null,null,null,null,null,null,null,null,null,null,null,null,null,null,null,null,null,null,null,null,null,null,null,null,null,null,null,null,null,null,null,null,null,null,null,null,null,null,null,null,null,null,null,null,null,9,"0000000040",""]
[null,null,null,null,null,null,null,null,null,null,null,null,null,null,null,null,null,null,null,null,null,null,null,null,null,null,null,null,null,null,null,null,null,null,null,null,null,null,null,null,null,null,null,null,null,null,null,null,null,null,null,null,null,null,null,null,null,null,null,null,null,null,null,null,null,null,null,null,null,null,null,null,null,null,null,null,null,null,null,null,null,null,null,null,null,null,null,null,null,null,9,"DA5ON71OOUHVZN9CVGNAKK1RT","DA5ON71OOUINO9L4702WMZG1L","Buddhist","0001","","S","","L","X","","","","",null,null,null,null,null,null,9,"0CNTRCTTYPE","0CNTRCTISFT","Fixed-Term Contract","0000","X","2","0","0","","","","","0000","",null,null,null,null,null,11,"DEN9FTLAHPZM13J0WXXO1VFND","DA5ON71OOUINO9L4702WMZG1L","","","","","","00","X","0","0","","",null,null,null,null,null,null,null,null,null,null,null,null,null,null,null,null,null,null,null,null,null,null,null,null,null,null,null,null,null,null,null,null,null,null,null,null,null,null,null,null,null,null,null,null,null,null,null,null,null,null,null,null,null,null,null,null,null,null,null,null,null,null,null,null,null,null,null,null,null,null,null,null,null,null,null,null,null,null,null,null,null,null,null,null,null,null,9,"0000000041",""]
[null,null,null,null,null,null,null,null,null,null,null,null,null,null,null,null,null,null,null,null,null,null,null,null,null,null,null,null,null,null,null,null,null,null,null,null,null,null,null,null,null,null,null,null,null,null,null,null,null,null,null,null,null,null,null,null,null,null,null,null,null,null,null,null,null,null,null,null,null,null,null,null,null,null,null,null,null,null,null,null,null,null,null,null,null,null,null,null,null,null,9,"DA5ON71OOUHVZN9CVGNAKK1RT","DA5ON71OOUJFCVWVIJIIPEUBD","Church of Scotland","0002","","S","","L","X","","","","",null,null,null,null,null,null,8,"0ORGUNIT","0BBPPURGRPX","Ind.Purchasing Group","0000","X","2","0","0","","","","","0000","",null,null,null,null,null,11,"DEN9FTLAHPZM13J0WXXO1VFND","DA5ON71OOUJFCVWVIJIIPEUBD","","","","","","00","X","0","0","","",null,null,null,null,null,null,null,null,null,null,null,null,null,null,null,null,null,null,null,null,null,null,null,null,null,null,null,null,null,null,null,null,null,null,null,null,null,null,null,null,null,null,null,null,null,null,null,null,null,null,null,null,null,null,null,null,null,null,null,null,null,null,null,null,null,null,null,null,null,null,null,null,null,null,null,null,null,null,null,null,null,null,null,null,null,null,9,"0000000042","0"]
[null,null,null,null,null,null,null,null,null,null,null,null,null,null,null,null,null,null,null,null,null,null,null,null,null,null,null,null,null,null,null,null,null,null,null,null,null,null,null,null,null,null,null,null,null,null,null,null,null,null,null,null,null,null,null,null,null,null,null,null,null,null,null,null,null,null,null,null,null,null,null,null,null,null,null,null,null,null,null,null,null,null,null,null,null,null,null,null,null,null,9,"D4O21W1IBUB3HEML1KWP5YGOP","D4O21W1IBUKBOUJOW241Z37Y1","Grade 1 - 4 P/T","0002","","S","","L","","","","","",null,null,null,null,null,null,8,"0ORGUNIT","0BBPPURORGX","Ind. Purchasing Org.","0000","X","2","0","0","","","","","0000","",null,null,null,null,null,11,"DEN9FTLAHPZM13J0WXXO1VFND","DA5ON71OOUK71I8MU2Y4RU8L5","","","","","","00","X","0","0","","",null,null,null,null,null,null,null,null,null,null,null,null,null,null,null,null,null,null,null,null,null,null,null,null,null,null,null,null,null,null,null,null,null,null,null,null,null,null,null,null,null,null,null,null,null,null,null,null,null,null,null,null,null,null,null,null,null,null,null,null,null,null,null,null,null,null,null,null,null,null,null,null,null,null,null,null,null,null,null,null,null,null,null,null,null,null,9,"0000000043","0"]
[null,null,null,null,null,null,null,null,null,null,null,null,null,null,null,null,null,null,null,null,null,null,null,null,null,null,null,null,null,null,null,null,null,null,null,null,null,null,null,null,null,null,null,null,null,null,null,null,null,null,null,null,null,null,null,null,null,null,null,null,null,null,null,null,null,null,null,null,null,null,null,null,null,null,null,null,null,null,null,null,null,null,null,null,null,null,null,null,null,null,9,"DA5ON71OOUHVZN9CVGNAKK1RT","DA5ON71OOUK71I8MU2Y4RU8L5","Hindu","0003","","S","","L","X","","","","",null,null,null,null,null,null,8,"0ORGUNIT","0BBP_BUYID","Buyer ID","0000","X","5","0","0","","","","","0000","",null,null,null,null,null,11,"DEN9FTLAHPZM13J0WXXO1VFND","DA5ON71OOUKYQ4KE5MDQU9MUX","","","","","","00","X","0","0","","",null,null,null,null,null,null,null,null,null,null,null,null,null,null,null,null,null,null,null,null,null,null,null,null,null,null,null,null,null,null,null,null,null,null,null,null,null,null,null,null,null,null,null,null,null,null,null,null,null,null,null,null,null,null,null,null,null,null,null,null,null,null,null,null,null,null,null,null,null,null,null,null,null,null,null,null,null,null,null,null,null,null,null,null,null,null,9,"0000000109","0"]
[null,null,null,null,null,null,null,null,null,null,null,null,null,null,null,null,null,null,null,null,null,null,null,null,null,null,null,null,null,null,null,null,null,null,null,null,null,null,null,null,null,null,null,null,null,null,null,null,null,null,null,null,null,null,null,null,null,null,null,null,null,null,null,null,null,null,null,null,null,null,null,null,null,null,null,null,null,null,null,null,null,null,null,null,null,null,null,null,null,null,9,"D4O21W1IBUB3HEML1KWP5YGOP","DEMAFDB5LZ4S252XBVM7GJP4P","Grade 1 - 4 Total","0003","","S","","L","","","","","",null,null,null,null,null,null,8,"0ORGUNIT","0BBP_ISCOMP","Organizational Unit is Company","0000","X","1","0","0","","","","","0000","",null,null,null,null,null,11,"DEN9FTLAHPZM13J0WXXO1VFND","DA5ON71OOULQEQW5H5TCWP14P","","","","","","00","X","0","0","","",null,null,null,null,null,null,null,null,null,null,null,null,null,null,null,null,null,null,null,null,null,null,null,null,null,null,null,null,null,null,null,null,null,null,null,null,null,null,null,null,null,null,null,null,null,null,null,null,null,null,null,null,null,null,null,null,null,null,null,null,null,null,null,null,null,null,null,null,null,null,null,null,null,null,null,null,null,null,null,null,null,null,null,null,null,null,9,"0000000113",""]
[null,null,null,null,null,null,null,null,null,null,null,null,null,null,null,null,null,null,null,null,null,null,null,null,null,null,null,null,null,null,null,null,null,null,null,null,null,null,null,null,null,null,null,null,null,null,null,null,null,null,null,null,null,null,null,null,null,null,null,null,null,null,null,null,null,null,null,null,null,null,null,null,null,null,null,null,null,null,null,null,null,null,null,null,null,null,null,null,null,null,9,"D4O21W1IBUB3HEML1KWP5YGOP","D4O21W1IBUE67VXMBQN5FO1RT","Grade 5 - 7 F/T","0004","","S","","L","","","","","",null,null,null,null,null,null,8,"0ORGUNIT","0BUS_AREA","Business area","0000","X","0","0","0","","","","","0000","",null,null,null,null,null,11,"DEN9FTLAHPZM13J0WXXO1VFND","DA5ON71OOUMI3D7WSP8YZ4FEH","","","","","","00","X","0","0","","",null,null,null,null,null,null,null,null,null,null,null,null,null,null,null,null,null,null,null,null,null,null,null,null,null,null,null,null,null,null,null,null,null,null,null,null,null,null,null,null,null,null,null,null,null,null,null,null,null,null,null,null,null,null,null,null,null,null,null,null,null,null,null,null,null,null,null,null,null,null,null,null,null,null,null,null,null,null,null,null,null,null,null,null,null,null,9,"0000000120",""]
[null,null,null,null,null,null,null,null,null,null,null,null,null,null,null,null,null,null,null,null,null,null,null,null,null,null,null,null,null,null,null,null,null,null,null,null,null,null,null,null,null,null,null,null,null,null,null,null,null,null,null,null,null,null,null,null,null,null,null,null,null,null,null,null,null,null,null,null,null,null,null,null,null,null,null,null,null,null,null,null,null,null,null,null,null,null,null,null,null,null,9,"DA5ON71OOUHVZN9CVGNAKK1RT","DA5ON71OOUKYQ4KE5MDQU9MUX","Jewish","0004","","S","","L","X","","","","",null,null,null,null,null,null,8,"0ORGUNIT","0COMP_CODE","Company code","0000","X","0","0","0","","","","","0000","",null,null,null,null,null,11,"DEN9FTLAHPZM13J0WXXO1VFND","DA5ON71OOUN9RZJO48OL1JTO9","","","","","","00","X","0","0","","",null,null,null,null,null,null,null,null,null,null,null,null,null,null,null,null,null,null,null,null,null,null,null,null,null,null,null,null,null,null,null,null,null,null,null,null,null,null,null,null,null,null,null,null,null,null,null,null,null,null,null,null,null,null,null,null,null,null,null,null,null,null,null,null,null,null,null,null,null,null,null,null,null,null,null,null,null,null,null,null,null,null,null,null,null,null,9,"0000000121",""]
[null,null,null,null,null,null,null,null,null,null,null,null,null,null,null,null,null,null,null,null,null,null,null,null,null,null,null,null,null,null,null,null,null,null,null,null,null,null,null,null,null,null,null,null,null,null,null,null,null,null,null,null,null,null,null,null,null,null,null,null,null,null,null,null,null,null,null,null,null,null,null,null,null,null,null,null,null,null,null,null,null,null,null,null,null,null,null,null,null,null,9,"D4O21W1IBUB3HEML1KWP5YGOP","D4O21W1IBUL3DGVG7LJO1IM7T","Grade 5 - 7 P/T","0005","","S","","L","","","","","",null,null,null,null,null,null,8,"0ORGUNIT","0CO_MST_AR","Controlling Area of Master Cost Center","0000","X","0","0","0","","","","","0000","",null,null,null,null,null,11,"DEN9FTLAHPZM13J0WXXO1VFND","DA5ON71OOUO1GLVFFS473Z7Y1","","","","","","00","X","0","0","","",null,null,null,null,null,null,null,null,null,null,null,null,null,null,null,null,null,null,null,null,null,null,null,null,null,null,null,null,null,null,null,null,null,null,null,null,null,null,null,null,null,null,null,null,null,null,null,null,null,null,null,null,null,null,null,null,null,null,null,null,null,null,null,null,null,null,null,null,null,null,null,null,null,null,null,null,null,null,null,null,null,null,null,null,null,null,9,"0000010001","DA5OMQDWOYLZ8U06FXZFKE589"]
[null,null,null,null,null,null,null,null,null,null,null,null,null,null,null,null,null,null,null,null,null,null,null,null,null,null,null,null,null,null,null,null,null,null,null,null,null,null,null,null,null,null,null,null,null,null,null,null,null,null,null,null,null,null,null,null,null,null,null,null,null,null,null,null,null,null,null,null,null,null,null,null,null,null,null,null,null,null,null,null,null,null,null,null,null,null,null,null,null,null,9,"DA5ON71OOUHVZN9CVGNAKK1RT","DA5ON71OOULQEQW5H5TCWP14P","Muslim","0005","","S","","L","X","","","","",null,null,null,null,null,null,8,"0ORGUNIT","0CRMSALGRPX","Sls Group: Indicator","0000","X","2","0","0","","","","","0000","",null,null,null,null,null,11,"DEN9FTLAHPZM13J0WXXO1VFND","DA5ON71OOUOT5876RBJT6EM7T","","","","","","00","X","0","0","","",null,null,null,null,null,null,null,null,null,null,null,null,null,null,null,null,null,null,null,null,null,null,null,null,null,null,null,null,null,null,null,null,null,null,null,null,null,null,null,null,null,null,null,null,null,null,null,null,null,null,null,null,null,null,null,null,null,null,null,null,null,null,null,null,null,null,null,null,null,null,null,null,null,null,null,null,null,null,null,null,null,null,null,null,null,null,9,"0000010002","DA5OMQDWOY9OAWS1BB1MHJSVT"]
[null,null,null,null,null,null,null,null,null,null,null,null,null,null,null,null,null,null,null,null,null,null,null,null,null,null,null,null,null,null,null,null,null,null,null,null,null,null,null,null,null,null,null,null,null,null,null,null,null,null,null,null,null,null,null,null,null,null,null,null,null,null,null,null,null,null,null,null,null,null,null,null,null,null,null,null,null,null,null,null,null,null,null,null,null,null,null,null,null,null,9,"D4O21W1IBUB3HEML1KWP5YGOP","DEMAGSP8VDTMCQ2Z9KSRG7UGP","Grade 5 - 7 Total","0006","","S","","L","","","","","",null,null,null,null,null,null,8,"0ORGUNIT","0CRMSALOFFX","Sls Office:Indicator","0000","X","2","0","0","","","","","0000","",null,null,null,null,null,11,"DEN9FTLAHPZM13J0WXXO1VFND","DA5ON71OOUPKTUIY2UZF8U0HL","","","","","","00","X","0","0","","",null,null,null,null,null,null,null,null,null,null,null,null,null,null,null,null,null,null,null,null,null,null,null,null,null,null,null,null,null,null,null,null,null,null,null,null,null,null,null,null,null,null,null,null,null,null,null,null,null,null,null,null,null,null,null,null,null,null,null,null,null,null,null,null,null,null,null,null,null,null,null,null,null,null,null,null,null,null,null,null,null,null,null,null,null,null,9,"0000000105",""]
[null,null,null,null,null,null,null,null,null,null,null,null,null,null,null,null,null,null,null,null,null,null,null,null,null,null,null,null,null,null,null,null,null,null,null,null,null,null,null,null,null,null,null,null,null,null,null,null,null,null,null,null,null,null,null,null,null,null,null,null,null,null,null,null,null,null,null,null,null,null,null,null,null,null,null,null,null,null,null,null,null,null,null,null,null,null,null,null,null,null,9,"DA5ON71OOUHVZN9CVGNAKK1RT","DA5ON71OOUMI3D7WSP8YZ4FEH","Other Christian","0006","","S","","L","X","","","","",null,null,null,null,null,null,8,"0ORGUNIT","0CRMSALORGX","Sales Org. Indicator","0000","X","2","0","0","","","","","0000","",null,null,null,null,null,11,"DEN9FTLAHPZM13J0WXXO1VFND","DA5ON71OOUQCIGUPEEF1B9ERD","","","","","","00","X","0","0","","",null,null,null,null,null,null,null,null,null,null,null,null,null,null,null,null,null,null,null,null,null,null,null,null,null,null,null,null,null,null,null,null,null,null,null,null,null,null,null,null,null,null,null,null,null,null,null,null,null,null,null,null,null,null,null,null,null,null,null,null,null,null,null,null,null,null,null,null,null,null,null,null,null,null,null,null,null,null,null,null,null,null,null,null,null,null,9,"0000000106",""]
[null,null,null,null,null,null,null,null,null,null,null,null,null,null,null,null,null,null,null,null,null,null,null,null,null,null,null,null,null,null,null,null,null,null,null,null,null,null,null,null,null,null,null,null,null,null,null,null,null,null,null,null,null,null,null,null,null,null,null,null,null,null,null,null,null,null,null,null,null,null,null,null,null,null,null,null,null,null,null,null,null,null,null,null,null,null,null,null,null,null,9,"D4O21W1IBUB3HEML1KWP5YGOP","D4O21W1IBUEXWI9DNA2RI3G1L","Grade 8 F/T","0007","","S","","L","","","","","",null,null,null,null,null,null,8,"0ORGUNIT","0CRMSRVTGRP","Ex. CRM Service Org.","0000","X","1","0","0","","","","","0000","",null,null,null,null,null,11,"DEN9FTLAHQ0DPPUS8HDA4ATX5","DA5ON71OOUINO9L4702WMZG1L","","","","","","00","X","0","0","","",null,null,null,null,null,null,null,null,null,null,null,null,null,null,null,null,null,null,null,null,null,null,null,null,null,null,null,null,null,null,null,null,null,null,null,null,null,null,null,null,null,null,null,null,null,null,null,null,null,null,null,null,null,null,null,null,null,null,null,null,null,null,null,null,null,null,null,null,null,null,null,null,null,null,null,null,null,null,null,null,null,null,null,null,null,null,9,"0000000112","0"]
[null,null,null,null,null,null,null,null,null,null,null,null,null,null,null,null,null,null,null,null,null,null,null,null,null,null,null,null,null,null,null,null,null,null,null,null,null,null,null,null,null,null,null,null,null,null,null,null,null,null,null,null,null,null,null,null,null,null,null,null,null,null,null,null,null,null,null,null,null,null,null,null,null,null,null,null,null,null,null,null,null,null,null,null,null,null,null,null,null,null,9,"DA5ON71OOUHVZN9CVGNAKK1RT","DA5ON71OOUN9RZJO48OL1JTO9","Roman Catholic","0007","","S","","L","X","","","","",null,null,null,null,null,null,8,"0ORGUNIT","0CRM_SALGRP","CRM Sales Group","0000","X","1","0","0","","","","","0000","",null,null,null,null,null,11,"DEN9FTLAHQ0DPPUS8HDA4ATX5","DA5ON71OOUJFCVWVIJIIPEUBD","","","","","","00","X","0","0","","",null,null,null,null,null,null,null,null,null,null,null,null,null,null,null,null,null,null,null,null,null,null,null,null,null,null,null,null,null,null,null,null,null,null,null,null,null,null,null,null,null,null,null,null,null,null,null,null,null,null,null,null,null,null,null,null,null,null,null,null,null,null,null,null,null,null,null,null,null,null,null,null,null,null,null,null,null,null,null,null,null,null,null,null,null,null,9,"0000000200","X"]
[null,null,null,null,null,null,null,null,null,null,null,null,null,null,null,null,null,null,null,null,null,null,null,null,null,null,null,null,null,null,null,null,null,null,null,null,null,null,null,null,null,null,null,null,null,null,null,null,null,null,null,null,null,null,null,null,null,null,null,null,null,null,null,null,null,null,null,null,null,null,null,null,null,null,null,null,null,null,null,null,null,null,null,null,null,null,null,null,null,null,9,"D4O21W1IBUB3HEML1KWP5YGOP","D4O21W1IBULV2377J4ZA3Y0HL","Grade 8 P/T","0008","","S","","L","","","","","",null,null,null,null,null,null,8,"0ORGUNIT","0CRM_SALOFF","CRM Sales Office","0000","X","1","0","0","","","","","0000","",null,null,null,null,null,11,"DEN9FTLAHQ0DPPUS8HDA4ATX5","DA5ON71OOUK71I8MU2Y4RU8L5","","","","","","00","X","0","0","","",null,null,null,null,null,null,null,null,null,null,null,null,null,null,null,null,null,null,null,null,null,null,null,null,null,null,null,null,null,null,null,null,null,null,null,null,null,null,null,null,null,null,null,null,null,null,null,null,null,null,null,null,null,null,null,null,null,null,null,null,null,null,null,null,null,null,null,null,null,null,null,null,null,null,null,null,null,null,null,null,null,null,null,null,null,null,9,"0000004000","X"]
[null,null,null,null,null,null,null,null,null,null,null,null,null,null,null,null,null,null,null,null,null,null,null,null,null,null,null,null,null,null,null,null,null,null,null,null,null,null,null,null,null,null,null,null,null,null,null,null,null,null,null,null,null,null,null,null,null,null,null,null,null,null,null,null,null,null,null,null,null,null,null,null,null,null,null,null,null,null,null,null,null,null,null,null,null,null,null,null,null,null,9,"DA5ON71OOUHVZN9CVGNAKK1RT","DA5ON71OOUO1GLVFFS473Z7Y1","Sikh","0008","","S","","L","X","","","","",null,null,null,null,null,null,8,"0ORGUNIT","0CRM_SALORG","CRM Sales Org.","0000","X","1","0","0","","","","","0000","",null,null,null,null,null,11,"DEN9FTLAHQ0DPPUS8HDA4ATX5","DA5ON71OOUKYQ4KE5MDQU9MUX","","","","","","00","X","0","0","","",null,null,null,null,null,null,null,null,null,null,null,null,null,null,null,null,null,null,null,null,null,null,null,null,null,null,null,null,null,null,null,null,null,null,null,null,null,null,null,null,null,null,null,null,null,null,null,null,null,null,null,null,null,null,null,null,null,null,null,null,null,null,null,null,null,null,null,null,null,null,null,null,null,null,null,null,null,null,null,null,null,null,null,null,null,null,9,"0000009001","Workforce Profile Religion & Belief (2011) Revised"]
[null,null,null,null,null,null,null,null,null,null,null,null,null,null,null,null,null,null,null,null,null,null,null,null,null,null,null,null,null,null,null,null,null,null,null,null,null,null,null,null,null,null,null,null,null,null,null,null,null,null,null,null,null,null,null,null,null,null,null,null,null,null,null,null,null,null,null,null,null,null,null,null,null,null,null,null,null,null,null,null,null,null,null,null,null,null,null,null,null,null,9,"DA5ON71OOUHVZN9CVGNAKK1RT","DA5ON71OOUOT5876RBJT6EM7T","Another Religion","0009","","S","","L","X","","","","",null,null,null,null,null,null,8,"0ORGUNIT","0CRM_SRVORG","Service Org. CRM","0000","X","1","0","0","","","","","0000","",null,null,null,null,null,11,"DEN9FTLAHQ0DPPUS8HDA4ATX5","DA5ON71OOULQEQW5H5TCWP14P","","","","","","00","X","0","0","","",null,null,null,null,null,null,null,null,null,null,null,null,null,null,null,null,null,null,null,null,null,null,null,null,null,null,null,null,null,null,null,null,null,null,null,null,null,null,null,null,null,null,null,null,null,null,null,null,null,null,null,null,null,null,null,null,null,null,null,null,null,null,null,null,null,null,null,null,null,null,null,null,null,null,null,null,null,null,null,null,null,null,null,null,null,null,9,"0000000114","1"]
[null,null,null,null,null,null,null,null,null,null,null,null,null,null,null,null,null,null,null,null,null,null,null,null,null,null,null,null,null,null,null,null,null,null,null,null,null,null,null,null,null,null,null,null,null,null,null,null,null,null,null,null,null,null,null,null,null,null,null,null,null,null,null,null,null,null,null,null,null,null,null,null,null,null,null,null,null,null,null,null,null,null,null,null,null,null,null,null,null,null,9,"D4O21W1IBUB3HEML1KWP5YGOP","D4O21W1IBV18QHQDXXNJGHXX5","Grade 8 Total","0009","","S","","L","","","","","",null,null,null,null,null,null,8,"0ORGUNIT","0LOGSYS","Source System","0000","X","1","0","0","","","","","0000","",null,null,null,null,null,11,"DEN9FTLAHQ0DPPUS8HDA4ATX5","DA5ON71OOUMI3D7WSP8YZ4FEH","","","","","","00","X","0","0","","",null,null,null,null,null,null,null,null,null,null,null,null,null,null,null,null,null,null,null,null,null,null,null,null,null,null,null,null,null,null,null,null,null,null,null,null,null,null,null,null,null,null,null,null,null,null,null,null,null,null,null,null,null,null,null,null,null,null,null,null,null,null,null,null,null,null,null,null,null,null,null,null,null,null,null,null,null,null,null,null,null,null,null,null,null,null,8,"0000000107","DA5OMQDWOY9OAWS1BB1MHJSVT"]
[null,null,null,null,null,null,null,null,null,null,null,null,null,null,null,null,null,null,null,null,null,null,null,null,null,null,null,null,null,null,null,null,null,null,null,null,null,null,null,null,null,null,null,null,null,null,null,null,null,null,null,null,null,null,null,null,null,null,null,null,null,null,null,null,null,null,null,null,null,null,null,null,null,null,null,null,null,null,null,null,null,null,null,null,null,null,null,null,null,null,9,"DA5ON71OOUHVZN9CVGNAKK1RT","DA5ON71OOUPKTUIY2UZF8U0HL","None","0010","","S","","L","X","","","","",null,null,null,null,null,null,8,"0ORGUNIT","0MAST_CCTR","Master Cost Center","0000","X","0","0","0","","","","","0000","",null,null,null,null,null,11,"DEN9FTLAHQ0DPPUS8HDA4ATX5","DA5ON71OOUN9RZJO48OL1JTO9","","","","","","00","X","0","0","","",null,null,null,null,null,null,null,null,null,null,null,null,null,null,null,null,null,null,null,null,null,null,null,null,null,null,null,null,null,null,null,null,null,null,null,null,null,null,null,null,null,null,null,null,null,null,null,null,null,null,null,null,null,null,null,null,null,null,null,null,null,null,null,null,null,null,null,null,null,null,null,null,null,null,null,null,null,null,null,null,null,null,null,null,null,null,8,"0000000100","X"]
[null,null,null,null,null,null,null,null,null,null,null,null,null,null,null,null,null,null,null,null,null,null,null,null,null,null,null,null,null,null,null,null,null,null,null,null,null,null,null,null,null,null,null,null,null,null,null,null,null,null,null,null,null,null,null,null,null,null,null,null,null,null,null,null,null,null,null,null,null,null,null,null,null,null,null,null,null,null,null,null,null,null,null,null,null,null,null,null,null,null,9,"D4O21W1IBUB3HEML1KWP5YGOP","D4O21W1IBUFPL4L4YTIDKIUBD","ACZ Grade 8 F/T","0010","","S","","L","","","","","",null,null,null,null,null,null,8,"0ORGUNIT","0PERS_AREA","Personnel Area","0000","X","1","0","0","","","","","0000","",null,null,null,null,null,11,"DEN9FTLAHQ0DPPUS8HDA4ATX5","DA5ON71OOUO1GLVFFS473Z7Y1","","","","","","00","X","0","0","","",null,null,null,null,null,null,null,null,null,null,null,null,null,null,null,null,null,null,null,null,null,null,null,null,null,null,null,null,null,null,null,null,null,null,null,null,null,null,null,null,null,null,null,null,null,null,null,null,null,null,null,null,null,null,null,null,null,null,null,null,null,null,null,null,null,null,null,null,null,null,null,null,null,null,null,null,null,null,null,null,null,null,null,null,null,null,8,"0000000101",""]
[null,null,null,null,null,null,null,null,null,null,null,null,null,null,null,null,null,null,null,null,null,null,null,null,null,null,null,null,null,null,null,null,null,null,null,null,null,null,null,null,null,null,null,null,null,null,null,null,null,null,null,null,null,null,null,null,null,null,null,null,null,null,null,null,null,null,null,null,null,null,null,null,null,null,null,null,null,null,null,null,null,null,null,null,null,null,null,null,null,null,9,"D4O21W1IBUB3HEML1KWP5YGOP","D4O21W1IBUMMQPIYUOEW6DERD","ACZ Grade 8 P/T","0011","","S","","L","","","","","",null,null,null,null,null,null,8,"0ORGUNIT","0PERS_SAREA","Personnel Subarea","0000","X","1","0","0","","","","","0000","",null,null,null,null,null,11,"DEN9FTLAHQ0DPPUS8HDA4ATX5","DA5ON71OOUOT5876RBJT6EM7T","","","","","","00","X","0","0","","",null,null,null,null,null,null,null,null,null,null,null,null,null,null,null,null,null,null,null,null,null,null,null,null,null,null,null,null,null,null,null,null,null,null,null,null,null,null,null,null,null,null,null,null,null,null,null,null,null,null,null,null,null,null,null,null,null,null,null,null,null,null,null,null,null,null,null,null,null,null,null,null,null,null,null,null,null,null,null,null,null,null,null,null,null,null,8,"0000000104","1"]
[null,null,null,null,null,null,null,null,null,null,null,null,null,null,null,null,null,null,null,null,null,null,null,null,null,null,null,null,null,null,null,null,null,null,null,null,null,null,null,null,null,null,null,null,null,null,null,null,null,null,null,null,null,null,null,null,null,null,null,null,null,null,null,null,null,null,null,null,null,null,null,null,null,null,null,null,null,null,null,null,null,null,null,null,null,null,null,null,null,null,9,"DA5ON71OOUHVZN9CVGNAKK1RT","DA5ON71OOUQCIGUPEEF1B9ERD","Non Disclosed","0011","","S","","L","X","","","","",null,null,null,null,null,null,8,"0ORGUNIT","0PLANT","Plant","0000","X","0","0","0","","","","","0000","",null,null,null,null,null,11,"DEN9FTLAHQ0DPPUS8HDA4ATX5","DA5ON71OOUPKTUIY2UZF8U0HL","","","","","","00","X","0","0","","",null,null,null,null,null,null,null,null,null,null,null,null,null,null,null,null,null,null,null,null,null,null,null,null,null,null,null,null,null,null,null,null,null,null,null,null,null,null,null,null,null,null,null,null,null,null,null,null,null,null,null,null,null,null,null,null,null,null,null,null,null,null,null,null,null,null,null,null,null,null,null,null,null,null,null,null,null,null,null,null,null,null,null,null,null,null,8,"0000000103",""]
[null,null,null,null,null,null,null,null,null,null,null,null,null,null,null,null,null,null,null,null,null,null,null,null,null,null,null,null,null,null,null,null,null,null,null,null,null,null,null,null,null,null,null,null,null,null,null,null,null,null,null,null,null,null,null,null,null,null,null,null,null,null,null,null,null,null,null,null,null,null,null,null,null,null,null,null,null,null,null,null,null,null,null,null,null,null,null,null,null,null,9,"D4O21W1IBUB3HEML1KWP5YGOP","D4O21W1IBV0H1VEMME7XE2JND","ACZ Grade 8 Total","0012","","S","","L","","","","","",null,null,null,null,null,null,8,"0ORGUNIT","0PURCH_ORG","Purchasing org.","0000","X","0","0","0","","","","","0000","",null,null,null,null,null,11,"DEN9FTLAHQ0DPPUS8HDA4ATX5","DA5ON71OOUQCIGUPEEF1B9ERD","","","","","","00","X","0","0","","",null,null,null,null,null,null,null,null,null,null,null,null,null,null,null,null,null,null,null,null,null,null,null,null,null,null,null,null,null,null,null,null,null,null,null,null,null,null,null,null,null,null,null,null,null,null,null,null,null,null,null,null,null,null,null,null,null,null,null,null,null,null,null,null,null,null,null,null,null,null,null,null,null,null,null,null,null,null,null,null,null,null,null,null,null,null,8,"0000000102","1"]
[null,null,null,null,null,null,null,null,null,null,null,null,null,null,null,null,null,null,null,null,null,null,null,null,null,null,null,null,null,null,null,null,null,null,null,null,null,null,null,null,null,null,null,null,null,null,null,null,null,null,null,null,null,null,null,null,null,null,null,null,null,null,null,null,null,null,null,null,null,null,null,null,null,null,null,null,null,null,null,null,null,null,null,null,null,null,null,null,null,null,9,"D4O21W1IBUB3HEML1KWP5YGOP","D4O21W1IBUH8YD8NLWDLPDMUX","Grade 9 - 15 F/T","0013","","S","","L","","","","","",null,null,null,null,null,null,8,"0ORGUNIT","0PUR_GROUP","Purchasing group","0000","X","0","0","0","","","","","0000","",null,null,null,null,null,11,"DEN9FTLAHQ15EC6JK0SW6Q86X","DA5ON71OOUINO9L4702WMZG1L","","","","","","00","X","0","0","","",null,null,null,null,null,null,null,null,null,null,null,null,null,null,null,null,null,null,null,null,null,null,null,null,null,null,null,null,null,null,null,null,null,null,null,null,null,null,null,null,null,null,null,null,null,null,null,null,null,null,null,null,null,null,null,null,null,null,null,null,null,null,null,null,null,null,null,null,null,null,null,null,null,null,null,null,null,null,null,null,null,null,null,null,null,null,8,"0000000108",""]
[null,null,null,null,null,null,null,null,null,null,null,null,null,null,null,null,null,null,null,null,null,null,null,null,null,null,null,null,null,null,null,null,null,null,null,null,null,null,null,null,null,null,null,null,null,null,null,null,null,null,null,null,null,null,null,null,null,null,null,null,null,null,null,null,null,null,null,null,null,null,null,null,null,null,null,null,null,null,null,null,null,null,null,null,null,null,null,null,null,null,9,"D4O21W1IBUB3HEML1KWP5YGOP","DEN03PYIT5FSSAA2U7ST53H15","Grade 9 - 15 P/T","0014","","S","","L","","","","","",null,null,null,null,null,null,8,"0ORGUNIT","0SALESORG","Sales Organization","0000","X","0","0","0","","","","","0000","",null,null,null,null,null,11,"DEN9FTLAHQ15EC6JK0SW6Q86X","DA5ON71OOUJFCVWVIJIIPEUBD","","","","","","00","X","0","0","","",null,null,null,null,null,null,null,null,null,null,null,null,null,null,null,null,null,null,null,null,null,null,null,null,null,null,null,null,null,null,null,null,null,null,null,null,null,null,null,null,null,null,null,null,null,null,null,null,null,null,null,null,null,null,null,null,null,null,null,null,null,null,null,null,null,null,null,null,null,null,null,null,null,null,null,null,null,null,null,null,null,null,null,null,null,null,8,"0000009002","D4O21W1IBUB3HEML1KWP5YGOP"]
[null,null,null,null,null,null,null,null,null,null,null,null,null,null,null,null,null,null,null,null,null,null,null,null,null,null,null,null,null,null,null,null,null,null,null,null,null,null,null,null,null,null,null,null,null,null,null,null,null,null,null,null,null,null,null,null,null,null,null,null,null,null,null,null,null,null,null,null,null,null,null,null,null,null,null,null,null,null,null,null,null,null,null,null,null,null,null,null,null,null,9,"D4O21W1IBUB3HEML1KWP5YGOP","D4O21W1IBUO63Y6HHRA4B87AX","Grade 9 - 15 Total","0015","","S","","L","","","","","",null,null,null,null,null,null,8,"0ORGUNIT","0SALES_GRP","Sales group","0000","X","0","0","0","","","","","0000","",null,null,null,null,null,11,"DEN9FTLAHQ15EC6JK0SW6Q86X","DA5ON71OOUK71I8MU2Y4RU8L5","","","","","","00","X","0","0","","",null,null,null,null,null,null,null,null,null,null,null,null,null,null,null,null,null,null,null,null,null,null,null,null,null,null,null,null,null,null,null,null,null,null,null,null,null,null,null,null,null,null,null,null,null,null,null,null,null,null,null,null,null,null,null,null,null,null,null,null,null,null,null,null,null,null,null,null,null,null,null,null,null,null,null,null,null,null,null,null,null,null,null,null,null,null,8,"0000009000",""]
[null,null,null,null,null,null,null,null,null,null,null,null,null,null,null,null,null,null,null,null,null,null,null,null,null,null,null,null,null,null,null,null,null,null,null,null,null,null,null,null,null,null,null,null,null,null,null,null,null,null,null,null,null,null,null,null,null,null,null,null,null,null,null,null,null,null,null,null,null,null,null,null,null,null,null,null,null,null,null,null,null,null,null,null,null,null,null,null,null,null,9,"D4O21W1IBUB3HEML1KWP5YGOP","D4O21W1IBUGH9QWWACXZMY8L5","ACZ Grade 9 - 15 F/T","0016","","S","","L","","","","","",null,null,null,null,null,null,8,"0ORGUNIT","0SALES_OFF","Sales Office","0000","X","0","0","0","","","","","0000","",null,null,null,null,null,11,"DEN9FTLAHQ15EC6JK0SW6Q86X","DA5ON71OOUKYQ4KE5MDQU9MUX","","","","","","00","X","0","0","","",null,null,null,null,null,null,null,null,null,null,null,null,null,null,null,null,null,null,null,null,null,null,null,null,null,null,null,null,null,null,null,null,null,null,null,null,null,null,null,null,null,null,null,null,null,null,null,null,null,null,null,null,null,null,null,null,null,null,null,null,null,null,null,null,null,null,null,null,null,null,null,null,null,null,null,null,null,null,null,null,null,null,null,null,null,null,8,"0000000010",""]
[null,null,null,null,null,null,null,null,null,null,null,null,null,null,null,null,null,null,null,null,null,null,null,null,null,null,null,null,null,null,null,null,null,null,null,null,null,null,null,null,null,null,null,null,null,null,null,null,null,null,null,null,null,null,null,null,null,null,null,null,null,null,null,null,null,null,null,null,null,null,null,null,null,null,null,null,null,null,null,null,null,null,null,null,null,null,null,null,null,null,9,"D4O21W1IBUB3HEML1KWP5YGOP","D4O21W1IBUNEFBUQ67UI8ST15","ACZ Grade 9 - 15 P/T","0017","","S","","L","","","","","",null,null,null,null,null,null,8,"0CNTRCTTYPE","0CNTRCTISFT","Fixed-Term Contract","0000","X","2","0","0","","","","","0000","",null,null,null,null,null,11,"DEN9FTLAHQ15EC6JK0SW6Q86X","DA5ON71OOULQEQW5H5TCWP14P","","","","","","00","X","0","0","","",null,null,null,null,null,null,null,null,null,null,null,null,null,null,null,null,null,null,null,null,null,null,null,null,null,null,null,null,null,null,null,null,null,null,null,null,null,null,null,null,null,null,null,null,null,null,null,null,null,null,null,null,null,null,null,null,null,null,null,null,null,null,null,null,null,null,null,null,null,null,null,null,null,null,null,null,null,null,null,null,null,null,null,null,null,null,8,"0000000021",""]
[null,null,null,null,null,null,null,null,null,null,null,null,null,null,null,null,null,null,null,null,null,null,null,null,null,null,null,null,null,null,null,null,null,null,null,null,null,null,null,null,null,null,null,null,null,null,null,null,null,null,null,null,null,null,null,null,null,null,null,null,null,null,null,null,null,null,null,null,null,null,null,null,null,null,null,null,null,null,null,null,null,null,null,null,null,null,null,null,null,null,9,"D4O21W1IBUB3HEML1KWP5YGOP","DEN04FDC1K04NBJW47LA7T915","ACZ Grade 9 - 15 Total","0018","","S","","L","","","","","",null,null,null,null,null,null,7,"0ORGUNIT","0BBPPURGRPX","Ind.Purchasing Group","0000","X","2","0","0","","","","","0000","",null,null,null,null,null,11,"DEN9FTLAHQ15EC6JK0SW6Q86X","DA5ON71OOUMI3D7WSP8YZ4FEH","","","","","","00","X","0","0","","",null,null,null,null,null,null,null,null,null,null,null,null,null,null,null,null,null,null,null,null,null,null,null,null,null,null,null,null,null,null,null,null,null,null,null,null,null,null,null,null,null,null,null,null,null,null,null,null,null,null,null,null,null,null,null,null,null,null,null,null,null,null,null,null,null,null,null,null,null,null,null,null,null,null,null,null,null,null,null,null,null,null,null,null,null,null,8,"0000000022",""]
[null,null,null,null,null,null,null,null,null,null,null,null,null,null,null,null,null,null,null,null,null,null,null,null,null,null,null,null,null,null,null,null,null,null,null,null,null,null,null,null,null,null,null,null,null,null,null,null,null,null,null,null,null,null,null,null,null,null,null,null,null,null,null,null,null,null,null,null,null,null,null,null,null,null,null,null,null,null,null,null,null,null,null,null,null,null,null,null,null,null,9,"D4O21W1IBUB3HEML1KWP5YGOP","D4O21W1IBUWMMRRU0P1V1XKAH","Other (Not Migrated) F/T","0019","","F","","L","","","","","",null,null,null,null,null,null,7,"0ORGUNIT","0BBPPURORGX","Ind. Purchasing Org.","0000","X","2","0","0","","","","","0000","",null,null,null,null,null,11,"DEN9FTLAHQ15EC6JK0SW6Q86X","DA5ON71OOUN9RZJO48OL1JTO9","","","","","","00","X","0","0","","",null,null,null,null,null,null,null,null,null,null,null,null,null,null,null,null,null,null,null,null,null,null,null,null,null,null,null,null,null,null,null,null,null,null,null,null,null,null,null,null,null,null,null,null,null,null,null,null,null,null,null,null,null,null,null,null,null,null,null,null,null,null,null,null,null,null,null,null,null,null,null,null,null,null,null,null,null,null,null,null,null,null,null,null,null,null,8,"0000000023",""]
[null,null,null,null,null,null,null,null,null,null,null,null,null,null,null,null,null,null,null,null,null,null,null,null,null,null,null,null,null,null,null,null,null,null,null,null,null,null,null,null,null,null,null,null,null,null,null,null,null,null,null,null,null,null,null,null,null,null,null,null,null,null,null,null,null,null,null,null,null,null,null,null,null,null,null,null,null,null,null,null,null,null,null,null,null,null,null,null,null,null,9,"D4O21W1IBUB3HEML1KWP5YGOP","DEN07Y1DTSNAWTLQYCBLILED5","Other (Not Migrated) P/T","0020","","F","","L","","","","","",null,null,null,null,null,null,7,"0ORGUNIT","0BBP_BUYID","Buyer ID","0000","X","5","0","0","","","","","0000","",null,null,null,null,null,11,"DEN9FTLAHQ15EC6JK0SW6Q86X","DA5ON71OOUO1GLVFFS473Z7Y1","","","","","","00","X","0","0","","",null,null,null,null,null,null,null,null,null,null,null,null,null,null,null,null,null,null,null,null,null,null,null,null,null,null,null,null,null,null,null,null,null,null,null,null,null,null,null,null,null,null,null,null,null,null,null,null,null,null,null,null,null,null,null,null,null,null,null,null,null,null,null,null,null,null,null,null,null,null,null,null,null,null,null,null,null,null,null,null,null,null,null,null,null,null,8,"0000000030",""]
[null,null,null,null,null,null,null,null,null,null,null,null,null,null,null,null,null,null,null,null,null,null,null,null,null,null,null,null,null,null,null,null,null,null,null,null,null,null,null,null,null,null,null,null,null,null,null,null,null,null,null,null,null,null,null,null,null,null,null,null,null,null,null,null,null,null,null,null,null,null,null,null,null,null,null,null,null,null,null,null,null,null,null,null,null,null,null,null,null,null,9,"D4O21W1IBUB3HEML1KWP5YGOP","DEN07Y1DTSPLYOL0WYMFPVL6H","Other (Not Migrated) Total","0021","","F","","L","","","","","",null,null,null,null,null,null,7,"0ORGUNIT","0BBP_ISCOMP","Organizational Unit is Company","0000","X","1","0","0","","","","","0000","",null,null,null,null,null,11,"DEN9FTLAHQ15EC6JK0SW6Q86X","DA5ON71OOUOT5876RBJT6EM7T","","","","","","00","X","0","0","","",null,null,null,null,null,null,null,null,null,null,null,null,null,null,null,null,null,null,null,null,null,null,null,null,null,null,null,null,null,null,null,null,null,null,null,null,null,null,null,null,null,null,null,null,null,null,null,null,null,null,null,null,null,null,null,null,null,null,null,null,null,null,null,null,null,null,null,null,null,null,null,null,null,null,null,null,null,null,null,null,null,null,null,null,null,null,8,"0000000040",""]
[null,null,null,null,null,null,null,null,null,null,null,null,null,null,null,null,null,null,null,null,null,null,null,null,null,null,null,null,null,null,null,null,null,null,null,null,null,null,null,null,null,null,null,null,null,null,null,null,null,null,null,null,null,null,null,null,null,null,null,null,null,null,null,null,null,null,null,null,null,null,null,null,null,null,null,null,null,null,null,null,null,null,null,null,null,null,null,null,null,null,9,"D4O21W1IBUB3HEML1KWP5YGOP","D4O21W1IBUY600FCNRX36SCU1","Total Teaching Staff F/T","0022","","S","","L","","","","","",null,null,null,null,null,null,7,"0ORGUNIT","0BUS_AREA","Business area","0000","X","0","0","0","","","","","0000","",null,null,null,null,null,11,"DEN9FTLAHQ15EC6JK0SW6Q86X","DA5ON71OOUPKTUIY2UZF8U0HL","","","","","","00","X","0","0","","",null,null,null,null,null,null,null,null,null,null,null,null,null,null,null,null,null,null,null,null,null,null,null,null,null,null,null,null,null,null,null,null,null,null,null,null,null,null,null,null,null,null,null,null,null,null,null,null,null,null,null,null,null,null,null,null,null,null,null,null,null,null,null,null,null,null,null,null,null,null,null,null,null,null,null,null,null,null,null,null,null,null,null,null,null,null,8,"0000000041",""]
[null,null,null,null,null,null,null,null,null,null,null,null,null,null,null,null,null,null,null,null,null,null,null,null,null,null,null,null,null,null,null,null,null,null,null,null,null,null,null,null,null,null,null,null,null,null,null,null,null,null,null,null,null,null,null,null,null,null,null,null,null,null,null,null,null,null,null,null,null,null,null,null,null,null,null,null,null,null,null,null,null,null,null,null,null,null,null,null,null,null,9,"D4O21W1IBUB3HEML1KWP5YGOP","DEN0OSIFULCZTDTFE8U7RBQIH","Total Teaching Staff P/T","0023","","S","","L","","","","","",null,null,null,null,null,null,7,"0ORGUNIT","0COMP_CODE","Company code","0000","X","0","0","0","","","","","0000","",null,null,null,null,null,11,"DEN9FTLAHQ15EC6JK0SW6Q86X","DA5ON71OOUQCIGUPEEF1B9ERD","","","","","","00","X","0","0","","",null,null,null,null,null,null,null,null,null,null,null,null,null,null,null,null,null,null,null,null,null,null,null,null,null,null,null,null,null,null,null,null,null,null,null,null,null,null,null,null,null,null,null,null,null,null,null,null,null,null,null,null,null,null,null,null,null,null,null,null,null,null,null,null,null,null,null,null,null,null,null,null,null,null,null,null,null,null,null,null,null,null,null,null,null,null,8,"0000000042","0"]
[null,null,null,null,null,null,null,null,null,null,null,null,null,null,null,null,null,null,null,null,null,null,null,null,null,null,null,null,null,null,null,null,null,null,null,null,null,null,null,null,null,null,null,null,null,null,null,null,null,null,null,null,null,null,null,null,null,null,null,null,null,null,null,null,null,null,null,null,null,null,null,null,null,null,null,null,null,null,null,null,null,null,null,null,null,null,null,null,null,null,9,"D4O21W1IBUB3HEML1KWP5YGOP","DEN0OSIFULDRI056PS9TTR4S9","Total Teaching Staff","0024","","S","","L","","","","","",null,null,null,null,null,null,7,"0ORGUNIT","0CO_MST_AR","Controlling Area of Master Cost Center","0000","X","0","0","0","","","","","0000","",null,null,null,null,null,11,"DEN9FTLAHQ1X2YIAVK8I95MGP","DA5ON71OOUINO9L4702WMZG1L","","","","","","00","X","0","0","","",null,null,null,null,null,null,null,null,null,null,null,null,null,null,null,null,null,null,null,null,null,null,null,null,null,null,null,null,null,null,null,null,null,null,null,null,null,null,null,null,null,null,null,null,null,null,null,null,null,null,null,null,null,null,null,null,null,null,null,null,null,null,null,null,null,null,null,null,null,null,null,null,null,null,null,null,null,null,null,null,null,null,null,null,null,null,8,"0000000043","0"]
[null,null,null,null,null,null,null,null,null,null,null,null,null,null,null,null,null,null,null,null,null,null,null,null,null,null,null,null,null,null,null,null,null,null,null,null,null,null,null,null,null,null,null,null,null,null,null,null,null,null,null,null,null,null,null,null,null,null,null,null,null,null,null,null,null,null,null,null,null,null,null,null,null,null,null,null,null,null,null,null,null,null,null,null,null,null,null,null,null,null,9,"D4O21W1IBUB3HEML1KWP5YGOP","DEN0OSIFULEJ6MGY1BPFW6J21","Total Non-Teaching Staff F/T","0025","","S","","L","","","","","",null,null,null,null,null,null,7,"0ORGUNIT","0CRMSALGRPX","Sls Group: Indicator","0000","X","2","0","0","","","","","0000","",null,null,null,null,null,11,"DEN9FTLAHQ1X2YIAVK8I95MGP","DA5ON71OOUJFCVWVIJIIPEUBD","","","","","","00","X","0","0","","",null,null,null,null,null,null,null,null,null,null,null,null,null,null,null,null,null,null,null,null,null,null,null,null,null,null,null,null,null,null,null,null,null,null,null,null,null,null,null,null,null,null,null,null,null,null,null,null,null,null,null,null,null,null,null,null,null,null,null,null,null,null,null,null,null,null,null,null,null,null,null,null,null,null,null,null,null,null,null,null,null,null,null,null,null,null,8,"0000000109","0"]
[null,null,null,null,null,null,null,null,null,null,null,null,null,null,null,null,null,null,null,null,null,null,null,null,null,null,null,null,null,null,null,null,null,null,null,null,null,null,null,null,null,null,null,null,null,null,null,null,null,null,null,null,null,null,null,null,null,null,null,null,null,null,null,null,null,null,null,null,null,null,null,null,null,null,null,null,null,null,null,null,null,null,null,null,null,null,null,null,null,null,9,"D4O21W1IBUB3HEML1KWP5YGOP","DEN07Y1DTSOUA299LF6TNG6WP","Total Non-Teaching Staff P/T","0026","","S","","L","","","","","",null,null,null,null,null,null,7,"0ORGUNIT","0CRMSALOFFX","Sls Office:Indicator","0000","X","2","0","0","","","","","0000","",null,null,null,null,null,11,"DEN9FTLAHQ1X2YIAVK8I95MGP","DA5ON71OOUK71I8MU2Y4RU8L5","","","","","","00","X","0","0","","",null,null,null,null,null,null,null,null,null,null,null,null,null,null,null,null,null,null,null,null,null,null,null,null,null,null,null,null,null,null,null,null,null,null,null,null,null,null,null,null,null,null,null,null,null,null,null,null,null,null,null,null,null,null,null,null,null,null,null,null,null,null,null,null,null,null,null,null,null,null,null,null,null,null,null,null,null,null,null,null,null,null,null,null,null,null,8,"0000000113",""]
[null,null,null,null,null,null,null,null,null,null,null,null,null,null,null,null,null,null,null,null,null,null,null,null,null,null,null,null,null,null,null,null,null,null,null,null,null,null,null,null,null,null,null,null,null,null,null,null,null,null,null,null,null,null,null,null,null,null,null,null,null,null,null,null,null,null,null,null,null,null,null,null,null,null,null,null,null,null,null,null,null,null,null,null,null,null,null,null,null,null,9,"D4O21W1IBUB3HEML1KWP5YGOP","DEN07Y1DTSR5BX8JK1HNUQDQ1","Total Non-Teaching Staff","0027","","S","","L","","","","","",null,null,null,null,null,null,7,"0ORGUNIT","0CRMSALORGX","Sales Org. Indicator","0000","X","2","0","0","","","","","0000","",null,null,null,null,null,11,"DEN9FTLAHQ1X2YIAVK8I95MGP","DA5ON71OOUKYQ4KE5MDQU9MUX","","","","","","00","X","0","0","","",null,null,null,null,null,null,null,null,null,null,null,null,null,null,null,null,null,null,null,null,null,null,null,null,null,null,null,null,null,null,null,null,null,null,null,null,null,null,null,null,null,null,null,null,null,null,null,null,null,null,null,null,null,null,null,null,null,null,null,null,null,null,null,null,null,null,null,null,null,null,null,null,null,null,null,null,null,null,null,null,null,null,null,null,null,null,8,"0000000120",""]
[null,null,null,null,null,null,null,null,null,null,null,null,null,null,null,null,null,null,null,null,null,null,null,null,null,null,null,null,null,null,null,null,null,null,null,null,null,null,null,null,null,null,null,null,null,null,null,null,null,null,null,null,null,null,null,null,null,null,null,null,null,null,null,null,null,null,null,null,null,null,null,null,null,null,null,null,null,null,null,null,null,null,null,null,null,null,null,null,null,null,9,"D4O21W1IBUB3HEML1KWP5YGOP","D4O21W1IBUXEBE3LC8HH4CYK9","Total - All WPBR Grades F/T","0028","","F","","L","","","","","",null,null,null,null,null,null,7,"0ORGUNIT","0CRMSRVTGRP","Ex. CRM Service Org.","0000","X","1","0","0","","","","","0000","",null,null,null,null,null,11,"DEN9FTLAHQ1X2YIAVK8I95MGP","DA5ON71OOULQEQW5H5TCWP14P","","","","","","00","X","0","0","","",null,null,null,null,null,null,null,null,null,null,null,null,null,null,null,null,null,null,null,null,null,null,null,null,null,null,null,null,null,null,null,null,null,null,null,null,null,null,null,null,null,null,null,null,null,null,null,null,null,null,null,null,null,null,null,null,null,null,null,null,null,null,null,null,null,null,null,null,null,null,null,null,null,null,null,null,null,null,null,null,null,null,null,null,null,null,8,"0000000121",""]
[null,null,null,null,null,null,null,null,null,null,null,null,null,null,null,null,null,null,null,null,null,null,null,null,null,null,null,null,null,null,null,null,null,null,null,null,null,null,null,null,null,null,null,null,null,null,null,null,null,null,null,null,null,null,null,null,null,null,null,null,null,null,null,null,null,null,null,null,null,null,null,null,null,null,null,null,null,null,null,null,null,null,null,null,null,null,null,null,null,null,9,"D4O21W1IBUB3HEML1KWP5YGOP","DEN07Y1DTSO2LFXI9VR7L0SMX","Total - All WPBR Grades P/T","0029","","F","","L","","","","","",null,null,null,null,null,null,7,"0ORGUNIT","0CRM_SALGRP","CRM Sales Group","0000","X","1","0","0","","","","","0000","",null,null,null,null,null,11,"DEN9FTLAHQ1X2YIAVK8I95MGP","DA5ON71OOUMI3D7WSP8YZ4FEH","","","","","","00","X","0","0","","",null,null,null,null,null,null,null,null,null,null,null,null,null,null,null,null,null,null,null,null,null,null,null,null,null,null,null,null,null,null,null,null,null,null,null,null,null,null,null,null,null,null,null,null,null,null,null,null,null,null,null,null,null,null,null,null,null,null,null,null,null,null,null,null,null,null,null,null,null,null,null,null,null,null,null,null,null,null,null,null,null,null,null,null,null,null,8,"0000010001","DA5OMQDWOYLZ8U06FXZFKE589"]
[null,null,null,null,null,null,null,null,null,null,null,null,null,null,null,null,null,null,null,null,null,null,null,null,null,null,null,null,null,null,null,null,null,null,null,null,null,null,null,null,null,null,null,null,null,null,null,null,null,null,null,null,null,null,null,null,null,null,null,null,null,null,null,null,null,null,null,null,null,null,null,null,null,null,null,null,null,null,null,null,null,null,null,null,null,null,null,null,null,null,9,"D4O21W1IBUB3HEML1KWP5YGOP","DEN07Y1DTSQDNAWS8I21SAZG9","Total Workforce - All WPBR Grades","0030","","F","","L","","","","","",null,null,null,null,null,null,7,"0ORGUNIT","0CRM_SALOFF","CRM Sales Office","0000","X","1","0","0","","","","","0000","",null,null,null,null,null,11,"DEN9FTLAHQ1X2YIAVK8I95MGP","DA5ON71OOUN9RZJO48OL1JTO9","","","","","","00","X","0","0","","",null,null,null,null,null,null,null,null,null,null,null,null,null,null,null,null,null,null,null,null,null,null,null,null,null,null,null,null,null,null,null,null,null,null,null,null,null,null,null,null,null,null,null,null,null,null,null,null,null,null,null,null,null,null,null,null,null,null,null,null,null,null,null,null,null,null,null,null,null,null,null,null,null,null,null,null,null,null,null,null,null,null,null,null,null,null,8,"0000010002","DA5OMQDWOY9OAWS1BB1MHJSVT"]
[null,null,null,null,null,null,null,null,null,null,null,null,null,null,null,null,null,null,null,null,null,null,null,null,null,null,null,null,null,null,null,null,null,null,null,null,null,null,null,null,null,null,null,null,null,null,null,null,null,null,null,null,null,null,null,null,null,null,null,null,null,null,null,null,null,null,null,null,null,null,null,null,null,null,null,null,null,null,null,null,null,null,null,null,null,null,null,null,null,null,9,"D4O21W1IBUB3HEML1KWP5YGOP","D4O21W1IBV8XKOZZ5BZO4RWMX","Total Workforce (All) F/T","0031","","S","","L","","","","","",null,null,null,null,null,null,7,"0ORGUNIT","0CRM_SALORG","CRM Sales Org.","0000","X","1","0","0","","","","","0000","",null,null,null,null,null,11,"DEN9FTLAHQ1X2YIAVK8I95MGP","DA5ON71OOUO1GLVFFS473Z7Y1","","","","","","00","X","0","0","","",null,null,null,null,null,null,null,null,null,null,null,null,null,null,null,null,null,null,null,null,null,null,null,null,null,null,null,null,null,null,null,null,null,null,null,null,null,null,null,null,null,null,null,null,null,null,null,null,null,null,null,null,null,null,null,null,null,null,null,null,null,null,null,null,null,null,null,null,null,null,null,null,null,null,null,null,null,null,null,null,null,null,null,null,null,null,8,"0000000105",""]
[null,null,null,null,null,null,null,null,null,null,null,null,null,null,null,null,null,null,null,null,null,null,null,null,null,null,null,null,null,null,null,null,null,null,null,null,null,null,null,null,null,null,null,null,null,null,null,null,null,null,null,null,null,null,null,null,null,null,null,null,null,null,null,null,null,null,null,null,null,null,null,null,null,null,null,null,null,null,null,null,null,null,null,null,null,null,null,null,null,null,9,"D4O21W1IBUB3HEML1KWP5YGOP","DEN07Y1DTSRX0JKAVKX9X5RZT","Total Workforce (All) P/T","0032","","S","","L","","","","","",null,null,null,null,null,null,7,"0ORGUNIT","0CRM_SRVORG","Service Org. CRM","0000","X","1","0","0","","","","","0000","",null,null,null,null,null,11,"DEN9FTLAHQ1X2YIAVK8I95MGP","DA5ON71OOUOT5876RBJT6EM7T","","","","","","00","X","0","0","","",null,null,null,null,null,null,null,null,null,null,null,null,null,null,null,null,null,null,null,null,null,null,null,null,null,null,null,null,null,null,null,null,null,null,null,null,null,null,null,null,null,null,null,null,null,null,null,null,null,null,null,null,null,null,null,null,null,null,null,null,null,null,null,null,null,null,null,null,null,null,null,null,null,null,null,null,null,null,null,null,null,null,null,null,null,null,8,"0000000106",""]
[null,null,null,null,null,null,null,null,null,null,null,null,null,null,null,null,null,null,null,null,null,null,null,null,null,null,null,null,null,null,null,null,null,null,null,null,null,null,null,null,null,null,null,null,null,null,null,null,null,null,null,null,null,null,null,null,null,null,null,null,null,null,null,null,null,null,null,null,null,null,null,null,null,null,null,null,null,null,null,null,null,null,null,null,null,null,null,null,null,null,9,"D4O21W1IBUB3HEML1KWP5YGOP","DEN07Y1DTSSOP5W274CVZL69L","Total Workforce (All)","0033","","S","","L","","","","","",null,null,null,null,null,null,7,"0ORGUNIT","0LOGSYS","Source System","0000","X","1","0","0","","","","","0000","",null,null,null,null,null,11,"DEN9FTLAHQ1X2YIAVK8I95MGP","DA5ON71OOUPKTUIY2UZF8U0HL","","","","","","00","X","0","0","","",null,null,null,null,null,null,null,null,null,null,null,null,null,null,null,null,null,null,null,null,null,null,null,null,null,null,null,null,null,null,null,null,null,null,null,null,null,null,null,null,null,null,null,null,null,null,null,null,null,null,null,null,null,null,null,null,null,null,null,null,null,null,null,null,null,null,null,null,null,null,null,null,null,null,null,null,null,null,null,null,null,null,null,null,null,null,8,"0000000112","0"]
[null,null,null,null,null,null,null,null,null,null,null,null,null,null,null,null,null,null,null,null,null,null,null,null,null,null,null,null,null,null,null,null,null,null,null,null,null,null,null,null,null,null,null,null,null,null,null,null,null,null,null,null,null,null,null,null,null,null,null,null,null,null,null,null,null,null,null,null,null,null,null,null,null,null,null,null,null,null,null,null,null,null,null,null,null,null,null,null,null,null,8,"D4O21W1IBUB3HEML1KWP5YGOP","D4O21W1IBUDEJ9LV077JD8NI1","Grade 1 - 4 F/T","0001","","S","","L","","","","","",null,null,null,null,null,null,7,"0ORGUNIT","0MAST_CCTR","Master Cost Center","0000","X","0","0","0","","","","","0000","",null,null,null,null,null,11,"DEN9FTLAHQ1X2YIAVK8I95MGP","DA5ON71OOUQCIGUPEEF1B9ERD","","","","","","00","X","0","0","","",null,null,null,null,null,null,null,null,null,null,null,null,null,null,null,null,null,null,null,null,null,null,null,null,null,null,null,null,null,null,null,null,null,null,null,null,null,null,null,null,null,null,null,null,null,null,null,null,null,null,null,null,null,null,null,null,null,null,null,null,null,null,null,null,null,null,null,null,null,null,null,null,null,null,null,null,null,null,null,null,null,null,null,null,null,null,8,"0000000200","X"]
[null,null,null,null,null,null,null,null,null,null,null,null,null,null,null,null,null,null,null,null,null,null,null,null,null,null,null,null,null,null,null,null,null,null,null,null,null,null,null,null,null,null,null,null,null,null,null,null,null,null,null,null,null,null,null,null,null,null,null,null,null,null,null,null,null,null,null,null,null,null,null,null,null,null,null,null,null,null,null,null,null,null,null,null,null,null,null,null,null,null,8,"DA5ON71OOUHVZN9CVGNAKK1RT","DA5ON71OOUINO9L4702WMZG1L","Buddhist","0001","","S","","L","X","","","","",null,null,null,null,null,null,7,"0ORGUNIT","0PERS_AREA","Personnel Area","0000","X","1","0","0","","","","","0000","",null,null,null,null,null,11,"DEN9FTLAHQ2ORKU273O4BL0QH","DA5ON71OOUINO9L4702WMZG1L","","","","","","00","X","0","0","","",null,null,null,null,null,null,null,null,null,null,null,null,null,null,null,null,null,null,null,null,null,null,null,null,null,null,null,null,null,null,null,null,null,null,null,null,null,null,null,null,null,null,null,null,null,null,null,null,null,null,null,null,null,null,null,null,null,null,null,null,null,null,null,null,null,null,null,null,null,null,null,null,null,null,null,null,null,null,null,null,null,null,null,null,null,null,8,"0000004000","X"]
[null,null,null,null,null,null,null,null,null,null,null,null,null,null,null,null,null,null,null,null,null,null,null,null,null,null,null,null,null,null,null,null,null,null,null,null,null,null,null,null,null,null,null,null,null,null,null,null,null,null,null,null,null,null,null,null,null,null,null,null,null,null,null,null,null,null,null,null,null,null,null,null,null,null,null,null,null,null,null,null,null,null,null,null,null,null,null,null,null,null,8,"DA5ON71OOUHVZN9CVGNAKK1RT","DA5ON71OOUKYQ4KE5MDQU9MUX","Jewish","0004","","S","","L","X","","","","",null,null,null,null,null,null,7,"0ORGUNIT","0SALES_GRP","Sales group","0000","X","0","0","0","","","","","0000","",null,null,null,null,null,11,"DEN9FTLAHQ2ORKU273O4BL0QH","DA5ON71OOUN9RZJO48OL1JTO9","","","","","","00","X","0","0","","",null,null,null,null,null,null,null,null,null,null,null,null,null,null,null,null,null,null,null,null,null,null,null,null,null,null,null,null,null,null,null,null,null,null,null,null,null,null,null,null,null,null,null,null,null,null,null,null,null,null,null,null,null,null,null,null,null,null,null,null,null,null,null,null,null,null,null,null,null,null,null,null,null,null,null,null,null,null,null,null,null,null,null,null,null,null,7,"0000000104","1"]
[null,null,null,null,null,null,null,null,null,null,null,null,null,null,null,null,null,null,null,null,null,null,null,null,null,null,null,null,null,null,null,null,null,null,null,null,null,null,null,null,null,null,null,null,null,null,null,null,null,null,null,null,null,null,null,null,null,null,null,null,null,null,null,null,null,null,null,null,null,null,null,null,null,null,null,null,null,null,null,null,null,null,null,null,null,null,null,null,null,null,8,"D4O21W1IBUB3HEML1KWP5YGOP","D4O21W1IBUXEBE3LC8HH4CYK9","Total - All WPBR Grades F/T","0028","","F","","L","","","","","",null,null,null,null,null,null,5,"0ORGUNIT","0BBP_BUYID","Buyer ID","0000","X","5","0","0","","","","","0000","",null,null,null,null,null,11,"DEN9GQ7MCHA8Y0DFMMJUL514P","DA5ON71OOULQEQW5H5TCWP14P","","","","","","00","X","0","0","","",null,null,null,null,null,null,null,null,null,null,null,null,null,null,null,null,null,null,null,null,null,null,null,null,null,null,null,null,null,null,null,null,null,null,null,null,null,null,null,null,null,null,null,null,null,null,null,null,null,null,null,null,null,null,null,null,null,null,null,null,null,null,null,null,null,null,null,null,null,null,null,null,null,null,null,null,null,null,null,null,null,null,null,null,null,null,6,"0000000104","1"]
[null,null,null,null,null,null,null,null,null,null,null,null,null,null,null,null,null,null,null,null,null,null,null,null,null,null,null,null,null,null,null,null,null,null,null,null,null,null,null,null,null,null,null,null,null,null,null,null,null,null,null,null,null,null,null,null,null,null,null,null,null,null,null,null,null,null,null,null,null,null,null,null,null,null,null,null,null,null,null,null,null,null,null,null,null,null,null,null,null,null,7,"DA5ON71OOUHVZN9CVGNAKK1RT","DA5ON71OOULQEQW5H5TCWP14P","Muslim","0005","","S","","L","X","","","","",null,null,null,null,null,null,5,"0ORGUNIT","0PERS_AREA","Personnel Area","0000","X","1","0","0","","","","","0000","",null,null,null,null,null,11,"DEN9GQ7MCHB0MMP6Y5ZGNKFEH","DA5ON71OOUOT5876RBJT6EM7T","","","","","","00","X","0","0","","",null,null,null,null,null,null,null,null,null,null,null,null,null,null,null,null,null,null,null,null,null,null,null,null,null,null,null,null,null,null,null,null,null,null,null,null,null,null,null,null,null,null,null,null,null,null,null,null,null,null,null,null,null,null,null,null,null,null,null,null,null,null,null,null,null,null,null,null,null,null,null,null,null,null,null,null,null,null,null,null,null,null,null,null,null,null,6,"0000000109","0"]
[null,null,null,null,null,null,null,null,null,null,null,null,null,null,null,null,null,null,null,null,null,null,null,null,null,null,null,null,null,null,null,null,null,null,null,null,null,null,null,null,null,null,null,null,null,null,null,null,null,null,null,null,null,null,null,null,null,null,null,null,null,null,null,null,null,null,null,null,null,null,null,null,null,null,null,null,null,null,null,null,null,null,null,null,null,null,null,null,null,null,7,"D4O21W1IBUB3HEML1KWP5YGOP","DEN04FDC1K04NBJW47LA7T915","ACZ Grade 9 - 15 Total","0018","","S","","L","","","","","",null,null,null,null,null,null,4,"0ORGUNIT","0CRMSRVTGRP","Ex. CRM Service Org.","0000","X","1","0","0","","","","","0000","",null,null,null,null,null,11,"DEN9GQ7MCHCJZVCPL8UOSF7Y1","DA5ON71OOUMI3D7WSP8YZ4FEH","","","","","","00","X","0","0","","",null,null,null,null,null,null,null,null,null,null,null,null,null,null,null,null,null,null,null,null,null,null,null,null,null,null,null,null,null,null,null,null,null,null,null,null,null,null,null,null,null,null,null,null,null,null,null,null,null,null,null,null,null,null,null,null,null,null,null,null,null,null,null,null,null,null,null,null,null,null,null,null,null,null,null,null,null,null,null,null,null,null,null,null,null,null,5,"0000000108",""]
[null,null,null,null,null,null,null,null,null,null,null,null,null,null,null,null,null,null,null,null,null,null,null,null,null,null,null,null,null,null,null,null,null,null,null,null,null,null,null,null,null,null,null,null,null,null,null,null,null,null,null,null,null,null,null,null,null,null,null,null,null,null,null,null,null,null,null,null,null,null,null,null,null,null,null,null,null,null,null,null,null,null,null,null,null,null,null,null,null,null,7,"D4O21W1IBUB3HEML1KWP5YGOP","DEN07Y1DTSSOP5W274CVZL69L","Total Workforce (All)","0033","","S","","L","","","","","",null,null,null,null,null,null,4,"0CNTRCTTYPE","0CNTRCTISFT","Fixed-Term Contract","0000","X","2","0","0","","","","","0000","",null,null,null,null,null,11,"DEN9GQ7MCHDBOHOGWSAAUUM7T","DA5ON71OOUPKTUIY2UZF8U0HL","","","","","","00","X","0","0","","",null,null,null,null,null,null,null,null,null,null,null,null,null,null,null,null,null,null,null,null,null,null,null,null,null,null,null,null,null,null,null,null,null,null,null,null,null,null,null,null,null,null,null,null,null,null,null,null,null,null,null,null,null,null,null,null,null,null,null,null,null,null,null,null,null,null,null,null,null,null,null,null,null,null,null,null,null,null,null,null,null,null,null,null,null,null,5,"0000000121",""]
[null,null,null,null,null,null,null,null,null,null,null,null,null,null,null,null,null,null,null,null,null,null,null,null,null,null,null,null,null,null,null,null,null,null,null,null,null,null,null,null,null,null,null,null,null,null,null,null,null,null,null,null,null,null,null,null,null,null,null,null,null,null,null,null,null,null,null,null,null,null,null,null,null,null,null,null,null,null,null,null,null,null,null,null,null,null,null,null,null,null,6,"D4O21W1IBUB3HEML1KWP5YGOP","DEN0OSIFULEJ6MGY1BPFW6J21","Total Non-Teaching Staff F/T","0025","","S","","L","","","","","",null,null,null,null,null,null,null,null,null,null,null,null,null,null,null,null,null,null,null,null,null,null,null,null,null,null,10,"D4O21W1IBUE67VXMBQN5FO1RT","DA5ON71OOUJFCVWVIJIIPEUBD","","","","","","00","X","0","0","","",null,null,null,null,null,null,null,null,null,null,null,null,null,null,null,null,null,null,null,null,null,null,null,null,null,null,null,null,null,null,null,null,null,null,null,null,null,null,null,null,null,null,null,null,null,null,null,null,null,null,null,null,null,null,null,null,null,null,null,null,null,null,null,null,null,null,null,null,null,null,null,null,null,null,null,null,null,null,null,null,null,null,null,null,null,null,4,"0000000112","0"]
[null,null,null,null,null,null,null,null,null,null,null,null,null,null,null,null,null,null,null,null,null,null,null,null,null,null,null,null,null,null,null,null,null,null,null,null,null,null,null,null,null,null,null,null,null,null,null,null,null,null,null,null,null,null,null,null,null,null,null,null,null,null,null,null,null,null,null,null,null,null,null,null,null,null,null,null,null,null,null,null,null,null,null,null,null,null,null,null,null,null,5,"D4O21W1IBUB3HEML1KWP5YGOP","DEMAGSP8VDTMCQ2Z9KSRG7UGP","Grade 5 - 7 Total","0006","","S","","L","","","","","",null,null,null,null,null,null,null,null,null,null,null,null,null,null,null,null,null,null,null,null,null,null,null,null,null,null,10,"D4O21W1IBUEXWI9DNA2RI3G1L","DA5ON71OOUPKTUIY2UZF8U0HL","","","","","","00","X","0","0","",""]
[null,null,null,null,null,null,null,null,null,null,null,null,null,null,null,null,null,null,null,null,null,null,null,null,null,null,null,null,null,null,null,null,null,null,null,null,null,null,null,null,null,null,null,null,null,null,null,null,null,null,null,null,null,null,null,null,null,null,null,null,null,null,null,null,null,null,null,null,null,null,null,null,null,null,null,null,null,null,null,null,null,null,null,null,null,null,null,null,null,null,5,"D4O21W1IBUB3HEML1KWP5YGOP","D4O21W1IBUO63Y6HHRA4B87AX","Grade 9 - 15 Total","0015","","S","","L","","","","","",null,null,null,null,null,null,null,null,null,null,null,null,null,null,null,null,null,null,null,null,null,null,null,null,null,null,10,"D4O21W1IBUGH9QWWACXZMY8L5","DA5ON71OOUK71I8MU2Y4RU8L5","","","","","","00","X","0","0","",""]
[null,null,null,null,null,null,null,null,null,null,null,null,null,null,null,null,null,null,null,null,null,null,null,null,null,null,null,null,null,null,null,null,null,null,null,null,null,null,null,null,null,null,null,null,null,null,null,null,null,null,null,null,null,null,null,null,null,null,null,null,null,null,null,null,null,null,null,null,null,null,null,null,null,null,null,null,null,null,null,null,null,null,null,null,null,null,null,null,null,null,4,"D4O21W1IBUB3HEML1KWP5YGOP","D4O21W1IBUDEJ9LV077JD8NI1","Grade 1 - 4 F/T","0001","","S","","L","","","","","",null,null,null,null,null,null,null,null,null,null,null,null,null,null,null,null,null,null,null,null,null,null,null,null,null,null,10,"D4O21W1IBUH8YD8NLWDLPDMUX","DA5ON71OOUQCIGUPEEF1B9ERD","","","","","","00","X","0","0","",""]
[null,null,null,null,null,null,null,null,null,null,null,null,null,null,null,null,null,null,null,null,null,null,null,null,null,null,null,null,null,null,null,null,null,null,null,null,null,null,null,null,null,null,null,null,null,null,null,null,null,null,null,null,null,null,null,null,null,null,null,null,null,null,null,null,null,null,null,null,null,null,null,null,null,null,null,null,null,null,null,null,null,null,null,null,null,null,null,null,null,null,4,"DA5ON71OOUHVZN9CVGNAKK1RT","DA5ON71OOUO1GLVFFS473Z7Y1","Sikh","0008","","S","","L","X","","","","",null,null,null,null,null,null,null,null,null,null,null,null,null,null,null,null,null,null,null,null,null,null,null,null,null,null,10,"D4O21W1IBUL3DGVG7LJO1IM7T","DA5ON71OOUKYQ4KE5MDQU9MUX","","","","","","00","X","0","0","",""]
[null,null,null,null,null,null,null,null,null,null,null,null,null,null,null,null,null,null,null,null,null,null,null,null,null,null,null,null,null,null,null,null,null,null,null,null,null,null,null,null,null,null,null,null,null,null,null,null,null,null,null,null,null,null,null,null,null,null,null,null,null,null,null,null,null,null,null,null,null,null,null,null,null,null,null,null,null,null,null,null,null,null,null,null,null,null,null,null,null,null,null,null,null,null,null,null,null,null,null,null,null,null,null,null,null,null,null,null,null,null,null,null,null,null,null,null,null,null,null,null,null,null,null,null,null,null,null,null,null,null,10,"D4O21W1IBUNEFBUQ67UI8ST15","DA5ON71OOUN9RZJO48OL1JTO9","","","","","","00","X","0","0","",""]
[null,null,null,null,null,null,null,null,null,null,null,null,null,null,null,null,null,null,null,null,null,null,null,null,null,null,null,null,null,null,null,null,null,null,null,null,null,null,null,null,null,null,null,null,null,null,null,null,null,null,null,null,null,null,null,null,null,null,null,null,null,null,null,null,null,null,null,null,null,null,null,null,null,null,null,null,null,null,null,null,null,null,null,null,null,null,null,null,null,null,null,null,null,null,null,null,null,null,null,null,null,null,null,null,null,null,null,null,null,null,null,null,null,null,null,null,null,null,null,null,null,null,null,null,null,null,null,null,null,null,10,"D4O21W1IBUWMMRRU0P1V1XKAH","DA5ON71OOUKYQ4KE5MDQU9MUX","","0","","","","00","X","0","0","",""]
[null,null,null,null,null,null,null,null,null,null,null,null,null,null,null,null,null,null,null,null,null,null,null,null,null,null,null,null,null,null,null,null,null,null,null,null,null,null,null,null,null,null,null,null,null,null,null,null,null,null,null,null,null,null,null,null,null,null,null,null,null,null,null,null,null,null,null,null,null,null,null,null,null,null,null,null,null,null,null,null,null,null,null,null,null,null,null,null,null,null,null,null,null,null,null,null,null,null,null,null,null,null,null,null,null,null,null,null,null,null,null,null,null,null,null,null,null,null,null,null,null,null,null,null,null,null,null,null,null,null,10,"D4O21W1IBUXEBE3LC8HH4CYK9","DA5ON71OOUO1GLVFFS473Z7Y1","","0","","","","00","X","0","0","",""]
[null,null,null,null,null,null,null,null,null,null,null,null,null,null,null,null,null,null,null,null,null,null,null,null,null,null,null,null,null,null,null,null,null,null,null,null,null,null,null,null,null,null,null,null,null,null,null,null,null,null,null,null,null,null,null,null,null,null,null,null,null,null,null,null,null,null,null,null,null,null,null,null,null,null,null,null,null,null,null,null,null,null,null,null,null,null,null,null,null,null,null,null,null,null,null,null,null,null,null,null,null,null,null,null,null,null,null,null,null,null,null,null,null,null,null,null,null,null,null,null,null,null,null,null,null,null,null,null,null,null,10,"D4O21W1IBV0H1VEMME7XE2JND","DA5ON71OOUINO9L4702WMZG1L","","","","","","00","X","0","0","",""]
[null,null,null,null,null,null,null,null,null,null,null,null,null,null,null,null,null,null,null,null,null,null,null,null,null,null,null,null,null,null,null,null,null,null,null,null,null,null,null,null,null,null,null,null,null,null,null,null,null,null,null,null,null,null,null,null,null,null,null,null,null,null,null,null,null,null,null,null,null,null,null,null,null,null,null,null,null,null,null,null,null,null,null,null,null,null,null,null,null,null,null,null,null,null,null,null,null,null,null,null,null,null,null,null,null,null,null,null,null,null,null,null,null,null,null,null,null,null,null,null,null,null,null,null,null,null,null,null,null,null,10,"D4O21W1IBV18QHQDXXNJGHXX5","DA5ON71OOUOT5876RBJT6EM7T","","","","","","00","X","0","0","",""]
[null,null,null,null,null,null,null,null,null,null,null,null,null,null,null,null,null,null,null,null,null,null,null,null,null,null,null,null,null,null,null,null,null,null,null,null,null,null,null,null,null,null,null,null,null,null,null,null,null,null,null,null,null,null,null,null,null,null,null,null,null,null,null,null,null,null,null,null,null,null,null,null,null,null,null,null,null,null,null,null,null,null,null,null,null,null,null,null,null,null,null,null,null,null,null,null,null,null,null,null,null,null,null,null,null,null,null,null,null,null,null,null,null,null,null,null,null,null,null,null,null,null,null,null,null,null,null,null,null,null,10,"DEN03PYIT5FSSAA2U7ST53H15","DA5ON71OOUINO9L4702WMZG1L","","","","","","00","X","0","0","",""]
[null,null,null,null,null,null,null,null,null,null,null,null,null,null,null,null,null,null,null,null,null,null,null,null,null,null,null,null,null,null,null,null,null,null,null,null,null,null,null,null,null,null,null,null,null,null,null,null,null,null,null,null,null,null,null,null,null,null,null,null,null,null,null,null,null,null,null,null,null,null,null,null,null,null,null,null,null,null,null,null,null,null,null,null,null,null,null,null,null,null,null,null,null,null,null,null,null,null,null,null,null,null,null,null,null,null,null,null,null,null,null,null,null,null,null,null,null,null,null,null,null,null,null,null,null,null,null,null,null,null,10,"DEN04FDC1K04NBJW47LA7T915","DA5ON71OOUOT5876RBJT6EM7T","","","","","","00","X","0","0","",""]
[null,null,null,null,null,null,null,null,null,null,null,null,null,null,null,null,null,null,null,null,null,null,null,null,null,null,null,null,null,null,null,null,null,null,null,null,null,null,null,null,null,null,null,null,null,null,null,null,null,null,null,null,null,null,null,null,null,null,null,null,null,null,null,null,null,null,null,null,null,null,null,null,null,null,null,null,null,null,null,null,null,null,null,null,null,null,null,null,null,null,null,null,null,null,null,null,null,null,null,null,null,null,null,null,null,null,null,null,null,null,null,null,null,null,null,null,null,null,null,null,null,null,null,null,null,null,null,null,null,null,10,"DEN07Y1DTSO2LFXI9VR7L0SMX","DA5ON71OOUJFCVWVIJIIPEUBD","","0","","","","00","X","0","0","",""]
[null,null,null,null,null,null,null,null,null,null,null,null,null,null,null,null,null,null,null,null,null,null,null,null,null,null,null,null,null,null,null,null,null,null,null,null,null,null,null,null,null,null,null,null,null,null,null,null,null,null,null,null,null,null,null,null,null,null,null,null,null,null,null,null,null,null,null,null,null,null,null,null,null,null,null,null,null,null,null,null,null,null,null,null,null,null,null,null,null,null,null,null,null,null,null,null,null,null,null,null,null,null,null,null,null,null,null,null,null,null,null,null,null,null,null,null,null,null,null,null,null,null,null,null,null,null,null,null,null,null,10,"DEN07Y1DTSOUA299LF6TNG6WP","DA5ON71OOUMI3D7WSP8YZ4FEH","","","","","","00","X","0","0","",""]
[null,null,null,null,null,null,null,null,null,null,null,null,null,null,null,null,null,null,null,null,null,null,null,null,null,null,null,null,null,null,null,null,null,null,null,null,null,null,null,null,null,null,null,null,null,null,null,null,null,null,null,null,null,null,null,null,null,null,null,null,null,null,null,null,null,null,null,null,null,null,null,null,null,null,null,null,null,null,null,null,null,null,null,null,null,null,null,null,null,null,null,null,null,null,null,null,null,null,null,null,null,null,null,null,null,null,null,null,null,null,null,null,null,null,null,null,null,null,null,null,null,null,null,null,null,null,null,null,null,null,10,"DEN07Y1DTSRX0JKAVKX9X5RZT","DA5ON71OOUJFCVWVIJIIPEUBD","","","","","","00","X","0","0","",""]
[null,null,null,null,null,null,null,null,null,null,null,null,null,null,null,null,null,null,null,null,null,null,null,null,null,null,null,null,null,null,null,null,null,null,null,null,null,null,null,null,null,null,null,null,null,null,null,null,null,null,null,null,null,null,null,null,null,null,null,null,null,null,null,null,null,null,null,null,null,null,null,null,null,null,null,null,null,null,null,null,null,null,null,null,null,null,null,null,null,null,null,null,null,null,null,null,null,null,null,null,null,null,null,null,null,null,null,null,null,null,null,null,null,null,null,null,null,null,null,null,null,null,null,null,null,null,null,null,null,null,10,"DEN07Y1DTSSOP5W274CVZL69L","DA5ON71OOULQEQW5H5TCWP14P","","","","","","00","X","0","0","",""]
[null,null,null,null,null,null,null,null,null,null,null,null,null,null,null,null,null,null,null,null,null,null,null,null,null,null,null,null,null,null,null,null,null,null,null,null,null,null,null,null,null,null,null,null,null,null,null,null,null,null,null,null,null,null,null,null,null,null,null,null,null,null,null,null,null,null,null,null,null,null,null,null,null,null,null,null,null,null,null,null,null,null,null,null,null,null,null,null,null,null,null,null,null,null,null,null,null,null,null,null,null,null,null,null,null,null,null,null,null,null,null,null,null,null,null,null,null,null,null,null,null,null,null,null,null,null,null,null,null,null,10,"DEN0OSIFULDRI056PS9TTR4S9","DA5ON71OOUJFCVWVIJIIPEUBD","","","","","","00","X","0","0","",""]
[null,null,null,null,null,null,null,null,null,null,null,null,null,null,null,null,null,null,null,null,null,null,null,null,null,null,null,null,null,null,null,null,null,null,null,null,null,null,null,null,null,null,null,null,null,null,null,null,null,null,null,null,null,null,null,null,null,null,null,null,null,null,null,null,null,null,null,null,null,null,null,null,null,null,null,null,null,null,null,null,null,null,null,null,null,null,null,null,null,null,null,null,null,null,null,null,null,null,null,null,null,null,null,null,null,null,null,null,null,null,null,null,null,null,null,null,null,null,null,null,null,null,null,null,null,null,null,null,null,null,10,"DEN0OSIFULEJ6MGY1BPFW6J21","DA5ON71OOUMI3D7WSP8YZ4FEH","","","","","","00","X","0","0","",""]
[null,null,null,null,null,null,null,null,null,null,null,null,null,null,null,null,null,null,null,null,null,null,null,null,null,null,null,null,null,null,null,null,null,null,null,null,null,null,null,null,null,null,null,null,null,null,null,null,null,null,null,null,null,null,null,null,null,null,null,null,null,null,null,null,null,null,null,null,null,null,null,null,null,null,null,null,null,null,null,null,null,null,null,null,null,null,null,null,null,null,null,null,null,null,null,null,null,null,null,null,null,null,null,null,null,null,null,null,null,null,null,null,null,null,null,null,null,null,null,null,null,null,null,null,null,null,null,null,null,null,9,"D4O21W1IBUDEJ9LV077JD8NI1","DA5ON71OOUPKTUIY2UZF8U0HL","","","","","","00","X","0","0","",""]
[null,null,null,null,null,null,null,null,null,null,null,null,null,null,null,null,null,null,null,null,null,null,null,null,null,null,null,null,null,null,null,null,null,null,null,null,null,null,null,null,null,null,null,null,null,null,null,null,null,null,null,null,null,null,null,null,null,null,null,null,null,null,null,null,null,null,null,null,null,null,null,null,null,null,null,null,null,null,null,null,null,null,null,null,null,null,null,null,null,null,null,null,null,null,null,null,null,null,null,null,null,null,null,null,null,null,null,null,null,null,null,null,null,null,null,null,null,null,null,null,null,null,null,null,null,null,null,null,null,null,9,"D4O21W1IBUGH9QWWACXZMY8L5","DA5ON71OOUMI3D7WSP8YZ4FEH","","","","","","00","X","0","0","",""]
[null,null,null,null,null,null,null,null,null,null,null,null,null,null,null,null,null,null,null,null,null,null,null,null,null,null,null,null,null,null,null,null,null,null,null,null,null,null,null,null,null,null,null,null,null,null,null,null,null,null,null,null,null,null,null,null,null,null,null,null,null,null,null,null,null,null,null,null,null,null,null,null,null,null,null,null,null,null,null,null,null,null,null,null,null,null,null,null,null,null,null,null,null,null,null,null,null,null,null,null,null,null,null,null,null,null,null,null,null,null,null,null,null,null,null,null,null,null,null,null,null,null,null,null,null,null,null,null,null,null,9,"D4O21W1IBUH8YD8NLWDLPDMUX","DA5ON71OOUPKTUIY2UZF8U0HL","","","","","","00","X","0","0","",""]
[null,null,null,null,null,null,null,null,null,null,null,null,null,null,null,null,null,null,null,null,null,null,null,null,null,null,null,null,null,null,null,null,null,null,null,null,null,null,null,null,null,null,null,null,null,null,null,null,null,null,null,null,null,null,null,null,null,null,null,null,null,null,null,null,null,null,null,null,null,null,null,null,null,null,null,null,null,null,null,null,null,null,null,null,null,null,null,null,null,null,null,null,null,null,null,null,null,null,null,null,null,null,null,null,null,null,null,null,null,null,null,null,null,null,null,null,null,null,null,null,null,null,null,null,null,null,null,null,null,null,9,"D4O21W1IBUL3DGVG7LJO1IM7T","DA5ON71OOUK71I8MU2Y4RU8L5","","","","","","00","X","0","0","",""]
[null,null,null,null,null,null,null,null,null,null,null,null,null,null,null,null,null,null,null,null,null,null,null,null,null,null,null,null,null,null,null,null,null,null,null,null,null,null,null,null,null,null,null,null,null,null,null,null,null,null,null,null,null,null,null,null,null,null,null,null,null,null,null,null,null,null,null,null,null,null,null,null,null,null,null,null,null,null,null,null,null,null,null,null,null,null,null,null,null,null,null,null,null,null,null,null,null,null,null,null,null,null,null,null,null,null,null,null,null,null,null,null,null,null,null,null,null,null,null,null,null,null,null,null,null,null,null,null,null,null,9,"D4O21W1IBULV2377J4ZA3Y0HL","DA5ON71OOUQCIGUPEEF1B9ERD","","","","","","00","X","0","0","",""]
[null,null,null,null,null,null,null,null,null,null,null,null,null,null,null,null,null,null,null,null,null,null,null,null,null,null,null,null,null,null,null,null,null,null,null,null,null,null,null,null,null,null,null,null,null,null,null,null,null,null,null,null,null,null,null,null,null,null,null,null,null,null,null,null,null,null,null,null,null,null,null,null,null,null,null,null,null,null,null,null,null,null,null,null,null,null,null,null,null,null,null,null,null,null,null,null,null,null,null,null,null,null,null,null,null,null,null,null,null,null,null,null,null,null,null,null,null,null,null,null,null,null,null,null,null,null,null,null,null,null,9,"D4O21W1IBUWMMRRU0P1V1XKAH","DA5ON71OOUK71I8MU2Y4RU8L5","","0","","","","00","X","0","0","",""]
[null,null,null,null,null,null,null,null,null,null,null,null,null,null,null,null,null,null,null,null,null,null,null,null,null,null,null,null,null,null,null,null,null,null,null,null,null,null,null,null,null,null,null,null,null,null,null,null,null,null,null,null,null,null,null,null,null,null,null,null,null,null,null,null,null,null,null,null,null,null,null,null,null,null,null,null,null,null,null,null,null,null,null,null,null,null,null,null,null,null,null,null,null,null,null,null,null,null,null,null,null,null,null,null,null,null,null,null,null,null,null,null,null,null,null,null,null,null,null,null,null,null,null,null,null,null,null,null,null,null,9,"D4O21W1IBUXEBE3LC8HH4CYK9","DA5ON71OOUQCIGUPEEF1B9ERD","","0","","","","00","X","0","0","",""]
[null,null,null,null,null,null,null,null,null,null,null,null,null,null,null,null,null,null,null,null,null,null,null,null,null,null,null,null,null,null,null,null,null,null,null,null,null,null,null,null,null,null,null,null,null,null,null,null,null,null,null,null,null,null,null,null,null,null,null,null,null,null,null,null,null,null,null,null,null,null,null,null,null,null,null,null,null,null,null,null,null,null,null,null,null,null,null,null,null,null,null,null,null,null,null,null,null,null,null,null,null,null,null,null,null,null,null,null,null,null,null,null,null,null,null,null,null,null,null,null,null,null,null,null,null,null,null,null,null,null,9,"D4O21W1IBV0H1VEMME7XE2JND","DA5ON71OOUKYQ4KE5MDQU9MUX","","","","","","00","X","0","0","",""]
[null,null,null,null,null,null,null,null,null,null,null,null,null,null,null,null,null,null,null,null,null,null,null,null,null,null,null,null,null,null,null,null,null,null,null,null,null,null,null,null,null,null,null,null,null,null,null,null,null,null,null,null,null,null,null,null,null,null,null,null,null,null,null,null,null,null,null,null,null,null,null,null,null,null,null,null,null,null,null,null,null,null,null,null,null,null,null,null,null,null,null,null,null,null,null,null,null,null,null,null,null,null,null,null,null,null,null,null,null,null,null,null,null,null,null,null,null,null,null,null,null,null,null,null,null,null,null,null,null,null,9,"D4O21W1IBV18QHQDXXNJGHXX5","DA5ON71OOUO1GLVFFS473Z7Y1","","","","","","00","X","0","0","",""]
[null,null,null,null,null,null,null,null,null,null,null,null,null,null,null,null,null,null,null,null,null,null,null,null,null,null,null,null,null,null,null,null,null,null,null,null,null,null,null,null,null,null,null,null,null,null,null,null,null,null,null,null,null,null,null,null,null,null,null,null,null,null,null,null,null,null,null,null,null,null,null,null,null,null,null,null,null,null,null,null,null,null,null,null,null,null,null,null,null,null,null,null,null,null,null,null,null,null,null,null,null,null,null,null,null,null,null,null,null,null,null,null,null,null,null,null,null,null,null,null,null,null,null,null,null,null,null,null,null,null,9,"DEMAFDB5LZ4S252XBVM7GJP4P","DA5ON71OOULQEQW5H5TCWP14P","","","","","","00","X","0","0","",""]
[null,null,null,null,null,null,null,null,null,null,null,null,null,null,null,null,null,null,null,null,null,null,null,null,null,null,null,null,null,null,null,null,null,null,null,null,null,null,null,null,null,null,null,null,null,null,null,null,null,null,null,null,null,null,null,null,null,null,null,null,null,null,null,null,null,null,null,null,null,null,null,null,null,null,null,null,null,null,null,null,null,null,null,null,null,null,null,null,null,null,null,null,null,null,null,null,null,null,null,null,null,null,null,null,null,null,null,null,null,null,null,null,null,null,null,null,null,null,null,null,null,null,null,null,null,null,null,null,null,null,9,"DEN04FDC1K04NBJW47LA7T915","DA5ON71OOUO1GLVFFS473Z7Y1","","","","","","00","X","0","0","",""]
[null,null,null,null,null,null,null,null,null,null,null,null,null,null,null,null,null,null,null,null,null,null,null,null,null,null,null,null,null,null,null,null,null,null,null,null,null,null,null,null,null,null,null,null,null,null,null,null,null,null,null,null,null,null,null,null,null,null,null,null,null,null,null,null,null,null,null,null,null,null,null,null,null,null,null,null,null,null,null,null,null,null,null,null,null,null,null,null,null,null,null,null,null,null,null,null,null,null,null,null,null,null,null,null,null,null,null,null,null,null,null,null,null,null,null,null,null,null,null,null,null,null,null,null,null,null,null,null,null,null,9,"DEN07Y1DTSO2LFXI9VR7L0SMX","DA5ON71OOUINO9L4702WMZG1L","","0","","","","00","X","0","0","",""]
[null,null,null,null,null,null,null,null,null,null,null,null,null,null,null,null,null,null,null,null,null,null,null,null,null,null,null,null,null,null,null,null,null,null,null,null,null,null,null,null,null,null,null,null,null,null,null,null,null,null,null,null,null,null,null,null,null,null,null,null,null,null,null,null,null,null,null,null,null,null,null,null,null,null,null,null,null,null,null,null,null,null,null,null,null,null,null,null,null,null,null,null,null,null,null,null,null,null,null,null,null,null,null,null,null,null,null,null,null,null,null,null,null,null,null,null,null,null,null,null,null,null,null,null,null,null,null,null,null,null,9,"DEN07Y1DTSOUA299LF6TNG6WP","DA5ON71OOUOT5876RBJT6EM7T","","","","","","00","X","0","0","",""]
[null,null,null,null,null,null,null,null,null,null,null,null,null,null,null,null,null,null,null,null,null,null,null,null,null,null,null,null,null,null,null,null,null,null,null,null,null,null,null,null,null,null,null,null,null,null,null,null,null,null,null,null,null,null,null,null,null,null,null,null,null,null,null,null,null,null,null,null,null,null,null,null,null,null,null,null,null,null,null,null,null,null,null,null,null,null,null,null,null,null,null,null,null,null,null,null,null,null,null,null,null,null,null,null,null,null,null,null,null,null,null,null,null,null,null,null,null,null,null,null,null,null,null,null,null,null,null,null,null,null,9,"DEN07Y1DTSQDNAWS8I21SAZG9","DA5ON71OOUJFCVWVIJIIPEUBD","","0","","","","00","X","0","0","",""]
[null,null,null,null,null,null,null,null,null,null,null,null,null,null,null,null,null,null,null,null,null,null,null,null,null,null,null,null,null,null,null,null,null,null,null,null,null,null,null,null,null,null,null,null,null,null,null,null,null,null,null,null,null,null,null,null,null,null,null,null,null,null,null,null,null,null,null,null,null,null,null,null,null,null,null,null,null,null,null,null,null,null,null,null,null,null,null,null,null,null,null,null,null,null,null,null,null,null,null,null,null,null,null,null,null,null,null,null,null,null,null,null,null,null,null,null,null,null,null,null,null,null,null,null,null,null,null,null,null,null,9,"DEN07Y1DTSR5BX8JK1HNUQDQ1","DA5ON71OOUPKTUIY2UZF8U0HL","","","","","","00","X","0","0","",""]
[null,null,null,null,null,null,null,null,null,null,null,null,null,null,null,null,null,null,null,null,null,null,null,null,null,null,null,null,null,null,null,null,null,null,null,null,null,null,null,null,null,null,null,null,null,null,null,null,null,null,null,null,null,null,null,null,null,null,null,null,null,null,null,null,null,null,null,null,null,null,null,null,null,null,null,null,null,null,null,null,null,null,null,null,null,null,null,null,null,null,null,null,null,null,null,null,null,null,null,null,null,null,null,null,null,null,null,null,null,null,null,null,null,null,null,null,null,null,null,null,null,null,null,null,null,null,null,null,null,null,9,"DEN0OSIFULDRI056PS9TTR4S9","DA5ON71OOUJFCVWVIJIIPEUBD","","","","","","00","X","0","0","",""]
[null,null,null,null,null,null,null,null,null,null,null,null,null,null,null,null,null,null,null,null,null,null,null,null,null,null,null,null,null,null,null,null,null,null,null,null,null,null,null,null,null,null,null,null,null,null,null,null,null,null,null,null,null,null,null,null,null,null,null,null,null,null,null,null,null,null,null,null,null,null,null,null,null,null,null,null,null,null,null,null,null,null,null,null,null,null,null,null,null,null,null,null,null,null,null,null,null,null,null,null,null,null,null,null,null,null,null,null,null,null,null,null,null,null,null,null,null,null,null,null,null,null,null,null,null,null,null,null,null,null,9,"DEN0OSIFULEJ6MGY1BPFW6J21","DA5ON71OOUMI3D7WSP8YZ4FEH","","","","","","00","X","0","0","",""]
[null,null,null,null,null,null,null,null,null,null,null,null,null,null,null,null,null,null,null,null,null,null,null,null,null,null,null,null,null,null,null,null,null,null,null,null,null,null,null,null,null,null,null,null,null,null,null,null,null,null,null,null,null,null,null,null,null,null,null,null,null,null,null,null,null,null,null,null,null,null,null,null,null,null,null,null,null,null,null,null,null,null,null,null,null,null,null,null,null,null,null,null,null,null,null,null,null,null,null,null,null,null,null,null,null,null,null,null,null,null,null,null,null,null,null,null,null,null,null,null,null,null,null,null,null,null,null,null,null,null,8,"D4O21W1IBUE67VXMBQN5FO1RT","DA5ON71OOUK71I8MU2Y4RU8L5","","","","","","00","X","0","0","",""]
[null,null,null,null,null,null,null,null,null,null,null,null,null,null,null,null,null,null,null,null,null,null,null,null,null,null,null,null,null,null,null,null,null,null,null,null,null,null,null,null,null,null,null,null,null,null,null,null,null,null,null,null,null,null,null,null,null,null,null,null,null,null,null,null,null,null,null,null,null,null,null,null,null,null,null,null,null,null,null,null,null,null,null,null,null,null,null,null,null,null,null,null,null,null,null,null,null,null,null,null,null,null,null,null,null,null,null,null,null,null,null,null,null,null,null,null,null,null,null,null,null,null,null,null,null,null,null,null,null,null,8,"D4O21W1IBUEXWI9DNA2RI3G1L","DA5ON71OOUOT5876RBJT6EM7T","","","","","","00","X","0","0","",""]
[null,null,null,null,null,null,null,null,null,null,null,null,null,null,null,null,null,null,null,null,null,null,null,null,null,null,null,null,null,null,null,null,null,null,null,null,null,null,null,null,null,null,null,null,null,null,null,null,null,null,null,null,null,null,null,null,null,null,null,null,null,null,null,null,null,null,null,null,null,null,null,null,null,null,null,null,null,null,null,null,null,null,null,null,null,null,null,null,null,null,null,null,null,null,null,null,null,null,null,null,null,null,null,null,null,null,null,null,null,null,null,null,null,null,null,null,null,null,null,null,null,null,null,null,null,null,null,null,null,null,8,"D4O21W1IBUGH9QWWACXZMY8L5","DA5ON71OOUK71I8MU2Y4RU8L5","","","","","","00","X","0","0","",""]
[null,null,null,null,null,null,null,null,null,null,null,null,null,null,null,null,null,null,null,null,null,null,null,null,null,null,null,null,null,null,null,null,null,null,null,null,null,null,null,null,null,null,null,null,null,null,null,null,null,null,null,null,null,null,null,null,null,null,null,null,null,null,null,null,null,null,null,null,null,null,null,null,null,null,null,null,null,null,null,null,null,null,null,null,null,null,null,null,null,null,null,null,null,null,null,null,null,null,null,null,null,null,null,null,null,null,null,null,null,null,null,null,null,null,null,null,null,null,null,null,null,null,null,null,null,null,null,null,null,null,8,"D4O21W1IBUL3DGVG7LJO1IM7T","DA5ON71OOUMI3D7WSP8YZ4FEH","","","","","","00","X","0","0","",""]
[null,null,null,null,null,null,null,null,null,null,null,null,null,null,null,null,null,null,null,null,null,null,null,null,null,null,null,null,null,null,null,null,null,null,null,null,null,null,null,null,null,null,null,null,null,null,null,null,null,null,null,null,null,null,null,null,null,null,null,null,null,null,null,null,null,null,null,null,null,null,null,null,null,null,null,null,null,null,null,null,null,null,null,null,null,null,null,null,null,null,null,null,null,null,null,null,null,null,null,null,null,null,null,null,null,null,null,null,null,null,null,null,null,null,null,null,null,null,null,null,null,null,null,null,null,null,null,null,null,null,8,"D4O21W1IBULV2377J4ZA3Y0HL","DA5ON71OOUPKTUIY2UZF8U0HL","","","","","","00","X","0","0","",""]
[null,null,null,null,null,null,null,null,null,null,null,null,null,null,null,null,null,null,null,null,null,null,null,null,null,null,null,null,null,null,null,null,null,null,null,null,null,null,null,null,null,null,null,null,null,null,null,null,null,null,null,null,null,null,null,null,null,null,null,null,null,null,null,null,null,null,null,null,null,null,null,null,null,null,null,null,null,null,null,null,null,null,null,null,null,null,null,null,null,null,null,null,null,null,null,null,null,null,null,null,null,null,null,null,null,null,null,null,null,null,null,null,null,null,null,null,null,null,null,null,null,null,null,null,null,null,null,null,null,null,8,"D4O21W1IBUNEFBUQ67UI8ST15","DA5ON71OOUN9RZJO48OL1JTO9","","","","","","00","X","0","0","",""]
[null,null,null,null,null,null,null,null,null,null,null,null,null,null,null,null,null,null,null,null,null,null,null,null,null,null,null,null,null,null,null,null,null,null,null,null,null,null,null,null,null,null,null,null,null,null,null,null,null,null,null,null,null,null,null,null,null,null,null,null,null,null,null,null,null,null,null,null,null,null,null,null,null,null,null,null,null,null,null,null,null,null,null,null,null,null,null,null,null,null,null,null,null,null,null,null,null,null,null,null,null,null,null,null,null,null,null,null,null,null,null,null,null,null,null,null,null,null,null,null,null,null,null,null,null,null,null,null,null,null,8,"D4O21W1IBUO63Y6HHRA4B87AX","DA5ON71OOUQCIGUPEEF1B9ERD","","","","","","00","X","0","0","",""]
[null,null,null,null,null,null,null,null,null,null,null,null,null,null,null,null,null,null,null,null,null,null,null,null,null,null,null,null,null,null,null,null,null,null,null,null,null,null,null,null,null,null,null,null,null,null,null,null,null,null,null,null,null,null,null,null,null,null,null,null,null,null,null,null,null,null,null,null,null,null,null,null,null,null,null,null,null,null,null,null,null,null,null,null,null,null,null,null,null,null,null,null,null,null,null,null,null,null,null,null,null,null,null,null,null,null,null,null,null,null,null,null,null,null,null,null,null,null,null,null,null,null,null,null,null,null,null,null,null,null,8,"D4O21W1IBV0H1VEMME7XE2JND","DA5ON71OOUK71I8MU2Y4RU8L5","","","","","","00","X","0","0","",""]
[null,null,null,null,null,null,null,null,null,null,null,null,null,null,null,null,null,null,null,null,null,null,null,null,null,null,null,null,null,null,null,null,null,null,null,null,null,null,null,null,null,null,null,null,null,null,null,null,null,null,null,null,null,null,null,null,null,null,null,null,null,null,null,null,null,null,null,null,null,null,null,null,null,null,null,null,null,null,null,null,null,null,null,null,null,null,null,null,null,null,null,null,null,null,null,null,null,null,null,null,null,null,null,null,null,null,null,null,null,null,null,null,null,null,null,null,null,null,null,null,null,null,null,null,null,null,null,null,null,null,8,"D4O21W1IBV18QHQDXXNJGHXX5","DA5ON71OOUQCIGUPEEF1B9ERD","","","","","","00","X","0","0","",""]
[null,null,null,null,null,null,null,null,null,null,null,null,null,null,null,null,null,null,null,null,null,null,null,null,null,null,null,null,null,null,null,null,null,null,null,null,null,null,null,null,null,null,null,null,null,null,null,null,null,null,null,null,null,null,null,null,null,null,null,null,null,null,null,null,null,null,null,null,null,null,null,null,null,null,null,null,null,null,null,null,null,null,null,null,null,null,null,null,null,null,null,null,null,null,null,null,null,null,null,null,null,null,null,null,null,null,null,null,null,null,null,null,null,null,null,null,null,null,null,null,null,null,null,null,null,null,null,null,null,null,8,"DEMAFDB5LZ4S252XBVM7GJP4P","DA5ON71OOUKYQ4KE5MDQU9MUX","","","","","","00","X","0","0","",""]
[null,null,null,null,null,null,null,null,null,null,null,null,null,null,null,null,null,null,null,null,null,null,null,null,null,null,null,null,null,null,null,null,null,null,null,null,null,null,null,null,null,null,null,null,null,null,null,null,null,null,null,null,null,null,null,null,null,null,null,null,null,null,null,null,null,null,null,null,null,null,null,null,null,null,null,null,null,null,null,null,null,null,null,null,null,null,null,null,null,null,null,null,null,null,null,null,null,null,null,null,null,null,null,null,null,null,null,null,null,null,null,null,null,null,null,null,null,null,null,null,null,null,null,null,null,null,null,null,null,null,8,"DEN03PYIT5FSSAA2U7ST53H15","DA5ON71OOUINO9L4702WMZG1L","","","","","","00","X","0","0","",""]
[null,null,null,null,null,null,null,null,null,null,null,null,null,null,null,null,null,null,null,null,null,null,null,null,null,null,null,null,null,null,null,null,null,null,null,null,null,null,null,null,null,null,null,null,null,null,null,null,null,null,null,null,null,null,null,null,null,null,null,null,null,null,null,null,null,null,null,null,null,null,null,null,null,null,null,null,null,null,null,null,null,null,null,null,null,null,null,null,null,null,null,null,null,null,null,null,null,null,null,null,null,null,null,null,null,null,null,null,null,null,null,null,null,null,null,null,null,null,null,null,null,null,null,null,null,null,null,null,null,null,8,"DEN04FDC1K04NBJW47LA7T915","DA5ON71OOULQEQW5H5TCWP14P","","","","","","00","X","0","0","",""]
[null,null,null,null,null,null,null,null,null,null,null,null,null,null,null,null,null,null,null,null,null,null,null,null,null,null,null,null,null,null,null,null,null,null,null,null,null,null,null,null,null,null,null,null,null,null,null,null,null,null,null,null,null,null,null,null,null,null,null,null,null,null,null,null,null,null,null,null,null,null,null,null,null,null,null,null,null,null,null,null,null,null,null,null,null,null,null,null,null,null,null,null,null,null,null,null,null,null,null,null,null,null,null,null,null,null,null,null,null,null,null,null,null,null,null,null,null,null,null,null,null,null,null,null,null,null,null,null,null,null,8,"DEN07Y1DTSOUA299LF6TNG6WP","DA5ON71OOUO1GLVFFS473Z7Y1","","","","","","00","X","0","0","",""]
[null,null,null,null,null,null,null,null,null,null,null,null,null,null,null,null,null,null,null,null,null,null,null,null,null,null,null,null,null,null,null,null,null,null,null,null,null,null,null,null,null,null,null,null,null,null,null,null,null,null,null,null,null,null,null,null,null,null,null,null,null,null,null,null,null,null,null,null,null,null,null,null,null,null,null,null,null,null,null,null,null,null,null,null,null,null,null,null,null,null,null,null,null,null,null,null,null,null,null,null,null,null,null,null,null,null,null,null,null,null,null,null,null,null,null,null,null,null,null,null,null,null,null,null,null,null,null,null,null,null,8,"DEN07Y1DTSQDNAWS8I21SAZG9","DA5ON71OOULQEQW5H5TCWP14P","","0","","","","00","X","0","0","",""]
[null,null,null,null,null,null,null,null,null,null,null,null,null,null,null,null,null,null,null,null,null,null,null,null,null,null,null,null,null,null,null,null,null,null,null,null,null,null,null,null,null,null,null,null,null,null,null,null,null,null,null,null,null,null,null,null,null,null,null,null,null,null,null,null,null,null,null,null,null,null,null,null,null,null,null,null,null,null,null,null,null,null,null,null,null,null,null,null,null,null,null,null,null,null,null,null,null,null,null,null,null,null,null,null,null,null,null,null,null,null,null,null,null,null,null,null,null,null,null,null,null,null,null,null,null,null,null,null,null,null,8,"DEN07Y1DTSR5BX8JK1HNUQDQ1","DA5ON71OOUOT5876RBJT6EM7T","","","","","","00","X","0","0","",""]
[null,null,null,null,null,null,null,null,null,null,null,null,null,null,null,null,null,null,null,null,null,null,null,null,null,null,null,null,null,null,null,null,null,null,null,null,null,null,null,null,null,null,null,null,null,null,null,null,null,null,null,null,null,null,null,null,null,null,null,null,null,null,null,null,null,null,null,null,null,null,null,null,null,null,null,null,null,null,null,null,null,null,null,null,null,null,null,null,null,null,null,null,null,null,null,null,null,null,null,null,null,null,null,null,null,null,null,null,null,null,null,null,null,null,null,null,null,null,null,null,null,null,null,null,null,null,null,null,null,null,8,"DEN07Y1DTSSOP5W274CVZL69L","DA5ON71OOUMI3D7WSP8YZ4FEH","","","","","","00","X","0","0","",""]
[null,null,null,null,null,null,null,null,null,null,null,null,null,null,null,null,null,null,null,null,null,null,null,null,null,null,null,null,null,null,null,null,null,null,null,null,null,null,null,null,null,null,null,null,null,null,null,null,null,null,null,null,null,null,null,null,null,null,null,null,null,null,null,null,null,null,null,null,null,null,null,null,null,null,null,null,null,null,null,null,null,null,null,null,null,null,null,null,null,null,null,null,null,null,null,null,null,null,null,null,null,null,null,null,null,null,null,null,null,null,null,null,null,null,null,null,null,null,null,null,null,null,null,null,null,null,null,null,null,null,8,"DEN0OSIFULCZTDTFE8U7RBQIH","DA5ON71OOUPKTUIY2UZF8U0HL","","","","","","00","X","0","0","",""]
[null,null,null,null,null,null,null,null,null,null,null,null,null,null,null,null,null,null,null,null,null,null,null,null,null,null,null,null,null,null,null,null,null,null,null,null,null,null,null,null,null,null,null,null,null,null,null,null,null,null,null,null,null,null,null,null,null,null,null,null,null,null,null,null,null,null,null,null,null,null,null,null,null,null,null,null,null,null,null,null,null,null,null,null,null,null,null,null,null,null,null,null,null,null,null,null,null,null,null,null,null,null,null,null,null,null,null,null,null,null,null,null,null,null,null,null,null,null,null,null,null,null,null,null,null,null,null,null,null,null,7,"D4O21W1IBUE67VXMBQN5FO1RT","DA5ON71OOUJFCVWVIJIIPEUBD","","","","","","00","X","0","0","",""]
[null,null,null,null,null,null,null,null,null,null,null,null,null,null,null,null,null,null,null,null,null,null,null,null,null,null,null,null,null,null,null,null,null,null,null,null,null,null,null,null,null,null,null,null,null,null,null,null,null,null,null,null,null,null,null,null,null,null,null,null,null,null,null,null,null,null,null,null,null,null,null,null,null,null,null,null,null,null,null,null,null,null,null,null,null,null,null,null,null,null,null,null,null,null,null,null,null,null,null,null,null,null,null,null,null,null,null,null,null,null,null,null,null,null,null,null,null,null,null,null,null,null,null,null,null,null,null,null,null,null,7,"D4O21W1IBUEXWI9DNA2RI3G1L","DA5ON71OOUPKTUIY2UZF8U0HL","","","","","","00","X","0","0","",""]
[null,null,null,null,null,null,null,null,null,null,null,null,null,null,null,null,null,null,null,null,null,null,null,null,null,null,null,null,null,null,null,null,null,null,null,null,null,null,null,null,null,null,null,null,null,null,null,null,null,null,null,null,null,null,null,null,null,null,null,null,null,null,null,null,null,null,null,null,null,null,null,null,null,null,null,null,null,null,null,null,null,null,null,null,null,null,null,null,null,null,null,null,null,null,null,null,null,null,null,null,null,null,null,null,null,null,null,null,null,null,null,null,null,null,null,null,null,null,null,null,null,null,null,null,null,null,null,null,null,null,7,"D4O21W1IBUGH9QWWACXZMY8L5","DA5ON71OOUK71I8MU2Y4RU8L5","","","","","","00","X","0","0","",""]
[null,null,null,null,null,null,null,null,null,null,null,null,null,null,null,null,null,null,null,null,null,null,null,null,null,null,null,null,null,null,null,null,null,null,null,null,null,null,null,null,null,null,null,null,null,null,null,null,null,null,null,null,null,null,null,null,null,null,null,null,null,null,null,null,null,null,null,null,null,null,null,null,null,null,null,null,null,null,null,null,null,null,null,null,null,null,null,null,null,null,null,null,null,null,null,null,null,null,null,null,null,null,null,null,null,null,null,null,null,null,null,null,null,null,null,null,null,null,null,null,null,null,null,null,null,null,null,null,null,null,7,"D4O21W1IBUH8YD8NLWDLPDMUX","DA5ON71OOUN9RZJO48OL1JTO9","","","","","","00","X","0","0","",""]
[null,null,null,null,null,null,null,null,null,null,null,null,null,null,null,null,null,null,null,null,null,null,null,null,null,null,null,null,null,null,null,null,null,null,null,null,null,null,null,null,null,null,null,null,null,null,null,null,null,null,null,null,null,null,null,null,null,null,null,null,null,null,null,null,null,null,null,null,null,null,null,null,null,null,null,null,null,null,null,null,null,null,null,null,null,null,null,null,null,null,null,null,null,null,null,null,null,null,null,null,null,null,null,null,null,null,null,null,null,null,null,null,null,null,null,null,null,null,null,null,null,null,null,null,null,null,null,null,null,null,7,"D4O21W1IBUL3DGVG7LJO1IM7T","DA5ON71OOUKYQ4KE5MDQU9MUX","","","","","","00","X","0","0","",""]
[null,null,null,null,null,null,null,null,null,null,null,null,null,null,null,null,null,null,null,null,null,null,null,null,null,null,null,null,null,null,null,null,null,null,null,null,null,null,null,null,null,null,null,null,null,null,null,null,null,null,null,null,null,null,null,null,null,null,null,null,null,null,null,null,null,null,null,null,null,null,null,null,null,null,null,null,null,null,null,null,null,null,null,null,null,null,null,null,null,null,null,null,null,null,null,null,null,null,null,null,null,null,null,null,null,null,null,null,null,null,null,null,null,null,null,null,null,null,null,null,null,null,null,null,null,null,null,null,null,null,7,"D4O21W1IBUNEFBUQ67UI8ST15","DA5ON71OOUQCIGUPEEF1B9ERD","","","","","","00","X","0","0","",""]
[null,null,null,null,null,null,null,null,null,null,null,null,null,null,null,null,null,null,null,null,null,null,null,null,null,null,null,null,null,null,null,null,null,null,null,null,null,null,null,null,null,null,null,null,null,null,null,null,null,null,null,null,null,null,null,null,null,null,null,null,null,null,null,null,null,null,null,null,null,null,null,null,null,null,null,null,null,null,null,null,null,null,null,null,null,null,null,null,null,null,null,null,null,null,null,null,null,null,null,null,null,null,null,null,null,null,null,null,null,null,null,null,null,null,null,null,null,null,null,null,null,null,null,null,null,null,null,null,null,null,7,"D4O21W1IBUWMMRRU0P1V1XKAH","DA5ON71OOUK71I8MU2Y4RU8L5","","0","","","","00","X","0","0","",""]
[null,null,null,null,null,null,null,null,null,null,null,null,null,null,null,null,null,null,null,null,null,null,null,null,null,null,null,null,null,null,null,null,null,null,null,null,null,null,null,null,null,null,null,null,null,null,null,null,null,null,null,null,null,null,null,null,null,null,null,null,null,null,null,null,null,null,null,null,null,null,null,null,null,null,null,null,null,null,null,null,null,null,null,null,null,null,null,null,null,null,null,null,null,null,null,null,null,null,null,null,null,null,null,null,null,null,null,null,null,null,null,null,null,null,null,null,null,null,null,null,null,null,null,null,null,null,null,null,null,null,7,"D4O21W1IBUXEBE3LC8HH4CYK9","DA5ON71OOUN9RZJO48OL1JTO9","","0","","","","00","X","0","0","",""]
[null,null,null,null,null,null,null,null,null,null,null,null,null,null,null,null,null,null,null,null,null,null,null,null,null,null,null,null,null,null,null,null,null,null,null,null,null,null,null,null,null,null,null,null,null,null,null,null,null,null,null,null,null,null,null,null,null,null,null,null,null,null,null,null,null,null,null,null,null,null,null,null,null,null,null,null,null,null,null,null,null,null,null,null,null,null,null,null,null,null,null,null,null,null,null,null,null,null,null,null,null,null,null,null,null,null,null,null,null,null,null,null,null,null,null,null,null,null,null,null,null,null,null,null,null,null,null,null,null,null,7,"D4O21W1IBUY600FCNRX36SCU1","DA5ON71OOUQCIGUPEEF1B9ERD","","","","","","00","X","0","0","",""]
[null,null,null,null,null,null,null,null,null,null,null,null,null,null,null,null,null,null,null,null,null,null,null,null,null,null,null,null,null,null,null,null,null,null,null,null,null,null,null,null,null,null,null,null,null,null,null,null,null,null,null,null,null,null,null,null,null,null,null,null,null,null,null,null,null,null,null,null,null,null,null,null,null,null,null,null,null,null,null,null,null,null,null,null,null,null,null,null,null,null,null,null,null,null,null,null,null,null,null,null,null,null,null,null,null,null,null,null,null,null,null,null,null,null,null,null,null,null,null,null,null,null,null,null,null,null,null,null,null,null,7,"DEMAFDB5LZ4S252XBVM7GJP4P","DA5ON71OOUN9RZJO48OL1JTO9","","","","","","00","X","0","0","",""]
[null,null,null,null,null,null,null,null,null,null,null,null,null,null,null,null,null,null,null,null,null,null,null,null,null,null,null,null,null,null,null,null,null,null,null,null,null,null,null,null,null,null,null,null,null,null,null,null,null,null,null,null,null,null,null,null,null,null,null,null,null,null,null,null,null,null,null,null,null,null,null,null,null,null,null,null,null,null,null,null,null,null,null,null,null,null,null,null,null,null,null,null,null,null,null,null,null,null,null,null,null,null,null,null,null,null,null,null,null,null,null,null,null,null,null,null,null,null,null,null,null,null,null,null,null,null,null,null,null,null,7,"DEMAGSP8VDTMCQ2Z9KSRG7UGP","DA5ON71OOUQCIGUPEEF1B9ERD","","","","","","00","X","0","0","",""]
[null,null,null,null,null,null,null,null,null,null,null,null,null,null,null,null,null,null,null,null,null,null,null,null,null,null,null,null,null,null,null,null,null,null,null,null,null,null,null,null,null,null,null,null,null,null,null,null,null,null,null,null,null,null,null,null,null,null,null,null,null,null,null,null,null,null,null,null,null,null,null,null,null,null,null,null,null,null,null,null,null,null,null,null,null,null,null,null,null,null,null,null,null,null,null,null,null,null,null,null,null,null,null,null,null,null,null,null,null,null,null,null,null,null,null,null,null,null,null,null,null,null,null,null,null,null,null,null,null,null,7,"DEN04FDC1K04NBJW47LA7T915","DA5ON71OOUKYQ4KE5MDQU9MUX","","","","","","00","X","0","0","",""]
[null,null,null,null,null,null,null,null,null,null,null,null,null,null,null,null,null,null,null,null,null,null,null,null,null,null,null,null,null,null,null,null,null,null,null,null,null,null,null,null,null,null,null,null,null,null,null,null,null,null,null,null,null,null,null,null,null,null,null,null,null,null,null,null,null,null,null,null,null,null,null,null,null,null,null,null,null,null,null,null,null,null,null,null,null,null,null,null,null,null,null,null,null,null,null,null,null,null,null,null,null,null,null,null,null,null,null,null,null,null,null,null,null,null,null,null,null,null,null,null,null,null,null,null,null,null,null,null,null,null,7,"DEN07Y1DTSO2LFXI9VR7L0SMX","DA5ON71OOUINO9L4702WMZG1L","","0","","","","00","X","0","0","",""]
[null,null,null,null,null,null,null,null,null,null,null,null,null,null,null,null,null,null,null,null,null,null,null,null,null,null,null,null,null,null,null,null,null,null,null,null,null,null,null,null,null,null,null,null,null,null,null,null,null,null,null,null,null,null,null,null,null,null,null,null,null,null,null,null,null,null,null,null,null,null,null,null,null,null,null,null,null,null,null,null,null,null,null,null,null,null,null,null,null,null,null,null,null,null,null,null,null,null,null,null,null,null,null,null,null,null,null,null,null,null,null,null,null,null,null,null,null,null,null,null,null,null,null,null,null,null,null,null,null,null,7,"DEN07Y1DTSOUA299LF6TNG6WP","DA5ON71OOULQEQW5H5TCWP14P","","","","","","00","X","0","0","",""]
[null,null,null,null,null,null,null,null,null,null,null,null,null,null,null,null,null,null,null,null,null,null,null,null,null,null,null,null,null,null,null,null,null,null,null,null,null,null,null,null,null,null,null,null,null,null,null,null,null,null,null,null,null,null,null,null,null,null,null,null,null,null,null,null,null,null,null,null,null,null,null,null,null,null,null,null,null,null,null,null,null,null,null,null,null,null,null,null,null,null,null,null,null,null,null,null,null,null,null,null,null,null,null,null,null,null,null,null,null,null,null,null,null,null,null,null,null,null,null,null,null,null,null,null,null,null,null,null,null,null,7,"DEN07Y1DTSRX0JKAVKX9X5RZT","DA5ON71OOUINO9L4702WMZG1L","","","","","","00","X","0","0","",""]
[null,null,null,null,null,null,null,null,null,null,null,null,null,null,null,null,null,null,null,null,null,null,null,null,null,null,null,null,null,null,null,null,null,null,null,null,null,null,null,null,null,null,null,null,null,null,null,null,null,null,null,null,null,null,null,null,null,null,null,null,null,null,null,null,null,null,null,null,null,null,null,null,null,null,null,null,null,null,null,null,null,null,null,null,null,null,null,null,null,null,null,null,null,null,null,null,null,null,null,null,null,null,null,null,null,null,null,null,null,null,null,null,null,null,null,null,null,null,null,null,null,null,null,null,null,null,null,null,null,null,7,"DEN07Y1DTSSOP5W274CVZL69L","DA5ON71OOULQEQW5H5TCWP14P","","","","","","00","X","0","0","",""]
[null,null,null,null,null,null,null,null,null,null,null,null,null,null,null,null,null,null,null,null,null,null,null,null,null,null,null,null,null,null,null,null,null,null,null,null,null,null,null,null,null,null,null,null,null,null,null,null,null,null,null,null,null,null,null,null,null,null,null,null,null,null,null,null,null,null,null,null,null,null,null,null,null,null,null,null,null,null,null,null,null,null,null,null,null,null,null,null,null,null,null,null,null,null,null,null,null,null,null,null,null,null,null,null,null,null,null,null,null,null,null,null,null,null,null,null,null,null,null,null,null,null,null,null,null,null,null,null,null,null,7,"DEN0OSIFULCZTDTFE8U7RBQIH","DA5ON71OOUOT5876RBJT6EM7T","","","","","","00","X","0","0","",""]
[null,null,null,null,null,null,null,null,null,null,null,null,null,null,null,null,null,null,null,null,null,null,null,null,null,null,null,null,null,null,null,null,null,null,null,null,null,null,null,null,null,null,null,null,null,null,null,null,null,null,null,null,null,null,null,null,null,null,null,null,null,null,null,null,null,null,null,null,null,null,null,null,null,null,null,null,null,null,null,null,null,null,null,null,null,null,null,null,null,null,null,null,null,null,null,null,null,null,null,null,null,null,null,null,null,null,null,null,null,null,null,null,null,null,null,null,null,null,null,null,null,null,null,null,null,null,null,null,null,null,7,"DEN0OSIFULEJ6MGY1BPFW6J21","DA5ON71OOUMI3D7WSP8YZ4FEH","","","","","","00","X","0","0","",""]
[null,null,null,null,null,null,null,null,null,null,null,null,null,null,null,null,null,null,null,null,null,null,null,null,null,null,null,null,null,null,null,null,null,null,null,null,null,null,null,null,null,null,null,null,null,null,null,null,null,null,null,null,null,null,null,null,null,null,null,null,null,null,null,null,null,null,null,null,null,null,null,null,null,null,null,null,null,null,null,null,null,null,null,null,null,null,null,null,null,null,null,null,null,null,null,null,null,null,null,null,null,null,null,null,null,null,null,null,null,null,null,null,null,null,null,null,null,null,null,null,null,null,null,null,null,null,null,null,null,null,6,"D4O21W1IBUEXWI9DNA2RI3G1L","DA5ON71OOUOT5876RBJT6EM7T","","","","","","00","X","0","0","",""]
[null,null,null,null,null,null,null,null,null,null,null,null,null,null,null,null,null,null,null,null,null,null,null,null,null,null,null,null,null,null,null,null,null,null,null,null,null,null,null,null,null,null,null,null,null,null,null,null,null,null,null,null,null,null,null,null,null,null,null,null,null,null,null,null,null,null,null,null,null,null,null,null,null,null,null,null,null,null,null,null,null,null,null,null,null,null,null,null,null,null,null,null,null,null,null,null,null,null,null,null,null,null,null,null,null,null,null,null,null,null,null,null,null,null,null,null,null,null,null,null,null,null,null,null,null,null,null,null,null,null,6,"D4O21W1IBUGH9QWWACXZMY8L5","DA5ON71OOUMI3D7WSP8YZ4FEH","","","","","","00","X","0","0","",""]
[null,null,null,null,null,null,null,null,null,null,null,null,null,null,null,null,null,null,null,null,null,null,null,null,null,null,null,null,null,null,null,null,null,null,null,null,null,null,null,null,null,null,null,null,null,null,null,null,null,null,null,null,null,null,null,null,null,null,null,null,null,null,null,null,null,null,null,null,null,null,null,null,null,null,null,null,null,null,null,null,null,null,null,null,null,null,null,null,null,null,null,null,null,null,null,null,null,null,null,null,null,null,null,null,null,null,null,null,null,null,null,null,null,null,null,null,null,null,null,null,null,null,null,null,null,null,null,null,null,null,6,"D4O21W1IBUH8YD8NLWDLPDMUX","DA5ON71OOUPKTUIY2UZF8U0HL","","","","","","00","X","0","0","",""]
[null,null,null,null,null,null,null,null,null,null,null,null,null,null,null,null,null,null,null,null,null,null,null,null,null,null,null,null,null,null,null,null,null,null,null,null,null,null,null,null,null,null,null,null,null,null,null,null,null,null,null,null,null,null,null,null,null,null,null,null,null,null,null,null,null,null,null,null,null,null,null,null,null,null,null,null,null,null,null,null,null,null,null,null,null,null,null,null,null,null,null,null,null,null,null,null,null,null,null,null,null,null,null,null,null,null,null,null,null,null,null,null,null,null,null,null,null,null,null,null,null,null,null,null,null,null,null,null,null,null,6,"D4O21W1IBUL3DGVG7LJO1IM7T","DA5ON71OOUK71I8MU2Y4RU8L5","","","","","","00","X","0","0","",""]
[null,null,null,null,null,null,null,null,null,null,null,null,null,null,null,null,null,null,null,null,null,null,null,null,null,null,null,null,null,null,null,null,null,null,null,null,null,null,null,null,null,null,null,null,null,null,null,null,null,null,null,null,null,null,null,null,null,null,null,null,null,null,null,null,null,null,null,null,null,null,null,null,null,null,null,null,null,null,null,null,null,null,null,null,null,null,null,null,null,null,null,null,null,null,null,null,null,null,null,null,null,null,null,null,null,null,null,null,null,null,null,null,null,null,null,null,null,null,null,null,null,null,null,null,null,null,null,null,null,null,6,"D4O21W1IBULV2377J4ZA3Y0HL","DA5ON71OOUQCIGUPEEF1B9ERD","","","","","","00","X","0","0","",""]
[null,null,null,null,null,null,null,null,null,null,null,null,null,null,null,null,null,null,null,null,null,null,null,null,null,null,null,null,null,null,null,null,null,null,null,null,null,null,null,null,null,null,null,null,null,null,null,null,null,null,null,null,null,null,null,null,null,null,null,null,null,null,null,null,null,null,null,null,null,null,null,null,null,null,null,null,null,null,null,null,null,null,null,null,null,null,null,null,null,null,null,null,null,null,null,null,null,null,null,null,null,null,null,null,null,null,null,null,null,null,null,null,null,null,null,null,null,null,null,null,null,null,null,null,null,null,null,null,null,null,6,"D4O21W1IBUWMMRRU0P1V1XKAH","DA5ON71OOUK71I8MU2Y4RU8L5","","0","","","","00","X","0","0","",""]
[null,null,null,null,null,null,null,null,null,null,null,null,null,null,null,null,null,null,null,null,null,null,null,null,null,null,null,null,null,null,null,null,null,null,null,null,null,null,null,null,null,null,null,null,null,null,null,null,null,null,null,null,null,null,null,null,null,null,null,null,null,null,null,null,null,null,null,null,null,null,null,null,null,null,null,null,null,null,null,null,null,null,null,null,null,null,null,null,null,null,null,null,null,null,null,null,null,null,null,null,null,null,null,null,null,null,null,null,null,null,null,null,null,null,null,null,null,null,null,null,null,null,null,null,null,null,null,null,null,null,6,"D4O21W1IBUXEBE3LC8HH4CYK9","DA5ON71OOUN9RZJO48OL1JTO9","","0","","","","00","X","0","0","",""]
[null,null,null,null,null,null,null,null,null,null,null,null,null,null,null,null,null,null,null,null,null,null,null,null,null,null,null,null,null,null,null,null,null,null,null,null,null,null,null,null,null,null,null,null,null,null,null,null,null,null,null,null,null,null,null,null,null,null,null,null,null,null,null,null,null,null,null,null,null,null,null,null,null,null,null,null,null,null,null,null,null,null,null,null,null,null,null,null,null,null,null,null,null,null,null,null,null,null,null,null,null,null,null,null,null,null,null,null,null,null,null,null,null,null,null,null,null,null,null,null,null,null,null,null,null,null,null,null,null,null,6,"D4O21W1IBV0H1VEMME7XE2JND","DA5ON71OOUKYQ4KE5MDQU9MUX","","","","","","00","X","0","0","",""]
[null,null,null,null,null,null,null,null,null,null,null,null,null,null,null,null,null,null,null,null,null,null,null,null,null,null,null,null,null,null,null,null,null,null,null,null,null,null,null,null,null,null,null,null,null,null,null,null,null,null,null,null,null,null,null,null,null,null,null,null,null,null,null,null,null,null,null,null,null,null,null,null,null,null,null,null,null,null,null,null,null,null,null,null,null,null,null,null,null,null,null,null,null,null,null,null,null,null,null,null,null,null,null,null,null,null,null,null,null,null,null,null,null,null,null,null,null,null,null,null,null,null,null,null,null,null,null,null,null,null,6,"D4O21W1IBV8XKOZZ5BZO4RWMX","DA5ON71OOUKYQ4KE5MDQU9MUX","","","","","","00","X","0","0","",""]
[null,null,null,null,null,null,null,null,null,null,null,null,null,null,null,null,null,null,null,null,null,null,null,null,null,null,null,null,null,null,null,null,null,null,null,null,null,null,null,null,null,null,null,null,null,null,null,null,null,null,null,null,null,null,null,null,null,null,null,null,null,null,null,null,null,null,null,null,null,null,null,null,null,null,null,null,null,null,null,null,null,null,null,null,null,null,null,null,null,null,null,null,null,null,null,null,null,null,null,null,null,null,null,null,null,null,null,null,null,null,null,null,null,null,null,null,null,null,null,null,null,null,null,null,null,null,null,null,null,null,6,"DEMAFDB5LZ4S252XBVM7GJP4P","DA5ON71OOUKYQ4KE5MDQU9MUX","","","","","","00","X","0","0","",""]
[null,null,null,null,null,null,null,null,null,null,null,null,null,null,null,null,null,null,null,null,null,null,null,null,null,null,null,null,null,null,null,null,null,null,null,null,null,null,null,null,null,null,null,null,null,null,null,null,null,null,null,null,null,null,null,null,null,null,null,null,null,null,null,null,null,null,null,null,null,null,null,null,null,null,null,null,null,null,null,null,null,null,null,null,null,null,null,null,null,null,null,null,null,null,null,null,null,null,null,null,null,null,null,null,null,null,null,null,null,null,null,null,null,null,null,null,null,null,null,null,null,null,null,null,null,null,null,null,null,null,6,"DEN04FDC1K04NBJW47LA7T915","DA5ON71OOUN9RZJO48OL1JTO9","","","","","","00","X","0","0","",""]
[null,null,null,null,null,null,null,null,null,null,null,null,null,null,null,null,null,null,null,null,null,null,null,null,null,null,null,null,null,null,null,null,null,null,null,null,null,null,null,null,null,null,null,null,null,null,null,null,null,null,null,null,null,null,null,null,null,null,null,null,null,null,null,null,null,null,null,null,null,null,null,null,null,null,null,null,null,null,null,null,null,null,null,null,null,null,null,null,null,null,null,null,null,null,null,null,null,null,null,null,null,null,null,null,null,null,null,null,null,null,null,null,null,null,null,null,null,null,null,null,null,null,null,null,null,null,null,null,null,null,6,"DEN07Y1DTSNAWTLQYCBLILED5","DA5ON71OOUQCIGUPEEF1B9ERD","","0","","","","00","X","0","0","",""]
[null,null,null,null,null,null,null,null,null,null,null,null,null,null,null,null,null,null,null,null,null,null,null,null,null,null,null,null,null,null,null,null,null,null,null,null,null,null,null,null,null,null,null,null,null,null,null,null,null,null,null,null,null,null,null,null,null,null,null,null,null,null,null,null,null,null,null,null,null,null,null,null,null,null,null,null,null,null,null,null,null,null,null,null,null,null,null,null,null,null,null,null,null,null,null,null,null,null,null,null,null,null,null,null,null,null,null,null,null,null,null,null,null,null,null,null,null,null,null,null,null,null,null,null,null,null,null,null,null,null,6,"DEN07Y1DTSOUA299LF6TNG6WP","DA5ON71OOUO1GLVFFS473Z7Y1","","","","","","00","X","0","0","",""]
[null,null,null,null,null,null,null,null,null,null,null,null,null,null,null,null,null,null,null,null,null,null,null,null,null,null,null,null,null,null,null,null,null,null,null,null,null,null,null,null,null,null,null,null,null,null,null,null,null,null,null,null,null,null,null,null,null,null,null,null,null,null,null,null,null,null,null,null,null,null,null,null,null,null,null,null,null,null,null,null,null,null,null,null,null,null,null,null,null,null,null,null,null,null,null,null,null,null,null,null,null,null,null,null,null,null,null,null,null,null,null,null,null,null,null,null,null,null,null,null,null,null,null,null,null,null,null,null,null,null,6,"DEN07Y1DTSQDNAWS8I21SAZG9","DA5ON71OOUINO9L4702WMZG1L","","0","","","","00","X","0","0","",""]
[null,null,null,null,null,null,null,null,null,null,null,null,null,null,null,null,null,null,null,null,null,null,null,null,null,null,null,null,null,null,null,null,null,null,null,null,null,null,null,null,null,null,null,null,null,null,null,null,null,null,null,null,null,null,null,null,null,null,null,null,null,null,null,null,null,null,null,null,null,null,null,null,null,null,null,null,null,null,null,null,null,null,null,null,null,null,null,null,null,null,null,null,null,null,null,null,null,null,null,null,null,null,null,null,null,null,null,null,null,null,null,null,null,null,null,null,null,null,null,null,null,null,null,null,null,null,null,null,null,null,6,"DEN07Y1DTSSOP5W274CVZL69L","DA5ON71OOUKYQ4KE5MDQU9MUX","","","","","","00","X","0","0","",""]
[null,null,null,null,null,null,null,null,null,null,null,null,null,null,null,null,null,null,null,null,null,null,null,null,null,null,null,null,null,null,null,null,null,null,null,null,null,null,null,null,null,null,null,null,null,null,null,null,null,null,null,null,null,null,null,null,null,null,null,null,null,null,null,null,null,null,null,null,null,null,null,null,null,null,null,null,null,null,null,null,null,null,null,null,null,null,null,null,null,null,null,null,null,null,null,null,null,null,null,null,null,null,null,null,null,null,null,null,null,null,null,null,null,null,null,null,null,null,null,null,null,null,null,null,null,null,null,null,null,null,6,"DEN0OSIFULDRI056PS9TTR4S9","DA5ON71OOUINO9L4702WMZG1L","","","","","","00","X","0","0","",""]
[null,null,null,null,null,null,null,null,null,null,null,null,null,null,null,null,null,null,null,null,null,null,null,null,null,null,null,null,null,null,null,null,null,null,null,null,null,null,null,null,null,null,null,null,null,null,null,null,null,null,null,null,null,null,null,null,null,null,null,null,null,null,null,null,null,null,null,null,null,null,null,null,null,null,null,null,null,null,null,null,null,null,null,null,null,null,null,null,null,null,null,null,null,null,null,null,null,null,null,null,null,null,null,null,null,null,null,null,null,null,null,null,null,null,null,null,null,null,null,null,null,null,null,null,null,null,null,null,null,null,6,"DEN0OSIFULEJ6MGY1BPFW6J21","DA5ON71OOULQEQW5H5TCWP14P","","","","","","00","X","0","0","",""]
[null,null,null,null,null,null,null,null,null,null,null,null,null,null,null,null,null,null,null,null,null,null,null,null,null,null,null,null,null,null,null,null,null,null,null,null,null,null,null,null,null,null,null,null,null,null,null,null,null,null,null,null,null,null,null,null,null,null,null,null,null,null,null,null,null,null,null,null,null,null,null,null,null,null,null,null,null,null,null,null,null,null,null,null,null,null,null,null,null,null,null,null,null,null,null,null,null,null,null,null,null,null,null,null,null,null,null,null,null,null,null,null,null,null,null,null,null,null,null,null,null,null,null,null,null,null,null,null,null,null,5,"D4O21W1IBUE67VXMBQN5FO1RT","DA5ON71OOUJFCVWVIJIIPEUBD","","","","","","00","X","0","0","",""]
[null,null,null,null,null,null,null,null,null,null,null,null,null,null,null,null,null,null,null,null,null,null,null,null,null,null,null,null,null,null,null,null,null,null,null,null,null,null,null,null,null,null,null,null,null,null,null,null,null,null,null,null,null,null,null,null,null,null,null,null,null,null,null,null,null,null,null,null,null,null,null,null,null,null,null,null,null,null,null,null,null,null,null,null,null,null,null,null,null,null,null,null,null,null,null,null,null,null,null,null,null,null,null,null,null,null,null,null,null,null,null,null,null,null,null,null,null,null,null,null,null,null,null,null,null,null,null,null,null,null,5,"D4O21W1IBUEXWI9DNA2RI3G1L","DA5ON71OOUMI3D7WSP8YZ4FEH","","","","","","00","X","0","0","",""]
[null,null,null,null,null,null,null,null,null,null,null,null,null,null,null,null,null,null,null,null,null,null,null,null,null,null,null,null,null,null,null,null,null,null,null,null,null,null,null,null,null,null,null,null,null,null,null,null,null,null,null,null,null,null,null,null,null,null,null,null,null,null,null,null,null,null,null,null,null,null,null,null,null,null,null,null,null,null,null,null,null,null,null,null,null,null,null,null,null,null,null,null,null,null,null,null,null,null,null,null,null,null,null,null,null,null,null,null,null,null,null,null,null,null,null,null,null,null,null,null,null,null,null,null,null,null,null,null,null,null,5,"D4O21W1IBUH8YD8NLWDLPDMUX","DA5ON71OOUOT5876RBJT6EM7T","","","","","","00","X","0","0","",""]
[null,null,null,null,null,null,null,null,null,null,null,null,null,null,null,null,null,null,null,null,null,null,null,null,null,null,null,null,null,null,null,null,null,null,null,null,null,null,null,null,null,null,null,null,null,null,null,null,null,null,null,null,null,null,null,null,null,null,null,null,null,null,null,null,null,null,null,null,null,null,null,null,null,null,null,null,null,null,null,null,null,null,null,null,null,null,null,null,null,null,null,null,null,null,null,null,null,null,null,null,null,null,null,null,null,null,null,null,null,null,null,null,null,null,null,null,null,null,null,null,null,null,null,null,null,null,null,null,null,null,5,"D4O21W1IBUL3DGVG7LJO1IM7T","DA5ON71OOUMI3D7WSP8YZ4FEH","","","","","","00","X","0","0","",""]
[null,null,null,null,null,null,null,null,null,null,null,null,null,null,null,null,null,null,null,null,null,null,null,null,null,null,null,null,null,null,null,null,null,null,null,null,null,null,null,null,null,null,null,null,null,null,null,null,null,null,null,null,null,null,null,null,null,null,null,null,null,null,null,null,null,null,null,null,null,null,null,null,null,null,null,null,null,null,null,null,null,null,null,null,null,null,null,null,null,null,null,null,null,null,null,null,null,null,null,null,null,null,null,null,null,null,null,null,null,null,null,null,null,null,null,null,null,null,null,null,null,null,null,null,null,null,null,null,null,null,5,"D4O21W1IBULV2377J4ZA3Y0HL","DA5ON71OOUPKTUIY2UZF8U0HL","","","","","","00","X","0","0","",""]
[null,null,null,null,null,null,null,null,null,null,null,null,null,null,null,null,null,null,null,null,null,null,null,null,null,null,null,null,null,null,null,null,null,null,null,null,null,null,null,null,null,null,null,null,null,null,null,null,null,null,null,null,null,null,null,null,null,null,null,null,null,null,null,null,null,null,null,null,null,null,null,null,null,null,null,null,null,null,null,null,null,null,null,null,null,null,null,null,null,null,null,null,null,null,null,null,null,null,null,null,null,null,null,null,null,null,null,null,null,null,null,null,null,null,null,null,null,null,null,null,null,null,null,null,null,null,null,null,null,null,5,"D4O21W1IBUNEFBUQ67UI8ST15","DA5ON71OOUN9RZJO48OL1JTO9","","","","","","00","X","0","0","",""]
[null,null,null,null,null,null,null,null,null,null,null,null,null,null,null,null,null,null,null,null,null,null,null,null,null,null,null,null,null,null,null,null,null,null,null,null,null,null,null,null,null,null,null,null,null,null,null,null,null,null,null,null,null,null,null,null,null,null,null,null,null,null,null,null,null,null,null,null,null,null,null,null,null,null,null,null,null,null,null,null,null,null,null,null,null,null,null,null,null,null,null,null,null,null,null,null,null,null,null,null,null,null,null,null,null,null,null,null,null,null,null,null,null,null,null,null,null,null,null,null,null,null,null,null,null,null,null,null,null,null,5,"D4O21W1IBUO63Y6HHRA4B87AX","DA5ON71OOUQCIGUPEEF1B9ERD","","","","","","00","X","0","0","",""]
[null,null,null,null,null,null,null,null,null,null,null,null,null,null,null,null,null,null,null,null,null,null,null,null,null,null,null,null,null,null,null,null,null,null,null,null,null,null,null,null,null,null,null,null,null,null,null,null,null,null,null,null,null,null,null,null,null,null,null,null,null,null,null,null,null,null,null,null,null,null,null,null,null,null,null,null,null,null,null,null,null,null,null,null,null,null,null,null,null,null,null,null,null,null,null,null,null,null,null,null,null,null,null,null,null,null,null,null,null,null,null,null,null,null,null,null,null,null,null,null,null,null,null,null,null,null,null,null,null,null,5,"D4O21W1IBV0H1VEMME7XE2JND","DA5ON71OOUK71I8MU2Y4RU8L5","","","","","","00","X","0","0","",""]
[null,null,null,null,null,null,null,null,null,null,null,null,null,null,null,null,null,null,null,null,null,null,null,null,null,null,null,null,null,null,null,null,null,null,null,null,null,null,null,null,null,null,null,null,null,null,null,null,null,null,null,null,null,null,null,null,null,null,null,null,null,null,null,null,null,null,null,null,null,null,null,null,null,null,null,null,null,null,null,null,null,null,null,null,null,null,null,null,null,null,null,null,null,null,null,null,null,null,null,null,null,null,null,null,null,null,null,null,null,null,null,null,null,null,null,null,null,null,null,null,null,null,null,null,null,null,null,null,null,null,5,"D4O21W1IBV18QHQDXXNJGHXX5","DA5ON71OOUQCIGUPEEF1B9ERD","","","","","","00","X","0","0","",""]
[null,null,null,null,null,null,null,null,null,null,null,null,null,null,null,null,null,null,null,null,null,null,null,null,null,null,null,null,null,null,null,null,null,null,null,null,null,null,null,null,null,null,null,null,null,null,null,null,null,null,null,null,null,null,null,null,null,null,null,null,null,null,null,null,null,null,null,null,null,null,null,null,null,null,null,null,null,null,null,null,null,null,null,null,null,null,null,null,null,null,null,null,null,null,null,null,null,null,null,null,null,null,null,null,null,null,null,null,null,null,null,null,null,null,null,null,null,null,null,null,null,null,null,null,null,null,null,null,null,null,5,"DEMAFDB5LZ4S252XBVM7GJP4P","DA5ON71OOUKYQ4KE5MDQU9MUX","","","","","","00","X","0","0","",""]
[null,null,null,null,null,null,null,null,null,null,null,null,null,null,null,null,null,null,null,null,null,null,null,null,null,null,null,null,null,null,null,null,null,null,null,null,null,null,null,null,null,null,null,null,null,null,null,null,null,null,null,null,null,null,null,null,null,null,null,null,null,null,null,null,null,null,null,null,null,null,null,null,null,null,null,null,null,null,null,null,null,null,null,null,null,null,null,null,null,null,null,null,null,null,null,null,null,null,null,null,null,null,null,null,null,null,null,null,null,null,null,null,null,null,null,null,null,null,null,null,null,null,null,null,null,null,null,null,null,null,5,"DEMAGSP8VDTMCQ2Z9KSRG7UGP","DA5ON71OOUO1GLVFFS473Z7Y1","","","","","","00","X","0","0","",""]
[null,null,null,null,null,null,null,null,null,null,null,null,null,null,null,null,null,null,null,null,null,null,null,null,null,null,null,null,null,null,null,null,null,null,null,null,null,null,null,null,null,null,null,null,null,null,null,null,null,null,null,null,null,null,null,null,null,null,null,null,null,null,null,null,null,null,null,null,null,null,null,null,null,null,null,null,null,null,null,null,null,null,null,null,null,null,null,null,null,null,null,null,null,null,null,null,null,null,null,null,null,null,null,null,null,null,null,null,null,null,null,null,null,null,null,null,null,null,null,null,null,null,null,null,null,null,null,null,null,null,5,"DEN04FDC1K04NBJW47LA7T915","DA5ON71OOULQEQW5H5TCWP14P","","","","","","00","X","0","0","",""]
[null,null,null,null,null,null,null,null,null,null,null,null,null,null,null,null,null,null,null,null,null,null,null,null,null,null,null,null,null,null,null,null,null,null,null,null,null,null,null,null,null,null,null,null,null,null,null,null,null,null,null,null,null,null,null,null,null,null,null,null,null,null,null,null,null,null,null,null,null,null,null,null,null,null,null,null,null,null,null,null,null,null,null,null,null,null,null,null,null,null,null,null,null,null,null,null,null,null,null,null,null,null,null,null,null,null,null,null,null,null,null,null,null,null,null,null,null,null,null,null,null,null,null,null,null,null,null,null,null,null,5,"DEN07Y1DTSO2LFXI9VR7L0SMX","DA5ON71OOUO1GLVFFS473Z7Y1","","0","","","","00","X","0","0","",""]
[null,null,null,null,null,null,null,null,null,null,null,null,null,null,null,null,null,null,null,null,null,null,null,null,null,null,null,null,null,null,null,null,null,null,null,null,null,null,null,null,null,null,null,null,null,null,null,null,null,null,null,null,null,null,null,null,null,null,null,null,null,null,null,null,null,null,null,null,null,null,null,null,null,null,null,null,null,null,null,null,null,null,null,null,null,null,null,null,null,null,null,null,null,null,null,null,null,null,null,null,null,null,null,null,null,null,null,null,null,null,null,null,null,null,null,null,null,null,null,null,null,null,null,null,null,null,null,null,null,null,5,"DEN07Y1DTSQDNAWS8I21SAZG9","DA5ON71OOUKYQ4KE5MDQU9MUX","","0","","","","00","X","0","0","",""]
[null,null,null,null,null,null,null,null,null,null,null,null,null,null,null,null,null,null,null,null,null,null,null,null,null,null,null,null,null,null,null,null,null,null,null,null,null,null,null,null,null,null,null,null,null,null,null,null,null,null,null,null,null,null,null,null,null,null,null,null,null,null,null,null,null,null,null,null,null,null,null,null,null,null,null,null,null,null,null,null,null,null,null,null,null,null,null,null,null,null,null,null,null,null,null,null,null,null,null,null,null,null,null,null,null,null,null,null,null,null,null,null,null,null,null,null,null,null,null,null,null,null,null,null,null,null,null,null,null,null,5,"DEN07Y1DTSR5BX8JK1HNUQDQ1","DA5ON71OOUO1GLVFFS473Z7Y1","","","","","","00","X","0","0","",""]
[null,null,null,null,null,null,null,null,null,null,null,null,null,null,null,null,null,null,null,null,null,null,null,null,null,null,null,null,null,null,null,null,null,null,null,null,null,null,null,null,null,null,null,null,null,null,null,null,null,null,null,null,null,null,null,null,null,null,null,null,null,null,null,null,null,null,null,null,null,null,null,null,null,null,null,null,null,null,null,null,null,null,null,null,null,null,null,null,null,null,null,null,null,null,null,null,null,null,null,null,null,null,null,null,null,null,null,null,null,null,null,null,null,null,null,null,null,null,null,null,null,null,null,null,null,null,null,null,null,null,5,"DEN07Y1DTSSOP5W274CVZL69L","DA5ON71OOUINO9L4702WMZG1L","","","","","","00","X","0","0","",""]
[null,null,null,null,null,null,null,null,null,null,null,null,null,null,null,null,null,null,null,null,null,null,null,null,null,null,null,null,null,null,null,null,null,null,null,null,null,null,null,null,null,null,null,null,null,null,null,null,null,null,null,null,null,null,null,null,null,null,null,null,null,null,null,null,null,null,null,null,null,null,null,null,null,null,null,null,null,null,null,null,null,null,null,null,null,null,null,null,null,null,null,null,null,null,null,null,null,null,null,null,null,null,null,null,null,null,null,null,null,null,null,null,null,null,null,null,null,null,null,null,null,null,null,null,null,null,null,null,null,null,5,"DEN0OSIFULCZTDTFE8U7RBQIH","DA5ON71OOUOT5876RBJT6EM7T","","","","","","00","X","0","0","",""]
[null,null,null,null,null,null,null,null,null,null,null,null,null,null,null,null,null,null,null,null,null,null,null,null,null,null,null,null,null,null,null,null,null,null,null,null,null,null,null,null,null,null,null,null,null,null,null,null,null,null,null,null,null,null,null,null,null,null,null,null,null,null,null,null,null,null,null,null,null,null,null,null,null,null,null,null,null,null,null,null,null,null,null,null,null,null,null,null,null,null,null,null,null,null,null,null,null,null,null,null,null,null,null,null,null,null,null,null,null,null,null,null,null,null,null,null,null,null,null,null,null,null,null,null,null,null,null,null,null,null,4,"D4O21W1IBUE67VXMBQN5FO1RT","DA5ON71OOUINO9L4702WMZG1L","","","","","","00","X","0","0","",""]
[null,null,null,null,null,null,null,null,null,null,null,null,null,null,null,null,null,null,null,null,null,null,null,null,null,null,null,null,null,null,null,null,null,null,null,null,null,null,null,null,null,null,null,null,null,null,null,null,null,null,null,null,null,null,null,null,null,null,null,null,null,null,null,null,null,null,null,null,null,null,null,null,null,null,null,null,null,null,null,null,null,null,null,null,null,null,null,null,null,null,null,null,null,null,null,null,null,null,null,null,null,null,null,null,null,null,null,null,null,null,null,null,null,null,null,null,null,null,null,null,null,null,null,null,null,null,null,null,null,null,4,"D4O21W1IBUEXWI9DNA2RI3G1L","DA5ON71OOUOT5876RBJT6EM7T","","","","","","00","X","0","0","",""]
[null,null,null,null,null,null,null,null,null,null,null,null,null,null,null,null,null,null,null,null,null,null,null,null,null,null,null,null,null,null,null,null,null,null,null,null,null,null,null,null,null,null,null,null,null,null,null,null,null,null,null,null,null,null,null,null,null,null,null,null,null,null,null,null,null,null,null,null,null,null,null,null,null,null,null,null,null,null,null,null,null,null,null,null,null,null,null,null,null,null,null,null,null,null,null,null,null,null,null,null,null,null,null,null,null,null,null,null,null,null,null,null,null,null,null,null,null,null,null,null,null,null,null,null,null,null,null,null,null,null,4,"D4O21W1IBUGH9QWWACXZMY8L5","DA5ON71OOUJFCVWVIJIIPEUBD","","","","","","00","X","0","0","",""]
[null,null,null,null,null,null,null,null,null,null,null,null,null,null,null,null,null,null,null,null,null,null,null,null,null,null,null,null,null,null,null,null,null,null,null,null,null,null,null,null,null,null,null,null,null,null,null,null,null,null,null,null,null,null,null,null,null,null,null,null,null,null,null,null,null,null,null,null,null,null,null,null,null,null,null,null,null,null,null,null,null,null,null,null,null,null,null,null,null,null,null,null,null,null,null,null,null,null,null,null,null,null,null,null,null,null,null,null,null,null,null,null,null,null,null,null,null,null,null,null,null,null,null,null,null,null,null,null,null,null,4,"D4O21W1IBUH8YD8NLWDLPDMUX","DA5ON71OOUMI3D7WSP8YZ4FEH","","","","","","00","X","0","0","",""]
[null,null,null,null,null,null,null,null,null,null,null,null,null,null,null,null,null,null,null,null,null,null,null,null,null,null,null,null,null,null,null,null,null,null,null,null,null,null,null,null,null,null,null,null,null,null,null,null,null,null,null,null,null,null,null,null,null,null,null,null,null,null,null,null,null,null,null,null,null,null,null,null,null,null,null,null,null,null,null,null,null,null,null,null,null,null,null,null,null,null,null,null,null,null,null,null,null,null,null,null,null,null,null,null,null,null,null,null,null,null,null,null,null,null,null,null,null,null,null,null,null,null,null,null,null,null,null,null,null,null,4,"D4O21W1IBUMMQPIYUOEW6DERD","DA5ON71OOUJFCVWVIJIIPEUBD","","","","","","00","X","0","0","",""]
[null,null,null,null,null,null,null,null,null,null,null,null,null,null,null,null,null,null,null,null,null,null,null,null,null,null,null,null,null,null,null,null,null,null,null,null,null,null,null,null,null,null,null,null,null,null,null,null,null,null,null,null,null,null,null,null,null,null,null,null,null,null,null,null,null,null,null,null,null,null,null,null,null,null,null,null,null,null,null,null,null,null,null,null,null,null,null,null,null,null,null,null,null,null,null,null,null,null,null,null,null,null,null,null,null,null,null,null,null,null,null,null,null,null,null,null,null,null,null,null,null,null,null,null,null,null,null,null,null,null,4,"D4O21W1IBUNEFBUQ67UI8ST15","DA5ON71OOUMI3D7WSP8YZ4FEH","","","","","","00","X","0","0","",""]
[null,null,null,null,null,null,null,null,null,null,null,null,null,null,null,null,null,null,null,null,null,null,null,null,null,null,null,null,null,null,null,null,null,null,null,null,null,null,null,null,null,null,null,null,null,null,null,null,null,null,null,null,null,null,null,null,null,null,null,null,null,null,null,null,null,null,null,null,null,null,null,null,null,null,null,null,null,null,null,null,null,null,null,null,null,null,null,null,null,null,null,null,null,null,null,null,null,null,null,null,null,null,null,null,null,null,null,null,null,null,null,null,null,null,null,null,null,null,null,null,null,null,null,null,null,null,null,null,null,null,4,"D4O21W1IBUO63Y6HHRA4B87AX","DA5ON71OOUPKTUIY2UZF8U0HL","","","","","","00","X","0","0","",""]
[null,null,null,null,null,null,null,null,null,null,null,null,null,null,null,null,null,null,null,null,null,null,null,null,null,null,null,null,null,null,null,null,null,null,null,null,null,null,null,null,null,null,null,null,null,null,null,null,null,null,null,null,null,null,null,null,null,null,null,null,null,null,null,null,null,null,null,null,null,null,null,null,null,null,null,null,null,null,null,null,null,null,null,null,null,null,null,null,null,null,null,null,null,null,null,null,null,null,null,null,null,null,null,null,null,null,null,null,null,null,null,null,null,null,null,null,null,null,null,null,null,null,null,null,null,null,null,null,null,null,4,"D4O21W1IBUXEBE3LC8HH4CYK9","DA5ON71OOUN9RZJO48OL1JTO9","","0","","","","00","X","0","0","",""]
[null,null,null,null,null,null,null,null,null,null,null,null,null,null,null,null,null,null,null,null,null,null,null,null,null,null,null,null,null,null,null,null,null,null,null,null,null,null,null,null,null,null,null,null,null,null,null,null,null,null,null,null,null,null,null,null,null,null,null,null,null,null,null,null,null,null,null,null,null,null,null,null,null,null,null,null,null,null,null,null,null,null,null,null,null,null,null,null,null,null,null,null,null,null,null,null,null,null,null,null,null,null,null,null,null,null,null,null,null,null,null,null,null,null,null,null,null,null,null,null,null,null,null,null,null,null,null,null,null,null,4,"D4O21W1IBUY600FCNRX36SCU1","DA5ON71OOUQCIGUPEEF1B9ERD","","","","","","00","X","0","0","",""]
[null,null,null,null,null,null,null,null,null,null,null,null,null,null,null,null,null,null,null,null,null,null,null,null,null,null,null,null,null,null,null,null,null,null,null,null,null,null,null,null,null,null,null,null,null,null,null,null,null,null,null,null,null,null,null,null,null,null,null,null,null,null,null,null,null,null,null,null,null,null,null,null,null,null,null,null,null,null,null,null,null,null,null,null,null,null,null,null,null,null,null,null,null,null,null,null,null,null,null,null,null,null,null,null,null,null,null,null,null,null,null,null,null,null,null,null,null,null,null,null,null,null,null,null,null,null,null,null,null,null,4,"DEMAFDB5LZ4S252XBVM7GJP4P","DA5ON71OOUN9RZJO48OL1JTO9","","","","","","00","X","0","0","",""]
[null,null,null,null,null,null,null,null,null,null,null,null,null,null,null,null,null,null,null,null,null,null,null,null,null,null,null,null,null,null,null,null,null,null,null,null,null,null,null,null,null,null,null,null,null,null,null,null,null,null,null,null,null,null,null,null,null,null,null,null,null,null,null,null,null,null,null,null,null,null,null,null,null,null,null,null,null,null,null,null,null,null,null,null,null,null,null,null,null,null,null,null,null,null,null,null,null,null,null,null,null,null,null,null,null,null,null,null,null,null,null,null,null,null,null,null,null,null,null,null,null,null,null,null,null,null,null,null,null,null,4,"DEMAGSP8VDTMCQ2Z9KSRG7UGP","DA5ON71OOUQCIGUPEEF1B9ERD","","","","","","00","X","0","0","",""]
[null,null,null,null,null,null,null,null,null,null,null,null,null,null,null,null,null,null,null,null,null,null,null,null,null,null,null,null,null,null,null,null,null,null,null,null,null,null,null,null,null,null,null,null,null,null,null,null,null,null,null,null,null,null,null,null,null,null,null,null,null,null,null,null,null,null,null,null,null,null,null,null,null,null,null,null,null,null,null,null,null,null,null,null,null,null,null,null,null,null,null,null,null,null,null,null,null,null,null,null,null,null,null,null,null,null,null,null,null,null,null,null,null,null,null,null,null,null,null,null,null,null,null,null,null,null,null,null,null,null,4,"DEN04FDC1K04NBJW47LA7T915","DA5ON71OOUKYQ4KE5MDQU9MUX","","","","","","00","X","0","0","",""]
[null,null,null,null,null,null,null,null,null,null,null,null,null,null,null,null,null,null,null,null,null,null,null,null,null,null,null,null,null,null,null,null,null,null,null,null,null,null,null,null,null,null,null,null,null,null,null,null,null,null,null,null,null,null,null,null,null,null,null,null,null,null,null,null,null,null,null,null,null,null,null,null,null,null,null,null,null,null,null,null,null,null,null,null,null,null,null,null,null,null,null,null,null,null,null,null,null,null,null,null,null,null,null,null,null,null,null,null,null,null,null,null,null,null,null,null,null,null,null,null,null,null,null,null,null,null,null,null,null,null,4,"DEN07Y1DTSO2LFXI9VR7L0SMX","DA5ON71OOUINO9L4702WMZG1L","","0","","","","00","X","0","0","",""]
[null,null,null,null,null,null,null,null,null,null,null,null,null,null,null,null,null,null,null,null,null,null,null,null,null,null,null,null,null,null,null,null,null,null,null,null,null,null,null,null,null,null,null,null,null,null,null,null,null,null,null,null,null,null,null,null,null,null,null,null,null,null,null,null,null,null,null,null,null,null,null,null,null,null,null,null,null,null,null,null,null,null,null,null,null,null,null,null,null,null,null,null,null,null,null,null,null,null,null,null,null,null,null,null,null,null,null,null,null,null,null,null,null,null,null,null,null,null,null,null,null,null,null,null,null,null,null,null,null,null,4,"DEN07Y1DTSQDNAWS8I21SAZG9","DA5ON71OOUKYQ4KE5MDQU9MUX","","0","","","","00","X","0","0","",""]
[null,null,null,null,null,null,null,null,null,null,null,null,null,null,null,null,null,null,null,null,null,null,null,null,null,null,null,null,null,null,null,null,null,null,null,null,null,null,null,null,null,null,null,null,null,null,null,null,null,null,null,null,null,null,null,null,null,null,null,null,null,null,null,null,null,null,null,null,null,null,null,null,null,null,null,null,null,null,null,null,null,null,null,null,null,null,null,null,null,null,null,null,null,null,null,null,null,null,null,null,null,null,null,null,null,null,null,null,null,null,null,null,null,null,null,null,null,null,null,null,null,null,null,null,null,null,null,null,null,null,4,"DEN07Y1DTSR5BX8JK1HNUQDQ1","DA5ON71OOUO1GLVFFS473Z7Y1","","","","","","00","X","0","0","",""]
[null,null,null,null,null,null,null,null,null,null,null,null,null,null,null,null,null,null,null,null,null,null,null,null,null,null,null,null,null,null,null,null,null,null,null,null,null,null,null,null,null,null,null,null,null,null,null,null,null,null,null,null,null,null,null,null,null,null,null,null,null,null,null,null,null,null,null,null,null,null,null,null,null,null,null,null,null,null,null,null,null,null,null,null,null,null,null,null,null,null,null,null,null,null,null,null,null,null,null,null,null,null,null,null,null,null,null,null,null,null,null,null,null,null,null,null,null,null,null,null,null,null,null,null,null,null,null,null,null,null,4,"DEN07Y1DTSSOP5W274CVZL69L","DA5ON71OOULQEQW5H5TCWP14P","","","","","","00","X","0","0","",""]
[null,null,null,null,null,null,null,null,null,null,null,null,null,null,null,null,null,null,null,null,null,null,null,null,null,null,null,null,null,null,null,null,null,null,null,null,null,null,null,null,null,null,null,null,null,null,null,null,null,null,null,null,null,null,null,null,null,null,null,null,null,null,null,null,null,null,null,null,null,null,null,null,null,null,null,null,null,null,null,null,null,null,null,null,null,null,null,null,null,null,null,null,null,null,null,null,null,null,null,null,null,null,null,null,null,null,null,null,null,null,null,null,null,null,null,null,null,null,null,null,null,null,null,null,null,null,null,null,null,null,4,"DEN0OSIFULCZTDTFE8U7RBQIH","DA5ON71OOUK71I8MU2Y4RU8L5","","","","","","00","X","0","0","",""]
[null,null,null,null,null,null,null,null,null,null,null,null,null,null,null,null,null,null,null,null,null,null,null,null,null,null,null,null,null,null,null,null,null,null,null,null,null,null,null,null,null,null,null,null,null,null,null,null,null,null,null,null,null,null,null,null,null,null,null,null,null,null,null,null,null,null,null,null,null,null,null,null,null,null,null,null,null,null,null,null,null,null,null,null,null,null,null,null,null,null,null,null,null,null,null,null,null,null,null,null,null,null,null,null,null,null,null,null,null,null,null,null,null,null,null,null,null,null,null,null,null,null,null,null,null,null,null,null,null,null,4,"DEN0OSIFULCZTDTFE8U7RBQIH","DA5ON71OOUKYQ4KE5MDQU9MUX","","","","","","00","X","0","0","",""]
[null,null,null,null,null,null,null,null,null,null,null,null,null,null,null,null,null,null,null,null,null,null,null,null,null,null,null,null,null,null,null,null,null,null,null,null,null,null,null,null,null,null,null,null,null,null,null,null,null,null,null,null,null,null,null,null,null,null,null,null,null,null,null,null,null,null,null,null,null,null,null,null,null,null,null,null,null,null,null,null,null,null,null,null,null,null,null,null,null,null,null,null,null,null,null,null,null,null,null,null,null,null,null,null,null,null,null,null,null,null,null,null,null,null,null,null,null,null,null,null,null,null,null,null,null,null,null,null,null,null,4,"DEN0OSIFULCZTDTFE8U7RBQIH","DA5ON71OOULQEQW5H5TCWP14P","","","","","","00","X","0","0","",""]
[null,null,null,null,null,null,null,null,null,null,null,null,null,null,null,null,null,null,null,null,null,null,null,null,null,null,null,null,null,null,null,null,null,null,null,null,null,null,null,null,null,null,null,null,null,null,null,null,null,null,null,null,null,null,null,null,null,null,null,null,null,null,null,null,null,null,null,null,null,null,null,null,null,null,null,null,null,null,null,null,null,null,null,null,null,null,null,null,null,null,null,null,null,null,null,null,null,null,null,null,null,null,null,null,null,null,null,null,null,null,null,null,null,null,null,null,null,null,null,null,null,null,null,null,null,null,null,null,null,null,4,"DEN0OSIFULCZTDTFE8U7RBQIH","DA5ON71OOUMI3D7WSP8YZ4FEH","","","","","","00","X","0","0","",""]
[null,null,null,null,null,null,null,null,null,null,null,null,null,null,null,null,null,null,null,null,null,null,null,null,null,null,null,null,null,null,null,null,null,null,null,null,null,null,null,null,null,null,null,null,null,null,null,null,null,null,null,null,null,null,null,null,null,null,null,null,null,null,null,null,null,null,null,null,null,null,null,null,null,null,null,null,null,null,null,null,null,null,null,null,null,null,null,null,null,null,null,null,null,null,null,null,null,null,null,null,null,null,null,null,null,null,null,null,null,null,null,null,null,null,null,null,null,null,null,null,null,null,null,null,null,null,null,null,null,null,4,"DEN0OSIFULCZTDTFE8U7RBQIH","DA5ON71OOUN9RZJO48OL1JTO9","","","","","","00","X","0","0","",""]
[null,null,null,null,null,null,null,null,null,null,null,null,null,null,null,null,null,null,null,null,null,null,null,null,null,null,null,null,null,null,null,null,null,null,null,null,null,null,null,null,null,null,null,null,null,null,null,null,null,null,null,null,null,null,null,null,null,null,null,null,null,null,null,null,null,null,null,null,null,null,null,null,null,null,null,null,null,null,null,null,null,null,null,null,null,null,null,null,null,null,null,null,null,null,null,null,null,null,null,null,null,null,null,null,null,null,null,null,null,null,null,null,null,null,null,null,null,null,null,null,null,null,null,null,null,null,null,null,null,null,4,"DEN0OSIFULCZTDTFE8U7RBQIH","DA5ON71OOUO1GLVFFS473Z7Y1","","","","","","00","X","0","0","",""]
[null,null,null,null,null,null,null,null,null,null,null,null,null,null,null,null,null,null,null,null,null,null,null,null,null,null,null,null,null,null,null,null,null,null,null,null,null,null,null,null,null,null,null,null,null,null,null,null,null,null,null,null,null,null,null,null,null,null,null,null,null,null,null,null,null,null,null,null,null,null,null,null,null,null,null,null,null,null,null,null,null,null,null,null,null,null,null,null,null,null,null,null,null,null,null,null,null,null,null,null,null,null,null,null,null,null,null,null,null,null,null,null,null,null,null,null,null,null,null,null,null,null,null,null,null,null,null,null,null,null,4,"DEN0OSIFULCZTDTFE8U7RBQIH","DA5ON71OOUOT5876RBJT6EM7T","","","","","","00","X","0","0","",""]
[null,null,null,null,null,null,null,null,null,null,null,null,null,null,null,null,null,null,null,null,null,null,null,null,null,null,null,null,null,null,null,null,null,null,null,null,null,null,null,null,null,null,null,null,null,null,null,null,null,null,null,null,null,null,null,null,null,null,null,null,null,null,null,null,null,null,null,null,null,null,null,null,null,null,null,null,null,null,null,null,null,null,null,null,null,null,null,null,null,null,null,null,null,null,null,null,null,null,null,null,null,null,null,null,null,null,null,null,null,null,null,null,null,null,null,null,null,null,null,null,null,null,null,null,null,null,null,null,null,null,4,"DEN0OSIFULCZTDTFE8U7RBQIH","DA5ON71OOUPKTUIY2UZF8U0HL","","","","","","00","X","0","0","",""]
[null,null,null,null,null,null,null,null,null,null,null,null,null,null,null,null,null,null,null,null,null,null,null,null,null,null,null,null,null,null,null,null,null,null,null,null,null,null,null,null,null,null,null,null,null,null,null,null,null,null,null,null,null,null,null,null,null,null,null,null,null,null,null,null,null,null,null,null,null,null,null,null,null,null,null,null,null,null,null,null,null,null,null,null,null,null,null,null,null,null,null,null,null,null,null,null,null,null,null,null,null,null,null,null,null,null,null,null,null,null,null,null,null,null,null,null,null,null,null,null,null,null,null,null,null,null,null,null,null,null,4,"DEN0OSIFULCZTDTFE8U7RBQIH","DA5ON71OOUQCIGUPEEF1B9ERD","","","","","","00","X","0","0","",""]
[null,null,null,null,null,null,null,null,null,null,null,null,null,null,null,null,null,null,null,null,null,null,null,null,null,null,null,null,null,null,null,null,null,null,null,null,null,null,null,null,null,null,null,null,null,null,null,null,null,null,null,null,null,null,null,null,null,null,null,null,null,null,null,null,null,null,null,null,null,null,null,null,null,null,null,null,null,null,null,null,null,null,null,null,null,null,null,null,null,null,null,null,null,null,null,null,null,null,null,null,null,null,null,null,null,null,null,null,null,null,null,null,null,null,null,null,null,null,null,null,null,null,null,null,null,null,null,null,null,null,4,"DEN0OSIFULDRI056PS9TTR4S9","DA5ON71OOUINO9L4702WMZG1L","","","","","","00","X","0","0","",""]
[null,null,null,null,null,null,null,null,null,null,null,null,null,null,null,null,null,null,null,null,null,null,null,null,null,null,null,null,null,null,null,null,null,null,null,null,null,null,null,null,null,null,null,null,null,null,null,null,null,null,null,null,null,null,null,null,null,null,null,null,null,null,null,null,null,null,null,null,null,null,null,null,null,null,null,null,null,null,null,null,null,null,null,null,null,null,null,null,null,null,null,null,null,null,null,null,null,null,null,null,null,null,null,null,null,null,null,null,null,null,null,null,null,null,null,null,null,null,null,null,null,null,null,null,null,null,null,null,null,null,4,"DEN0OSIFULDRI056PS9TTR4S9","DA5ON71OOUJFCVWVIJIIPEUBD","","","","","","00","X","0","0","",""]
[null,null,null,null,null,null,null,null,null,null,null,null,null,null,null,null,null,null,null,null,null,null,null,null,null,null,null,null,null,null,null,null,null,null,null,null,null,null,null,null,null,null,null,null,null,null,null,null,null,null,null,null,null,null,null,null,null,null,null,null,null,null,null,null,null,null,null,null,null,null,null,null,null,null,null,null,null,null,null,null,null,null,null,null,null,null,null,null,null,null,null,null,null,null,null,null,null,null,null,null,null,null,null,null,null,null,null,null,null,null,null,null,null,null,null,null,null,null,null,null,null,null,null,null,null,null,null,null,null,null,4,"DEN0OSIFULDRI056PS9TTR4S9","DA5ON71OOUK71I8MU2Y4RU8L5","","","","","","00","X","0","0","",""]
[null,null,null,null,null,null,null,null,null,null,null,null,null,null,null,null,null,null,null,null,null,null,null,null,null,null,null,null,null,null,null,null,null,null,null,null,null,null,null,null,null,null,null,null,null,null,null,null,null,null,null,null,null,null,null,null,null,null,null,null,null,null,null,null,null,null,null,null,null,null,null,null,null,null,null,null,null,null,null,null,null,null,null,null,null,null,null,null,null,null,null,null,null,null,null,null,null,null,null,null,null,null,null,null,null,null,null,null,null,null,null,null,null,null,null,null,null,null,null,null,null,null,null,null,null,null,null,null,null,null,4,"DEN0OSIFULDRI056PS9TTR4S9","DA5ON71OOUKYQ4KE5MDQU9MUX","","","","","","00","X","0","0","",""]
[null,null,null,null,null,null,null,null,null,null,null,null,null,null,null,null,null,null,null,null,null,null,null,null,null,null,null,null,null,null,null,null,null,null,null,null,null,null,null,null,null,null,null,null,null,null,null,null,null,null,null,null,null,null,null,null,null,null,null,null,null,null,null,null,null,null,null,null,null,null,null,null,null,null,null,null,null,null,null,null,null,null,null,null,null,null,null,null,null,null,null,null,null,null,null,null,null,null,null,null,null,null,null,null,null,null,null,null,null,null,null,null,null,null,null,null,null,null,null,null,null,null,null,null,null,null,null,null,null,null,4,"DEN0OSIFULDRI056PS9TTR4S9","DA5ON71OOULQEQW5H5TCWP14P","","","","","","00","X","0","0","",""]
[null,null,null,null,null,null,null,null,null,null,null,null,null,null,null,null,null,null,null,null,null,null,null,null,null,null,null,null,null,null,null,null,null,null,null,null,null,null,null,null,null,null,null,null,null,null,null,null,null,null,null,null,null,null,null,null,null,null,null,null,null,null,null,null,null,null,null,null,null,null,null,null,null,null,null,null,null,null,null,null,null,null,null,null,null,null,null,null,null,null,null,null,null,null,null,null,null,null,null,null,null,null,null,null,null,null,null,null,null,null,null,null,null,null,null,null,null,null,null,null,null,null,null,null,null,null,null,null,null,null,4,"DEN0OSIFULDRI056PS9TTR4S9","DA5ON71OOUMI3D7WSP8YZ4FEH","","","","","","00","X","0","0","",""]
[null,null,null,null,null,null,null,null,null,null,null,null,null,null,null,null,null,null,null,null,null,null,null,null,null,null,null,null,null,null,null,null,null,null,null,null,null,null,null,null,null,null,null,null,null,null,null,null,null,null,null,null,null,null,null,null,null,null,null,null,null,null,null,null,null,null,null,null,null,null,null,null,null,null,null,null,null,null,null,null,null,null,null,null,null,null,null,null,null,null,null,null,null,null,null,null,null,null,null,null,null,null,null,null,null,null,null,null,null,null,null,null,null,null,null,null,null,null,null,null,null,null,null,null,null,null,null,null,null,null,4,"DEN0OSIFULDRI056PS9TTR4S9","DA5ON71OOUN9RZJO48OL1JTO9","","","","","","00","X","0","0","",""]
[null,null,null,null,null,null,null,null,null,null,null,null,null,null,null,null,null,null,null,null,null,null,null,null,null,null,null,null,null,null,null,null,null,null,null,null,null,null,null,null,null,null,null,null,null,null,null,null,null,null,null,null,null,null,null,null,null,null,null,null,null,null,null,null,null,null,null,null,null,null,null,null,null,null,null,null,null,null,null,null,null,null,null,null,null,null,null,null,null,null,null,null,null,null,null,null,null,null,null,null,null,null,null,null,null,null,null,null,null,null,null,null,null,null,null,null,null,null,null,null,null,null,null,null,null,null,null,null,null,null,4,"DEN0OSIFULDRI056PS9TTR4S9","DA5ON71OOUO1GLVFFS473Z7Y1","","","","","","00","X","0","0","",""]
[null,null,null,null,null,null,null,null,null,null,null,null,null,null,null,null,null,null,null,null,null,null,null,null,null,null,null,null,null,null,null,null,null,null,null,null,null,null,null,null,null,null,null,null,null,null,null,null,null,null,null,null,null,null,null,null,null,null,null,null,null,null,null,null,null,null,null,null,null,null,null,null,null,null,null,null,null,null,null,null,null,null,null,null,null,null,null,null,null,null,null,null,null,null,null,null,null,null,null,null,null,null,null,null,null,null,null,null,null,null,null,null,null,null,null,null,null,null,null,null,null,null,null,null,null,null,null,null,null,null,4,"DEN0OSIFULDRI056PS9TTR4S9","DA5ON71OOUOT5876RBJT6EM7T","","","","","","00","X","0","0","",""]
[null,null,null,null,null,null,null,null,null,null,null,null,null,null,null,null,null,null,null,null,null,null,null,null,null,null,null,null,null,null,null,null,null,null,null,null,null,null,null,null,null,null,null,null,null,null,null,null,null,null,null,null,null,null,null,null,null,null,null,null,null,null,null,null,null,null,null,null,null,null,null,null,null,null,null,null,null,null,null,null,null,null,null,null,null,null,null,null,null,null,null,null,null,null,null,null,null,null,null,null,null,null,null,null,null,null,null,null,null,null,null,null,null,null,null,null,null,null,null,null,null,null,null,null,null,null,null,null,null,null,4,"DEN0OSIFULDRI056PS9TTR4S9","DA5ON71OOUPKTUIY2UZF8U0HL","","","","","","00","X","0","0","",""]
[null,null,null,null,null,null,null,null,null,null,null,null,null,null,null,null,null,null,null,null,null,null,null,null,null,null,null,null,null,null,null,null,null,null,null,null,null,null,null,null,null,null,null,null,null,null,null,null,null,null,null,null,null,null,null,null,null,null,null,null,null,null,null,null,null,null,null,null,null,null,null,null,null,null,null,null,null,null,null,null,null,null,null,null,null,null,null,null,null,null,null,null,null,null,null,null,null,null,null,null,null,null,null,null,null,null,null,null,null,null,null,null,null,null,null,null,null,null,null,null,null,null,null,null,null,null,null,null,null,null,4,"DEN0OSIFULDRI056PS9TTR4S9","DA5ON71OOUQCIGUPEEF1B9ERD","","","","","","00","X","0","0","",""]
[null,null,null,null,null,null,null,null,null,null,null,null,null,null,null,null,null,null,null,null,null,null,null,null,null,null,null,null,null,null,null,null,null,null,null,null,null,null,null,null,null,null,null,null,null,null,null,null,null,null,null,null,null,null,null,null,null,null,null,null,null,null,null,null,null,null,null,null,null,null,null,null,null,null,null,null,null,null,null,null,null,null,null,null,null,null,null,null,null,null,null,null,null,null,null,null,null,null,null,null,null,null,null,null,null,null,null,null,null,null,null,null,null,null,null,null,null,null,null,null,null,null,null,null,null,null,null,null,null,null,4,"DEN0OSIFULEJ6MGY1BPFW6J21","DA5ON71OOUINO9L4702WMZG1L","","","","","","00","X","0","0","",""]
[null,null,null,null,null,null,null,null,null,null,null,null,null,null,null,null,null,null,null,null,null,null,null,null,null,null,null,null,null,null,null,null,null,null,null,null,null,null,null,null,null,null,null,null,null,null,null,null,null,null,null,null,null,null,null,null,null,null,null,null,null,null,null,null,null,null,null,null,null,null,null,null,null,null,null,null,null,null,null,null,null,null,null,null,null,null,null,null,null,null,null,null,null,null,null,null,null,null,null,null,null,null,null,null,null,null,null,null,null,null,null,null,null,null,null,null,null,null,null,null,null,null,null,null,null,null,null,null,null,null,4,"DEN0OSIFULEJ6MGY1BPFW6J21","DA5ON71OOUJFCVWVIJIIPEUBD","","","","","","00","X","0","0","",""]
[null,null,null,null,null,null,null,null,null,null,null,null,null,null,null,null,null,null,null,null,null,null,null,null,null,null,null,null,null,null,null,null,null,null,null,null,null,null,null,null,null,null,null,null,null,null,null,null,null,null,null,null,null,null,null,null,null,null,null,null,null,null,null,null,null,null,null,null,null,null,null,null,null,null,null,null,null,null,null,null,null,null,null,null,null,null,null,null,null,null,null,null,null,null,null,null,null,null,null,null,null,null,null,null,null,null,null,null,null,null,null,null,null,null,null,null,null,null,null,null,null,null,null,null,null,null,null,null,null,null,4,"DEN0OSIFULEJ6MGY1BPFW6J21","DA5ON71OOUK71I8MU2Y4RU8L5","","","","","","00","X","0","0","",""]
[null,null,null,null,null,null,null,null,null,null,null,null,null,null,null,null,null,null,null,null,null,null,null,null,null,null,null,null,null,null,null,null,null,null,null,null,null,null,null,null,null,null,null,null,null,null,null,null,null,null,null,null,null,null,null,null,null,null,null,null,null,null,null,null,null,null,null,null,null,null,null,null,null,null,null,null,null,null,null,null,null,null,null,null,null,null,null,null,null,null,null,null,null,null,null,null,null,null,null,null,null,null,null,null,null,null,null,null,null,null,null,null,null,null,null,null,null,null,null,null,null,null,null,null,null,null,null,null,null,null,4,"DEN0OSIFULEJ6MGY1BPFW6J21","DA5ON71OOUKYQ4KE5MDQU9MUX","","","","","","00","X","0","0","",""]
[null,null,null,null,null,null,null,null,null,null,null,null,null,null,null,null,null,null,null,null,null,null,null,null,null,null,null,null,null,null,null,null,null,null,null,null,null,null,null,null,null,null,null,null,null,null,null,null,null,null,null,null,null,null,null,null,null,null,null,null,null,null,null,null,null,null,null,null,null,null,null,null,null,null,null,null,null,null,null,null,null,null,null,null,null,null,null,null,null,null,null,null,null,null,null,null,null,null,null,null,null,null,null,null,null,null,null,null,null,null,null,null,null,null,null,null,null,null,null,null,null,null,null,null,null,null,null,null,null,null,4,"DEN0OSIFULEJ6MGY1BPFW6J21","DA5ON71OOULQEQW5H5TCWP14P","","","","","","00","X","0","0","",""]
[null,null,null,null,null,null,null,null,null,null,null,null,null,null,null,null,null,null,null,null,null,null,null,null,null,null,null,null,null,null,null,null,null,null,null,null,null,null,null,null,null,null,null,null,null,null,null,null,null,null,null,null,null,null,null,null,null,null,null,null,null,null,null,null,null,null,null,null,null,null,null,null,null,null,null,null,null,null,null,null,null,null,null,null,null,null,null,null,null,null,null,null,null,null,null,null,null,null,null,null,null,null,null,null,null,null,null,null,null,null,null,null,null,null,null,null,null,null,null,null,null,null,null,null,null,null,null,null,null,null,4,"DEN0OSIFULEJ6MGY1BPFW6J21","DA5ON71OOUMI3D7WSP8YZ4FEH","","","","","","00","X","0","0","",""]
[null,null,null,null,null,null,null,null,null,null,null,null,null,null,null,null,null,null,null,null,null,null,null,null,null,null,null,null,null,null,null,null,null,null,null,null,null,null,null,null,null,null,null,null,null,null,null,null,null,null,null,null,null,null,null,null,null,null,null,null,null,null,null,null,null,null,null,null,null,null,null,null,null,null,null,null,null,null,null,null,null,null,null,null,null,null,null,null,null,null,null,null,null,null,null,null,null,null,null,null,null,null,null,null,null,null,null,null,null,null,null,null,null,null,null,null,null,null,null,null,null,null,null,null,null,null,null,null,null,null,4,"DEN0OSIFULEJ6MGY1BPFW6J21","DA5ON71OOUN9RZJO48OL1JTO9","","","","","","00","X","0","0","",""]
[null,null,null,null,null,null,null,null,null,null,null,null,null,null,null,null,null,null,null,null,null,null,null,null,null,null,null,null,null,null,null,null,null,null,null,null,null,null,null,null,null,null,null,null,null,null,null,null,null,null,null,null,null,null,null,null,null,null,null,null,null,null,null,null,null,null,null,null,null,null,null,null,null,null,null,null,null,null,null,null,null,null,null,null,null,null,null,null,null,null,null,null,null,null,null,null,null,null,null,null,null,null,null,null,null,null,null,null,null,null,null,null,null,null,null,null,null,null,null,null,null,null,null,null,null,null,null,null,null,null,4,"DEN0OSIFULEJ6MGY1BPFW6J21","DA5ON71OOUO1GLVFFS473Z7Y1","","","","","","00","X","0","0","",""]
[null,null,null,null,null,null,null,null,null,null,null,null,null,null,null,null,null,null,null,null,null,null,null,null,null,null,null,null,null,null,null,null,null,null,null,null,null,null,null,null,null,null,null,null,null,null,null,null,null,null,null,null,null,null,null,null,null,null,null,null,null,null,null,null,null,null,null,null,null,null,null,null,null,null,null,null,null,null,null,null,null,null,null,null,null,null,null,null,null,null,null,null,null,null,null,null,null,null,null,null,null,null,null,null,null,null,null,null,null,null,null,null,null,null,null,null,null,null,null,null,null,null,null,null,null,null,null,null,null,null,4,"DEN0OSIFULEJ6MGY1BPFW6J21","DA5ON71OOUOT5876RBJT6EM7T","","","","","","00","X","0","0","",""]
[null,null,null,null,null,null,null,null,null,null,null,null,null,null,null,null,null,null,null,null,null,null,null,null,null,null,null,null,null,null,null,null,null,null,null,null,null,null,null,null,null,null,null,null,null,null,null,null,null,null,null,null,null,null,null,null,null,null,null,null,null,null,null,null,null,null,null,null,null,null,null,null,null,null,null,null,null,null,null,null,null,null,null,null,null,null,null,null,null,null,null,null,null,null,null,null,null,null,null,null,null,null,null,null,null,null,null,null,null,null,null,null,null,null,null,null,null,null,null,null,null,null,null,null,null,null,null,null,null,null,4,"DEN0OSIFULEJ6MGY1BPFW6J21","DA5ON71OOUPKTUIY2UZF8U0HL","","","","","","00","X","0","0","",""]
[null,null,null,null,null,null,null,null,null,null,null,null,null,null,null,null,null,null,null,null,null,null,null,null,null,null,null,null,null,null,null,null,null,null,null,null,null,null,null,null,null,null,null,null,null,null,null,null,null,null,null,null,null,null,null,null,null,null,null,null,null,null,null,null,null,null,null,null,null,null,null,null,null,null,null,null,null,null,null,null,null,null,null,null,null,null,null,null,null,null,null,null,null,null,null,null,null,null,null,null,null,null,null,null,null,null,null,null,null,null,null,null,null,null,null,null,null,null,null,null,null,null,null,null,null,null,null,null,null,null,4,"DEN0OSIFULEJ6MGY1BPFW6J21","DA5ON71OOUQCIGUPEEF1B9ERD","","","","","","00","X","0","0","",""]

{"sheet":"SAPBEXfiltersDefunct","index":1,"n_rows":13,"n_cols":237,"rows_kept":13,"cut":false,"hidden":true,"merged":[]}
[]
[null,null,null,null,null,null,null,null,null,null,null,null,null,null,null,null,null,null,null,null,null,null,null,null,null,null,null,null,null,null,null,null,null,null,null,null,null,null,null,null,null,null,null,null,null,null,null,null,null,null,null,null,null,null,null,null,null,null,null,null,null,null,null,null,null,null,null,null,null,null,null,null,null,null,null,null,null,null,null,null,null,null,null,null,null,null,null,null,null,null,null,null,null,null,null,null,null,null,null,null,0,null,null,null,null,null,null,null,null,null,null,null,null,null,null,null,null,null,null,null,null,null,null,null,null,null,null,null,null,null,null,null,null,null,null,null,null,null,null,null,null,null,null,null,null,null,null,null,null,null,null,null,null,null,null,7,null,null,null,null,null,null,null,null,null,null,null,null,null,null,null,null,null,null,null,null,null,null,null,null,null,null,null,null,null,null,null,null,null,null,null,null,null,null,null,null,null,null,null,null,null,null,null,null,null,10]
[null,null,null,null,null,null,null,null,null,null,null,null,null,null,null,null,null,null,null,null,null,null,null,null,null,null,null,null,null,null,null,null,null,null,null,null,null,null,null,null,null,null,null,null,null,null,null,null,null,null,null,null,null,null,null,null,null,null,null,null,null,null,null,null,null,null,null,null,null,null,null,null,null,null,null,null,null,null,null,null,null,null,null,null,null,null,null,null,null,null,null,null,null,null,null,null,null,null,null,null,8,null,null,null,null,null,null,null,null,null,null,null,null,null,null,null,null,null,null,null,null,null,null,null,null,null,null,null,null,null,null,null,null,null,null,null,null,null,null,null,null,null,null,null,null,null,null,null,null,null,null,null,null,null,null,12,null,null,null,null,null,null,null,null,null,null,null,null,null,null,null,null,null,null,null,null,null,null,null,null,null,null,null,null,null,null,null,null,null,null,null,null,null,null,null,null,null,null,null,null,null,null,null,null,null,31]
[null,null,null,null,null,null,null,null,null,null,null,null,null,null,null,null,null,null,null,null,null,null,null,null,null,null,null,null,null,null,null,null,null,null,null,null,null,null,null,null,null,null,null,null,null,null,null,null,null,null,null,null,null,null,null,null,null,null,null,null,null,null,null,null,null,null,null,null,null,null,null,null,null,null,null,null,null,null,null,null,null,null,null,null,null,null,null,null,null,null,null,null,null,null,null,null,null,null,null,null,null,null,null,null,null,null,null,null,null,null,null,null,null,null,null,null,null,null,null,null,null,null,null,null,null,null,null,null,null,null,null,null,null,null,null,null,null,null,null,null,null,null,null,null,null,null,null,null,null,null,null,null,null,null,null,10,"DKYHX3EYK6T5SU7ZMJFB2GFSP","","X","3","0","ZPERSAREA","","","0","","","",null,null,null,null,null,null,null,null,null,null,null,null,null,null,null,null,null,null,null,null,null,null,null,null,null,null,null,null,null,null,null,null,null,null,null,null,null,10,"DKYHX3EYK6T5SU7ZMJFB2GFSP","","","0001","0001","0","0000","I","EQ","0051","","0051","","1","","0","","Education","","","","","0","","","0","","0","","","00"]
[null,null,null,null,null,null,null,null,null,null,null,null,null,null,null,null,null,null,null,null,null,null,null,null,null,null,null,null,null,null,null,null,null,null,null,null,null,null,null,null,null,null,null,null,null,null,null,null,null,null,null,null,null,null,null,null,null,null,null,null,null,null,null,null,null,null,null,null,null,null,null,null,null,null,null,null,null,null,null,null,null,null,null,null,null,null,null,null,null,null,null,null,null,null,null,null,null,null,null,null,null,null,null,null,null,null,null,null,null,null,null,null,null,null,null,null,null,null,null,null,null,null,null,null,null,null,null,null,null,null,null,null,null,null,null,null,null,null,null,null,null,null,null,null,null,null,null,null,null,null,null,null,null,null,null,9,"DKYHX3EYK7AUJ3QFZYEEMAK1L","","X","3","0","ZPERSAREA","","","0","","","",null,null,null,null,null,null,null,null,null,null,null,null,null,null,null,null,null,null,null,null,null,null,null,null,null,null,null,null,null,null,null,null,null,null,null,null,null,9,"DKYHX3EYK7AUJ3QFZYEEMAK1L","","","0001","0001","0","0000","I","EQ","0031","","0031","","1","","0","","Development and Regeneration","","","","","0","","","0","","0","","","00"]
[null,null,null,null,null,null,null,null,null,null,null,null,null,null,null,null,null,null,null,null,null,null,null,null,null,null,null,null,null,null,null,null,null,null,null,null,null,null,null,null,null,null,null,null,null,null,null,null,null,null,null,null,null,null,null,null,null,null,null,null,null,null,null,null,null,null,null,null,null,null,null,null,null,null,null,null,null,null,null,null,null,null,null,null,null,null,null,null,null,null,null,null,null,null,null,null,null,null,null,null,null,null,null,null,null,null,null,null,null,null,null,null,null,null,null,null,null,null,null,null,null,null,null,null,null,null,null,null,null,null,null,null,null,null,null,null,null,null,null,null,null,null,null,null,null,null,null,null,null,null,null,null,null,null,null,8,"DKYHX4P8YVCC5ALJSEM1MIQRD","","X","3","0","0ORGUNIT","","","0","","","",null,null,null,null,null,null,null,null,null,null,null,null,null,null,null,null,null,null,null,null,null,null,null,null,null,null,null,null,null,null,null,null,null,null,null,null,null,8,"DKYHX4P8YVCC5ALJSEM1MIQRD","","","0001","0001","0","0000","I","EQ","50004880","0ORGUNIT","50004880","","1","","4","","Corporate Services","","","","ORGEH","1","","000","1","20150930","1","","","00"]
[null,null,null,null,null,null,null,null,null,null,null,null,null,null,null,null,null,null,null,null,null,null,null,null,null,null,null,null,null,null,null,null,null,null,null,null,null,null,null,null,null,null,null,null,null,null,null,null,null,null,null,null,null,null,null,null,null,null,null,null,null,null,null,null,null,null,null,null,null,null,null,null,null,null,null,null,null,null,null,null,null,null,null,null,null,null,null,null,null,null,null,null,null,null,null,null,null,null,null,null,null,null,null,null,null,null,null,null,null,null,null,null,null,null,null,null,null,null,null,null,null,null,null,null,null,null,null,null,null,null,null,null,null,null,null,null,null,null,null,null,null,null,null,null,null,null,null,null,null,null,null,null,null,null,null,7,"DKYHX4P8YVSHIBGHIQPX1I2GP","","X","3","0","0ORGUNIT","","","0","","","",null,null,null,null,null,null,null,null,null,null,null,null,null,null,null,null,null,null,null,null,null,null,null,null,null,null,null,null,null,null,null,null,null,null,null,null,null,7,"DKYHX4P8YVSHIBGHIQPX1I2GP","","","0001","0001","0","0000","I","EQ","50004878","","50004878","","1","","0","","Chief Executive Srv","","","","","0","","","0","","0","","","00"]
[null,null,null,null,null,null,null,null,null,null,null,null,null,null,null,null,null,null,null,null,null,null,null,null,null,null,null,null,null,null,null,null,null,null,null,null,null,null,null,null,null,null,null,null,null,null,null,null,null,null,null,null,null,null,null,null,null,null,null,null,null,null,null,null,null,null,null,null,null,null,null,null,null,null,null,null,null,null,null,null,null,null,null,null,null,null,null,null,null,null,null,null,null,null,null,null,null,null,null,null,null,null,null,null,null,null,null,null,null,null,null,null,null,null,null,null,null,null,null,null,null,null,null,null,null,null,null,null,null,null,null,null,null,null,null,null,null,null,null,null,null,null,null,null,null,null,null,null,null,null,null,null,null,null,null,6,"DKYHX4P8YW8MVCBF92TSGHE61","","X","3","0","ZPERSAREA","","","0","","","",null,null,null,null,null,null,null,null,null,null,null,null,null,null,null,null,null,null,null,null,null,null,null,null,null,null,null,null,null,null,null,null,null,null,null,null,null,7,"DKYHX4P8YVSHIBGHIQPX1I2GP","","","0002","0001","0","0000","I","EQ","50004879","0ORGUNIT","50004879","","1","","4","","Chief Executive Organisation Structure","","","","ORGEH","1","","000","1","20150930","1","","","00"]
[null,null,null,null,null,null,null,null,null,null,null,null,null,null,null,null,null,null,null,null,null,null,null,null,null,null,null,null,null,null,null,null,null,null,null,null,null,null,null,null,null,null,null,null,null,null,null,null,null,null,null,null,null,null,null,null,null,null,null,null,null,null,null,null,null,null,null,null,null,null,null,null,null,null,null,null,null,null,null,null,null,null,null,null,null,null,null,null,null,null,null,null,null,null,null,null,null,null,null,null,null,null,null,null,null,null,null,null,null,null,null,null,null,null,null,null,null,null,null,null,null,null,null,null,null,null,null,null,null,null,null,null,null,null,null,null,null,null,null,null,null,null,null,null,null,null,null,null,null,null,null,null,null,null,null,5,"DKYHX5Z2W6L89YTTEYL3UQTIX","","X","3","0","ZPERSAREA","","","0","","","",null,null,null,null,null,null,null,null,null,null,null,null,null,null,null,null,null,null,null,null,null,null,null,null,null,null,null,null,null,null,null,null,null,null,null,null,null,7,"DKYHX4P8YVSHIBGHIQPX1I2GP","","","0003","0001","0","0000","I","EQ","50004939","0ORGUNIT","50004939","","1","","4","","Communication & Organisation Development","","","","ORGEH","1","","000","1","20150930","1","","","00"]
[null,null,null,null,null,null,null,null,null,null,null,null,null,null,null,null,null,null,null,null,null,null,null,null,null,null,null,null,null,null,null,null,null,null,null,null,null,null,null,null,null,null,null,null,null,null,null,null,null,null,null,null,null,null,null,null,null,null,null,null,null,null,null,null,null,null,null,null,null,null,null,null,null,null,null,null,null,null,null,null,null,null,null,null,null,null,null,null,null,null,null,null,null,null,null,null,null,null,null,null,null,null,null,null,null,null,null,null,null,null,null,null,null,null,null,null,null,null,null,null,null,null,null,null,null,null,null,null,null,null,null,null,null,null,null,null,null,null,null,null,null,null,null,null,null,null,null,null,null,null,null,null,null,null,null,4,"DKYHX5Z2W71DMZOR5AOZ9Q589","","X","3","0","ZPERSAREA","","","0","","","",null,null,null,null,null,null,null,null,null,null,null,null,null,null,null,null,null,null,null,null,null,null,null,null,null,null,null,null,null,null,null,null,null,null,null,null,null,7,"DKYHX4P8YVSHIBGHIQPX1I2GP","","","0004","0001","0","0000","I","EQ","50258124","0ORGUNIT","50258124","","1","","4","","CE Corporate Policy","","","","ORGEH","1","","000","1","20150930","1","","","00"]
[null,null,null,null,null,null,null,null,null,null,null,null,null,null,null,null,null,null,null,null,null,null,null,null,null,null,null,null,null,null,null,null,null,null,null,null,null,null,null,null,null,null,null,null,null,null,null,null,null,null,null,null,null,null,null,null,null,null,null,null,null,null,null,null,null,null,null,null,null,null,null,null,null,null,null,null,null,null,null,null,null,null,null,null,null,null,null,null,null,null,null,null,null,null,null,null,null,null,null,null,null,null,null,null,null,null,null,null,null,null,null,null,null,null,null,null,null,null,null,null,null,null,null,null,null,null,null,null,null,null,null,null,null,null,null,null,null,null,null,null,null,null,null,null,null,null,null,null,null,null,null,null,null,null,null,null,null,null,null,null,null,null,null,null,null,null,null,null,null,null,null,null,null,null,null,null,null,null,null,null,null,null,null,null,null,null,null,null,null,null,null,null,null,null,null,null,null,null,null,null,null,null,null,null,null,6,"DKYHX4P8YW8MVCBF92TSGHE61","","","0001","0001","0","0000","I","EQ","0071","","0071","","1","","0","","Financial","","","","","0","","","0","","0","","","00"]
[null,null,null,null,null,null,null,null,null,null,null,null,null,null,null,null,null,null,null,null,null,null,null,null,null,null,null,null,null,null,null,null,null,null,null,null,null,null,null,null,null,null,null,null,null,null,null,null,null,null,null,null,null,null,null,null,null,null,null,null,null,null,null,null,null,null,null,null,null,null,null,null,null,null,null,null,null,null,null,null,null,null,null,null,null,null,null,null,null,null,null,null,null,null,null,null,null,null,null,null,null,null,null,null,null,null,null,null,null,null,null,null,null,null,null,null,null,null,null,null,null,null,null,null,null,null,null,null,null,null,null,null,null,null,null,null,null,null,null,null,null,null,null,null,null,null,null,null,null,null,null,null,null,null,null,null,null,null,null,null,null,null,null,null,null,null,null,null,null,null,null,null,null,null,null,null,null,null,null,null,null,null,null,null,null,null,null,null,null,null,null,null,null,null,null,null,null,null,null,null,null,null,null,null,null,5,"DKYHX5Z2W6L89YTTEYL3UQTIX","","","0001","0001","0","0000","I","EQ","0081","","0081","","1","","0","","Land and Environmental","","","","","0","","","0","","0","","","00"]
[null,null,null,null,null,null,null,null,null,null,null,null,null,null,null,null,null,null,null,null,null,null,null,null,null,null,null,null,null,null,null,null,null,null,null,null,null,null,null,null,null,null,null,null,null,null,null,null,null,null,null,null,null,null,null,null,null,null,null,null,null,null,null,null,null,null,null,null,null,null,null,null,null,null,null,null,null,null,null,null,null,null,null,null,null,null,null,null,null,null,null,null,null,null,null,null,null,null,null,null,null,null,null,null,null,null,null,null,null,null,null,null,null,null,null,null,null,null,null,null,null,null,null,null,null,null,null,null,null,null,null,null,null,null,null,null,null,null,null,null,null,null,null,null,null,null,null,null,null,null,null,null,null,null,null,null,null,null,null,null,null,null,null,null,null,null,null,null,null,null,null,null,null,null,null,null,null,null,null,null,null,null,null,null,null,null,null,null,null,null,null,null,null,null,null,null,null,null,null,null,null,null,null,null,null,4,"DKYHX5Z2W71DMZOR5AOZ9Q589","","","0001","0001","0","0000","I","EQ","0091","","0091","","1","","0","","Social Work","","","","","0","","","0","","0","","","00"]

{"sheet":"BExRepositorySheet","index":2,"n_rows":1,"n_cols":1,"rows_kept":1,"cut":false,"hidden":true,"merged":[]}
[7]

{"sheet":"Summary","index":3,"n_rows":35,"n_cols":35,"rows_kept":35,"cut":false,"hidden":false,"merged":[[16,31,17,32],[16,34,17,34],[16,13,17,14],[16,16,17,17],[16,19,17,20],[16,22,17,23],[16,25,17,26],[16,28,17,29],[2,0,2,2],[4,1,12,10],[16,0,17,0],[16,1,17,2],[16,4,17,5],[16,7,17,8],[16,10,17,11]]}
["WORKFORCE PROFILE BY RELIGION AND BELIEF"]
["GLASGOW LIFE"]
["30 September 2019"]
[]
[null,"The table below has been simplified to provide a summary of the Company's workforce by Religion and Belief.  The detailed information to support this is provided on Page 2"]
[]
[]
[]
[]
[]
[]
[]
[]
[]
[]
[]
[null,"Buddist",null,null,"Church of Scotland",null,null,"Hindu",null,null,"Jewish",null,null,"Muslim",null,null,"Other Christian",null,null,"Roman Catholic",null,null,"Sikh",null,null,"Another religion",null,null,"None",null,null,"Not Disclosed",null,null,"Total Workforce"]
[]
[null,"Number ","%",null,"Number ","%",null,"Number ","%",null,"Number ","%",null,"Number ","%",null,"Number ","%",null,"Number ","%",null,"Number ","%",null,"Number ","%",null,"Number ","%",null,"Number ","%",null,"Number "]
[]
["Grade 1-4 Total",{"$f":"Breakdown!B8","v":1},{"$f":"B21/AI21","v":6.0606060606060606E-4},null,{"$f":"Breakdown!D8","v":82},{"$f":"E21/AI21","v":4.9696969696969698E-2},null,{"$f":"Breakdown!F8","v":2},{"$f":"H21/AI21","v":1.2121212121212121E-3},null,{"$f":"Breakdown!H8","v":0},{"$f":"K21/AI21","v":0},null,{"$f":"Breakdown!J8","v":3},{"$f":"N21/AI21","v":1.8181818181818182E-3},null,{"$f":"Breakdown!L8","v":27},{"$f":"Q21/AI21","v":1.6363636363636365E-2},null,{"$f":"Breakdown!N8","v":116},{"$f":"T21/AI21","v":7.0303030303030298E-2},null,{"$f":"Breakdown!P8","v":1},{"$f":"W21/AI21","v":6.0606060606060606E-4},null,{"$f":"Breakdown!R8","v":10},{"$f":"Z21/AI21","v":6.0606060606060606E-3},null,{"$f":"Breakdown!T8","v":293},{"$f":"AC21/AI21","v":0.17757575757575758},null,{"$f":"Breakdown!V8","v":1115},{"$f":"AF21/AI21","v":0.67575757575757578},null,{"$f":"Breakdown!X8","v":1650}]
[]
["Grade 5-7 Total",{"$f":"Breakdown!B12","v":2},{"$f":"B23/AI23","v":2.5412960609911056E-3},null,{"$f":"Breakdown!D12","v":42},{"$f":"E23/AI23","v":5.3367217280813214E-2},null,{"$f":"Breakdown!F12","v":0},{"$f":"H23/AI23","v":0},null,{"$f":"Breakdown!H12","v":0},{"$f":"K23/AI23","v":0},null,{"$f":"Breakdown!J12","v":4},{"$f":"N23/AI23","v":5.0825921219822112E-3},null,{"$f":"Breakdown!L12","v":16},{"$f":"Q23/AI23","v":2.0330368487928845E-2},null,{"$f":"Breakdown!N12","v":45},{"$f":"T23/AI23","v":5.7179161372299871E-2},null,{"$f":"Breakdown!P12","v":1},{"$f":"W23/AI23","v":1.2706480304955528E-3},null,{"$f":"Breakdown!R12","v":9},{"$f":"Z23/AI23","v":1.1435832274459974E-2},null,{"$f":"Breakdown!T12","v":119},{"$f":"AC23/AI23","v":0.15120711562897077},null,{"$f":"Breakdown!V12","v":549},{"$f":"AF23/AI23","v":0.69758576874205847},null,{"$f":"Breakdown!X12","v":787}]
[]
["Grade 8 Total",{"$f":"Breakdown!B16","v":0},{"$f":"B25/AI25","v":0},null,{"$f":"Breakdown!D16","v":2},{"$f":"E25/AI25","v":3.9215686274509803E-2},null,{"$f":"Breakdown!F16","v":0},{"$f":"H25/AI25","v":0},null,{"$f":"Breakdown!H16","v":0},{"$f":"K25/AI25","v":0},null,{"$f":"Breakdown!J16","v":0},{"$f":"N25/AI25","v":0},null,{"$f":"Breakdown!L16","v":1},{"$f":"Q25/AI25","v":1.9607843137254902E-2},null,{"$f":"Breakdown!N16","v":3},{"$f":"T25/AI25","v":5.8823529411764705E-2},null,{"$f":"Breakdown!P16","v":0},{"$f":"W25/AI25","v":0},null,{"$f":"Breakdown!R16","v":1},{"$f":"Z25/AI25","v":1.9607843137254902E-2},null,{"$f":"Breakdown!T16","v":10},{"$f":"AC25/AI25","v":0.19607843137254902},null,{"$f":"Breakdown!V16","v":34},{"$f":"AF25/AI25","v":0.66666666666666663},null,{"$f":"Breakdown!X16","v":51}]
[]
["Grade 9-15 Total",{"$f":"Breakdown!B24+Breakdown!B28","v":0},{"$f":"B27/AI27","v":0},null,{"$f":"Breakdown!D24+Breakdown!D28","v":0},{"$f":"E27/AI27","v":0},null,{"$f":"Breakdown!F24+Breakdown!F28","v":0},{"$f":"H27/AI27","v":0},null,{"$f":"Breakdown!H24+Breakdown!H28","v":0},{"$f":"K27/AI27","v":0},null,{"$f":"Breakdown!J24+Breakdown!J28","v":0},{"$f":"N27/AI27","v":0},null,{"$f":"Breakdown!L24+Breakdown!L28","v":0},{"$f":"Q27/AI27","v":0},null,{"$f":"Breakdown!N24+Breakdown!N28","v":4},{"$f":"T27/AI27","v":0.12903225806451613},null,{"$f":"Breakdown!P24+Breakdown!P28","v":0},{"$f":"W27/AI27","v":0},null,{"$f":"Breakdown!R24+Breakdown!R28","v":1},{"$f":"Z27/AI27","v":3.2258064516129031E-2},null,{"$f":"Breakdown!T24+Breakdown!T28","v":2},{"$f":"AC27/AI27","v":6.4516129032258063E-2},null,{"$f":"Breakdown!V24+Breakdown!V28","v":24},{"$f":"AF27/AI27","v":0.77419354838709675},null,{"$f":"Breakdown!X24+Breakdown!X28","v":31}]
[]
["Other Non Pay & Grading Structure",{"$f":"Breakdown!B32","v":0},{"$f":"B29/AI29","v":0},null,{"$f":"Breakdown!D32","v":2},{"$f":"E29/AI29","v":3.7037037037037035E-2},null,{"$f":"Breakdown!F32","v":0},{"$f":"H29/AI29","v":0},null,{"$f":"Breakdown!H32","v":0},{"$f":"K29/AI29","v":0},null,{"$f":"Breakdown!J32","v":0},{"$f":"N29/AI29","v":0},null,{"$f":"Breakdown!L32","v":0},{"$f":"Q29/AI29","v":0},null,{"$f":"Breakdown!N32","v":1},{"$f":"T29/AI29","v":1.8518518518518517E-2},null,{"$f":"Breakdown!P32","v":0},{"$f":"W29/AI29","v":0},null,{"$f":"Breakdown!R32","v":0},{"$f":"Z29/AI29","v":0},null,{"$f":"Breakdown!T32","v":4},{"$f":"AC29/AI29","v":7.407407407407407E-2},null,{"$f":"Breakdown!V32","v":47},{"$f":"AF29/AI29","v":0.87037037037037035},null,{"$f":"Breakdown!X32","v":54}]
[]
["Total FT Workforce",{"$f":"Breakdown!B34","v":1},{"$f":"B31/AI31","v":5.9988002399520091E-4},null,{"$f":"Breakdown!D34","v":82},{"$f":"E31/AI31","v":4.9190161967606477E-2},null,{"$f":"Breakdown!F34","v":1},{"$f":"H31/AI31","v":5.9988002399520091E-4},null,{"$f":"Breakdown!H34","v":0},{"$f":"K31/AI31","v":0},null,{"$f":"Breakdown!J34","v":5},{"$f":"N31/AI31","v":2.999400119976005E-3},null,{"$f":"Breakdown!L34","v":22},{"$f":"Q31/AI31","v":1.3197360527894421E-2},null,{"$f":"Breakdown!N34","v":95},{"$f":"T31/AI31","v":5.6988602279544089E-2},null,{"$f":"Breakdown!P34","v":1},{"$f":"W31/AI31","v":5.9988002399520091E-4},null,{"$f":"Breakdown!R34","v":16},{"$f":"Z31/AI31","v":9.5980803839232146E-3},null,{"$f":"Breakdown!T34","v":251},{"$f":"AC31/AI31","v":0.15056988602279545},null,{"$f":"Breakdown!V34","v":1193},{"$f":"AF31/AI31","v":0.71565686862627476},null,{"$f":"Breakdown!X34","v":1667}]
[]
["Total PT Workforce",{"$f":"Breakdown!B36","v":2},{"$f":"B33/AI33","v":2.2075055187637969E-3},null,{"$f":"Breakdown!D36","v":46},{"$f":"E33/AI33","v":5.0772626931567331E-2},null,{"$f":"Breakdown!F36","v":1},{"$f":"H33/AI33","v":1.1037527593818985E-3},null,{"$f":"Breakdown!H36","v":0},{"$f":"K33/AI33","v":0},null,{"$f":"Breakdown!J36","v":2},{"$f":"N33/AI33","v":2.2075055187637969E-3},null,{"$f":"Breakdown!L36","v":22},{"$f":"Q33/AI33","v":2.4282560706401765E-2},null,{"$f":"Breakdown!N36","v":74},{"$f":"T33/AI33","v":8.1677704194260486E-2},null,{"$f":"Breakdown!P36","v":1},{"$f":"W33/AI33","v":1.1037527593818985E-3},null,{"$f":"Breakdown!R36","v":5},{"$f":"Z33/AI33","v":5.5187637969094927E-3},null,{"$f":"Breakdown!T36","v":177},{"$f":"AC33/AI33","v":0.19536423841059603},null,{"$f":"Breakdown!V36","v":576},{"$f":"AF33/AI33","v":0.63576158940397354},null,{"$f":"Breakdown!X36","v":906}]
[]
["Total Workforce",{"$f":"Breakdown!B38","v":3},{"$f":"B35/AI35","v":1.165954139137194E-3},null,{"$f":"Breakdown!D38","v":128},{"$f":"E35/AI35","v":4.9747376603186941E-2},null,{"$f":"Breakdown!F38","v":2},{"$f":"H35/AI35","v":7.7730275942479595E-4},null,{"$f":"Breakdown!H38","v":0},{"$f":"K35/AI35","v":0},null,{"$f":"Breakdown!J38","v":7},{"$f":"N35/AI35","v":2.7205596579867857E-3},null,{"$f":"Breakdown!L38","v":44},{"$f":"Q35/AI35","v":1.7100660707345512E-2},null,{"$f":"Breakdown!N38","v":169},{"$f":"T35/AI35","v":6.5682083171395261E-2},null,{"$f":"Breakdown!P38","v":2},{"$f":"W35/AI35","v":7.7730275942479595E-4},null,{"$f":"Breakdown!R38","v":21},{"$f":"Z35/AI35","v":8.1616789739603571E-3},null,{"$f":"Breakdown!T38","v":428},{"$f":"AC35/AI35","v":0.16634279051690634},null,{"$f":"Breakdown!V38","v":1769},{"$f":"AF35/AI35","v":0.687524290711232},null,{"$f":"Breakdown!X38","v":2573}]

{"sheet":"Breakdown","index":4,"n_rows":41,"n_cols":24,"rows_kept":41,"cut":false,"hidden":false,"merged":[[1,0,2,23]]}
[]
["RELIGION AND BELIEF"]
[]
["GLASGOW LIFE","Buddhist","%","Church of Scotland","%","Hindu","%","Jewish","%","Muslim","%","Other Christian","%","Roman Catholic","%","Sikh","%","Another Religion","%","None","%","Not disclosed","%","Totals"]
[]
["Grade 1-4 F/T",{"$f":"Query!B23","v":0},{"$f":"IF(X6=0,0,SUM(B6/X6))","v":0},{"$f":"Query!C23","v":44},{"$f":"IF(X6=0,0,SUM(D6/X6))","v":4.8834628190899003E-2},{"$f":"Query!D23","v":1},{"$f":"IF(X6=0,0,SUM(F6/X6))","v":1.1098779134295228E-3},{"$f":"Query!E23","v":0},{"$f":"IF(X6=0,0,SUM(H6/X6))","v":0},{"$f":"Query!F23","v":1},{"$f":"IF(X6=0,0,SUM(J6/X6))","v":1.1098779134295228E-3},{"$f":"Query!G23","v":11},{"$f":"IF(X6=0,0,SUM(L6/X6))","v":1.2208657047724751E-2},{"$f":"Query!H23","v":51},{"$f":"IF(X6=0,0,SUM(N6/X6))","v":5.6603773584905662E-2},{"$f":"Query!I23","v":0},{"$f":"IF(X6=0,0,SUM(P6/X6))","v":0},{"$f":"Query!J23","v":5},{"$f":"IF(X6=0,0,SUM(R6/X6))","v":5.5493895671476137E-3},{"$f":"Query!K23","v":136},{"$f":"IF(X6=0,0,SUM(T6/X6))","v":0.15094339622641509},{"$f":"Query!L23","v":652},{"$f":"IF(X6=0,0,SUM(V6/X6))","v":0.72364039955604886},{"$f":"SUM(B6,D6,F6,H6,J6,L6,N6,P6,R6,T6,V6)","v":901}]
["Grade 1-4 P/T",{"$f":"Query!B24","v":1},{"$f":"IF(X7=0,0,SUM(B7/X7))","v":1.3351134846461949E-3},{"$f":"Query!C24","v":38},{"$f":"IF(X7=0,0,SUM(D7/X7))","v":5.0734312416555405E-2},{"$f":"Query!D24","v":1},{"$f":"IF(X7=0,0,SUM(F7/X7))","v":1.3351134846461949E-3},{"$f":"Query!E24","v":0},{"$f":"IF(X7=0,0,SUM(H7/X7))","v":0},{"$f":"Query!F24","v":2},{"$f":"IF(X7=0,0,SUM(J7/X7))","v":2.6702269692923898E-3},{"$f":"Query!G24","v":16},{"$f":"IF(X7=0,0,SUM(L7/X7))","v":2.1361815754339118E-2},{"$f":"Query!H24","v":65},{"$f":"IF(X7=0,0,SUM(N7/X7))","v":8.678237650200267E-2},{"$f":"Query!I24","v":1},{"$f":"IF(X7=0,0,SUM(P7/X7))","v":1.3351134846461949E-3},{"$f":"Query!J24","v":5},{"$f":"IF(X7=0,0,SUM(R7/X7))","v":6.6755674232309749E-3},{"$f":"Query!K24","v":157},{"$f":"IF(X7=0,0,SUM(T7/X7))","v":0.20961281708945259},{"$f":"Query!L24","v":463},{"$f":"IF(X7=0,0,SUM(V7/X7))","v":0.61815754339118822},{"$f":"SUM(B7,D7,F7,H7,J7,L7,N7,P7,R7,T7,V7)","v":749}]
["Grade 1-4 Total",{"$f":"SUM(B6:B7)","v":1},{"$f":"IF(X8=0,0,SUM(B8/X8))","v":6.0606060606060606E-4},{"$f":"SUM(D6:D7)","v":82},{"$f":"IF(X8=0,0,SUM(D8/X8))","v":4.9696969696969698E-2},{"$f":"SUM(F6:F7)","v":2},{"$f":"IF(X8=0,0,SUM(F8/X8))","v":1.2121212121212121E-3},{"$f":"SUM(H6:H7)","v":0},{"$f":"IF(X8=0,0,SUM(H8/X8))","v":0},{"$f":"SUM(J6:J7)","v":3},{"$f":"IF(X8=0,0,SUM(J8/X8))","v":1.8181818181818182E-3},{"$f":"SUM(L6:L7)","v":27},{"$f":"IF(X8=0,0,SUM(L8/X8))","v":1.6363636363636365E-2},{"$f":"SUM(N6:N7)","v":116},{"$f":"IF(X8=0,0,SUM(N8/X8))","v":7.0303030303030298E-2},{"$f":"SUM(P6:P7)","v":1},{"$f":"IF(X8=0,0,SUM(P8/X8))","v":6.0606060606060606E-4},{"$f":"SUM(R6:R7)","v":10},{"$f":"IF(X8=0,0,SUM(R8/X8))","v":6.0606060606060606E-3},{"$f":"SUM(T6:T7)","v":293},{"$f":"IF(X8=0,0,SUM(T8/X8))","v":0.17757575757575758},{"$f":"SUM(V6:V7)","v":1115},{"$f":"IF(X8=0,0,SUM(V8/X8))","v":0.67575757575757578},{"$f":"SUM(X6:X7)","v":1650}]
[]
["Grade 5-7 F/T",{"$f":"Query!B26","v":1},{"$f":"IF(X10=0,0,SUM(B10/X10))","v":1.5243902439024391E-3},{"$f":"Query!C26","v":34},{"$f":"IF(X10=0,0,SUM(D10/X10))","v":5.1829268292682924E-2},{"$f":"Query!D26","v":0},{"$f":"IF(X10=0,0,SUM(F10/X10))","v":0},{"$f":"Query!E26","v":0},{"$f":"IF(X10=0,0,SUM(H10/X10))","v":0},{"$f":"Query!F26","v":4},{"$f":"IF(X10=0,0,SUM(J10/X10))","v":6.0975609756097563E-3},{"$f":"Query!G26","v":10},{"$f":"IF(X10=0,0,SUM(L10/X10))","v":1.524390243902439E-2},{"$f":"Query!H26","v":36},{"$f":"IF(X10=0,0,SUM(N10/X10))","v":5.4878048780487805E-2},{"$f":"Query!I26","v":1},{"$f":"IF(X10=0,0,SUM(P10/X10))","v":1.5243902439024391E-3},{"$f":"Query!J26","v":9},{"$f":"IF(X10=0,0,SUM(R10/X10))","v":1.3719512195121951E-2},{"$f":"Query!K26","v":99},{"$f":"IF(X10=0,0,SUM(T10/X10))","v":0.15091463414634146},{"$f":"Query!L26","v":462},{"$f":"IF(X10=0,0,SUM(V10/X10))","v":0.70426829268292679},{"$f":"SUM(B10,D10,F10,H10,J10,L10,N10,P10,R10,T10,V10)","v":656}]
["Grade 5-7 P/T",{"$f":"Query!B27","v":1},{"$f":"IF(X11=0,0,SUM(B11/X11))","v":7.6335877862595417E-3},{"$f":"Query!C27","v":8},{"$f":"IF(X11=0,0,SUM(D11/X11))","v":6.1068702290076333E-2},{"$f":"Query!D27","v":0},{"$f":"IF(X11=0,0,SUM(F11/X11))","v":0},{"$f":"Query!E27","v":0},{"$f":"IF(X11=0,0,SUM(H11/X11))","v":0},{"$f":"Query!F27","v":0},{"$f":"IF(X11=0,0,SUM(J11/X11))","v":0},{"$f":"Query!G27","v":6},{"$f":"IF(X11=0,0,SUM(L11/X11))","v":4.5801526717557252E-2},{"$f":"Query!H27","v":9},{"$f":"IF(X11=0,0,SUM(N11/X11))","v":6.8702290076335881E-2},{"$f":"Query!I27","v":0},{"$f":"IF(X11=0,0,SUM(P11/X11))","v":0},{"$f":"Query!J27","v":0},{"$f":"IF(X11=0,0,SUM(R11/X11))","v":0},{"$f":"Query!K27","v":20},{"$f":"IF(X11=0,0,SUM(T11/X11))","v":0.15267175572519084},{"$f":"Query!L27","v":87},{"$f":"IF(X11=0,0,SUM(V11/X11))","v":0.66412213740458015},{"$f":"SUM(B11,D11,F11,H11,J11,L11,N11,P11,R11,T11,V11)","v":131}]
["Grade 5-7 Total",{"$f":"SUM(B10:B11)","v":2},{"$f":"IF(X12=0,0,SUM(B12/X12))","v":2.5412960609911056E-3},{"$f":"SUM(D10:D11)","v":42},{"$f":"IF(X12=0,0,SUM(D12/X12))","v":5.3367217280813214E-2},{"$f":"SUM(F10:F11)","v":0},{"$f":"IF(X12=0,0,SUM(F12/X12))","v":0},{"$f":"SUM(H10:H11)","v":0},{"$f":"IF(X12=0,0,SUM(H12/X12))","v":0},{"$f":"SUM(J10:J11)","v":4},{"$f":"IF(X12=0,0,SUM(J12/X12))","v":5.0825921219822112E-3},{"$f":"SUM(L10:L11)","v":16},{"$f":"IF(X12=0,0,SUM(L12/X12))","v":2.0330368487928845E-2},{"$f":"SUM(N10:N11)","v":45},{"$f":"IF(X12=0,0,SUM(N12/X12))","v":5.7179161372299871E-2},{"$f":"SUM(P10:P11)","v":1},{"$f":"IF(X12=0,0,SUM(P12/X12))","v":1.2706480304955528E-3},{"$f":"SUM(R10:R11)","v":9},{"$f":"IF(X12=0,0,SUM(R12/X12))","v":1.1435832274459974E-2},{"$f":"SUM(T10:T11)","v":119},{"$f":"IF(X12=0,0,SUM(T12/X12))","v":0.15120711562897077},{"$f":"SUM(V10:V11)","v":549},{"$f":"IF(X12=0,0,SUM(V12/X12))","v":0.69758576874205847},{"$f":"SUM(X10:X11)","v":787}]
[]
["Grade 8 F/T",{"$f":"Query!B29","v":0},{"$f":"IF(X14=0,0,SUM(B14/X14))","v":0},{"$f":"Query!C29","v":2},{"$f":"IF(X14=0,0,SUM(D14/X14))","v":4.1666666666666664E-2},{"$f":"Query!D29","v":0},{"$f":"IF(X14=0,0,SUM(F14/X14))","v":0},{"$f":"Query!E29","v":0},{"$f":"IF(X14=0,0,SUM(H14/X14))","v":0},{"$f":"Query!F29","v":0},{"$f":"IF(X14=0,0,SUM(J14/X14))","v":0},{"$f":"Query!G29","v":1},{"$f":"IF(X14=0,0,SUM(L14/X14))","v":2.0833333333333332E-2},{"$f":"Query!H29","v":3},{"$f":"IF(X14=0,0,SUM(N14/X14))","v":6.25E-2},{"$f":"Query!I29","v":0},{"$f":"IF(X14=0,0,SUM(P14/X14))","v":0},{"$f":"Query!J29","v":1},{"$f":"IF(X14=0,0,SUM(R14/X14))","v":2.0833333333333332E-2},{"$f":"Query!K29","v":10},{"$f":"IF(X14=0,0,SUM(T14/X14))","v":0.20833333333333334},{"$f":"Query!L29","v":31},{"$f":"IF(X14=0,0,SUM(V14/X14))","v":0.64583333333333337},{"$f":"SUM(B14,D14,F14,H14,J14,L14,N14,P14,R14,T14,V14)","v":48}]
["Grade 8 P/T",{"$f":"Query!B30","v":0},{"$f":"IF(X15=0,0,SUM(B15/X15))","v":0},{"$f":"Query!C30","v":0},{"$f":"IF(X15=0,0,SUM(D15/X15))","v":0},{"$f":"Query!D30","v":0},{"$f":"IF(X15=0,0,SUM(F15/X15))","v":0},{"$f":"Query!E30","v":0},{"$f":"IF(X15=0,0,SUM(H15/X15))","v":0},{"$f":"Query!F30","v":0},{"$f":"IF(X15=0,0,SUM(J15/X15))","v":0},{"$f":"Query!G30","v":0},{"$f":"IF(X15=0,0,SUM(L15/X15))","v":0},{"$f":"Query!H30","v":0},{"$f":"IF(X15=0,0,SUM(N15/X15))","v":0},{"$f":"Query!I30","v":0},{"$f":"IF(X15=0,0,SUM(P15/X15))","v":0},{"$f":"Query!J30","v":0},{"$f":"IF(X15=0,0,SUM(R15/X15))","v":0},{"$f":"Query!K30","v":0},{"$f":"IF(X15=0,0,SUM(T15/X15))","v":0},{"$f":"Query!L30","v":3},{"$f":"IF(X15=0,0,SUM(V15/X15))","v":1},{"$f":"SUM(B15,D15,F15,H15,J15,L15,N15,P15,R15,T15,V15)","v":3}]
["Grade 8 Total",{"$f":"SUM(B14:B15)","v":0},{"$f":"IF(X16=0,0,SUM(B16/X16))","v":0},{"$f":"SUM(D14:D15)","v":2},{"$f":"IF(X16=0,0,SUM(D16/X16))","v":3.9215686274509803E-2},{"$f":"SUM(F14:F15)","v":0},{"$f":"IF(X16=0,0,SUM(F16/X16))","v":0},{"$f":"SUM(H14:H15)","v":0},{"$f":"IF(X16=0,0,SUM(H16/X16))","v":0},{"$f":"SUM(J14:J15)","v":0},{"$f":"IF(X16=0,0,SUM(J16/X16))","v":0},{"$f":"SUM(L14:L15)","v":1},{"$f":"IF(X16=0,0,SUM(L16/X16))","v":1.9607843137254902E-2},{"$f":"SUM(N14:N15)","v":3},{"$f":"IF(X16=0,0,SUM(N16/X16))","v":5.8823529411764705E-2},{"$f":"SUM(P14:P15)","v":0},{"$f":"IF(X16=0,0,SUM(P16/X16))","v":0},{"$f":"SUM(R14:R15)","v":1},{"$f":"IF(X16=0,0,SUM(R16/X16))","v":1.9607843137254902E-2},{"$f":"SUM(T14:T15)","v":10},{"$f":"IF(X16=0,0,SUM(T16/X16))","v":0.19607843137254902},{"$f":"SUM(V14:V15)","v":34},{"$f":"IF(X16=0,0,SUM(V16/X16))","v":0.66666666666666663},{"$f":"SUM(X14:X15)","v":51}]
[]
["Grade ACZ 8 F/T",{"$f":"Query!B32","v":0},{"$f":"IF(X18=0,0,SUM(B18/X18))","v":0},{"$f":"Query!C32","v":0},{"$f":"IF(X18=0,0,SUM(D18/X18))","v":0},{"$f":"Query!D32","v":0},{"$f":"IF(X18=0,0,SUM(F18/X18))","v":0},{"$f":"Query!E32","v":0},{"$f":"IF(X18=0,0,SUM(H18/X18))","v":0},{"$f":"Query!F32","v":0},{"$f":"IF(X18=0,0,SUM(J18/X18))","v":0},{"$f":"Query!G32","v":0},{"$f":"IF(X18=0,0,SUM(L18/X18))","v":0},{"$f":"Query!H32","v":0},{"$f":"IF(X18=0,0,SUM(N18/X18))","v":0},{"$f":"Query!I32","v":0},{"$f":"IF(X18=0,0,SUM(P18/X18))","v":0},{"$f":"Query!J32","v":0},{"$f":"IF(X18=0,0,SUM(R18/X18))","v":0},{"$f":"Query!K32","v":0},{"$f":"IF(X18=0,0,SUM(T18/X18))","v":0},{"$f":"Query!L32","v":0},{"$f":"IF(X18=0,0,SUM(V18/X18))","v":0},{"$f":"SUM(B18,D18,F18,H18,J18,L18,N18,P18,R18,T18,V18)","v":0}]
["Grade ACZ 8 P/T",{"$f":"Query!B33","v":0},{"$f":"IF(X19=0,0,SUM(B19/X19))","v":0},{"$f":"Query!C33","v":0},{"$f":"IF(X19=0,0,SUM(D19/X19))","v":0},{"$f":"Query!D33","v":0},{"$f":"IF(X19=0,0,SUM(F19/X19))","v":0},{"$f":"Query!E33","v":0},{"$f":"IF(X19=0,0,SUM(H19/X19))","v":0},{"$f":"Query!F33","v":0},{"$f":"IF(X19=0,0,SUM(J19/X19))","v":0},{"$f":"Query!G33","v":0},{"$f":"IF(X19=0,0,SUM(L19/X19))","v":0},{"$f":"Query!H33","v":0},{"$f":"IF(X19=0,0,SUM(N19/X19))","v":0},{"$f":"Query!I33","v":0},{"$f":"IF(X19=0,0,SUM(P19/X19))","v":0},{"$f":"Query!J33","v":0},{"$f":"IF(X19=0,0,SUM(R19/X19))","v":0},{"$f":"Query!K33","v":0},{"$f":"IF(X19=0,0,SUM(T19/X19))","v":0},{"$f":"Query!L33","v":0},{"$f":"IF(X19=0,0,SUM(V19/X19))","v":0},{"$f":"SUM(B19,D19,F19,H19,J19,L19,N19,P19,R19,T19,V19)","v":0}]
["Grade ACZ 8 Total",{"$f":"SUM(B18:B19)","v":0},{"$f":"IF(X20=0,0,SUM(B20/X20))","v":0},{"$f":"SUM(D18:D19)","v":0},{"$f":"IF(X20=0,0,SUM(D20/X20))","v":0},{"$f":"SUM(F18:F19)","v":0},{"$f":"IF(X20=0,0,SUM(F20/X20))","v":0},{"$f":"SUM(H18:H19)","v":0},{"$f":"IF(X20=0,0,SUM(H20/X20))","v":0},{"$f":"SUM(J18:J19)","v":0},{"$f":"IF(X20=0,0,SUM(J20/X20))","v":0},{"$f":"SUM(L18:L19)","v":0},{"$f":"IF(X20=0,0,SUM(L20/X20))","v":0},{"$f":"SUM(N18:N19)","v":0},{"$f":"IF(X20=0,0,SUM(N20/X20))","v":0},{"$f":"SUM(P18:P19)","v":0},{"$f":"IF(X20=0,0,SUM(P20/X20))","v":0},{"$f":"SUM(R18:R19)","v":0},{"$f":"IF(X20=0,0,SUM(R20/X20))","v":0},{"$f":"SUM(T18:T19)","v":0},{"$f":"IF(X20=0,0,SUM(T20/X20))","v":0},{"$f":"SUM(V18:V19)","v":0},{"$f":"IF(X20=0,0,SUM(V20/X20))","v":0},{"$f":"SUM(X18:X19)","v":0}]
[]
["Grade 9-15 F/T",{"$f":"Query!B35","v":0},{"$f":"IF(X22=0,0,SUM(B22/X22))","v":0},{"$f":"Query!C35","v":0},{"$f":"IF(X22=0,0,SUM(D22/X22))","v":0},{"$f":"Query!D35","v":0},{"$f":"IF(X22=0,0,SUM(F22/X22))","v":0},{"$f":"Query!E35","v":0},{"$f":"IF(X22=0,0,SUM(H22/X22))","v":0},{"$f":"Query!F35","v":0},{"$f":"IF(X22=0,0,SUM(J22/X22))","v":0},{"$f":"Query!G35","v":0},{"$f":"IF(X22=0,0,SUM(L22/X22))","v":0},{"$f":"Query!H35","v":4},{"$f":"IF(X22=0,0,SUM(N22/X22))","v":0.12903225806451613},{"$f":"Query!I35","v":0},{"$f":"IF(X22=0,0,SUM(P22/X22))","v":0},{"$f":"Query!J35","v":1},{"$f":"IF(X22=0,0,SUM(R22/X22))","v":3.2258064516129031E-2},{"$f":"Query!K35","v":2},{"$f":"IF(X22=0,0,SUM(T22/X22))","v":6.4516129032258063E-2},{"$f":"Query!L35","v":24},{"$f":"IF(X22=0,0,SUM(V22/X22))","v":0.77419354838709675},{"$f":"SUM(B22,D22,F22,H22,J22,L22,N22,P22,R22,T22,V22)","v":31}]
["Grade 9-15 P/T",{"$f":"Query!B36","v":0},{"$f":"IF(X23=0,0,SUM(B23/X23))","v":0},{"$f":"Query!C36","v":0},{"$f":"IF(X23=0,0,SUM(D23/X23))","v":0},{"$f":"Query!D36","v":0},{"$f":"IF(X23=0,0,SUM(F23/X23))","v":0},{"$f":"Query!E36","v":0},{"$f":"IF(X23=0,0,SUM(H23/X23))","v":0},{"$f":"Query!F36","v":0},{"$f":"IF(X23=0,0,SUM(J23/X23))","v":0},{"$f":"Query!G36","v":0},{"$f":"IF(X23=0,0,SUM(L23/X23))","v":0},{"$f":"Query!H36","v":0},{"$f":"IF(X23=0,0,SUM(N23/X23))","v":0},{"$f":"Query!I36","v":0},{"$f":"IF(X23=0,0,SUM(P23/X23))","v":0},{"$f":"Query!J36","v":0},{"$f":"IF(X23=0,0,SUM(R23/X23))","v":0},{"$f":"Query!K36","v":0},{"$f":"IF(X23=0,0,SUM(T23/X23))","v":0},{"$f":"Query!L36","v":0},{"$f":"IF(X23=0,0,SUM(V23/X23))","v":0},{"$f":"SUM(B23,D23,F23,H23,J23,L23,N23,P23,R23,T23,V23)","v":0}]
["Grade 9-15 Total",{"$f":"SUM(B22:B23)","v":0},{"$f":"IF(X24=0,0,SUM(B24/X24))","v":0},{"$f":"SUM(D22:D23)","v":0},{"$f":"IF(X24=0,0,SUM(D24/X24))","v":0},{"$f":"SUM(F22:F23)","v":0},{"$f":"IF(X24=0,0,SUM(F24/X24))","v":0},{"$f":"SUM(H22:H23)","v":0},{"$f":"IF(X24=0,0,SUM(H24/X24))","v":0},{"$f":"SUM(J22:J23)","v":0},{"$f":"IF(X24=0,0,SUM(J24/X24))","v":0},{"$f":"SUM(L22:L23)","v":0},{"$f":"IF(X24=0,0,SUM(L24/X24))","v":0},{"$f":"SUM(N22:N23)","v":4},{"$f":"IF(X24=0,0,SUM(N24/X24))","v":0.12903225806451613},{"$f":"SUM(P22:P23)","v":0},{"$f":"IF(X24=0,0,SUM(P24/X24))","v":0},{"$f":"SUM(R22:R23)","v":1},{"$f":"IF(X24=0,0,SUM(R24/X24))","v":3.2258064516129031E-2},{"$f":"SUM(T22:T23)","v":2},{"$f":"IF(X24=0,0,SUM(T24/X24))","v":6.4516129032258063E-2},{"$f":"SUM(V22:V23)","v":24},{"$f":"IF(X24=0,0,SUM(V24/X24))","v":0.77419354838709675},{"$f":"SUM(X22:X23)","v":31}]
[]
["Grade ACZ 9-15 F/T",{"$f":"Query!B38","v":0},{"$f":"IF(X26=0,0,SUM(B26/X26))","v":0},{"$f":"Query!C38","v":0},{"$f":"IF(X26=0,0,SUM(D26/X26))","v":0},{"$f":"Query!D38","v":0},{"$f":"IF(X26=0,0,SUM(F26/X26))","v":0},{"$f":"Query!E38","v":0},{"$f":"IF(X26=0,0,SUM(H26/X26))","v":0},{"$f":"Query!F38","v":0},{"$f":"IF(X26=0,0,SUM(J26/X26))","v":0},{"$f":"Query!G38","v":0},{"$f":"IF(X26=0,0,SUM(L26/X26))","v":0},{"$f":"Query!H38","v":0},{"$f":"IF(X26=0,0,SUM(N26/X26))","v":0},{"$f":"Query!I38","v":0},{"$f":"IF(X26=0,0,SUM(P26/X26))","v":0},{"$f":"Query!J38","v":0},{"$f":"IF(X26=0,0,SUM(R26/X26))","v":0},{"$f":"Query!K38","v":0},{"$f":"IF(X26=0,0,SUM(T26/X26))","v":0},{"$f":"Query!L38","v":0},{"$f":"IF(X26=0,0,SUM(V26/X26))","v":0},{"$f":"SUM(B26,D26,F26,H26,J26,L26,N26,P26,R26,T26,V26)","v":0}]
["Grade ACZ 9-15 P/T",{"$f":"Query!B39","v":0},{"$f":"IF(X27=0,0,SUM(B27/X27))","v":0},{"$f":"Query!C39","v":0},{"$f":"IF(X27=0,0,SUM(D27/X27))","v":0},{"$f":"Query!D39","v":0},{"$f":"IF(X27=0,0,SUM(F27/X27))","v":0},{"$f":"Query!E39","v":0},{"$f":"IF(X27=0,0,SUM(H27/X27))","v":0},{"$f":"Query!F39","v":0},{"$f":"IF(X27=0,0,SUM(J27/X27))","v":0},{"$f":"Query!G39","v":0},{"$f":"IF(X27=0,0,SUM(L27/X27))","v":0},{"$f":"Query!H39","v":0},{"$f":"IF(X27=0,0,SUM(N27/X27))","v":0},{"$f":"Query!I39","v":0},{"$f":"IF(X27=0,0,SUM(P27/X27))","v":0},{"$f":"Query!J39","v":0},{"$f":"IF(X27=0,0,SUM(R27/X27))","v":0},{"$f":"Query!K39","v":0},{"$f":"IF(X27=0,0,SUM(T27/X27))","v":0},{"$f":"Query!L39","v":0},{"$f":"IF(X27=0,0,SUM(V27/X27))","v":0},{"$f":"SUM(B27,D27,F27,H27,J27,L27,N27,P27,R27,T27,V27)","v":0}]
["Grade ACZ 9-15 Total",{"$f":"SUM(B26:B27)","v":0},{"$f":"IF(X28=0,0,SUM(B28/X28))","v":0},{"$f":"SUM(D26:D27)","v":0},{"$f":"IF(X28=0,0,SUM(D28/X28))","v":0},{"$f":"SUM(F26:F27)","v":0},{"$f":"IF(X28=0,0,SUM(F28/X28))","v":0},{"$f":"SUM(H26:H27)","v":0},{"$f":"IF(X28=0,0,SUM(H28/X28))","v":0},{"$f":"SUM(J26:J27)","v":0},{"$f":"IF(X28=0,0,SUM(J28/X28))","v":0},{"$f":"SUM(L26:L27)","v":0},{"$f":"IF(X28=0,0,SUM(L28/X28))","v":0},{"$f":"SUM(N26:N27)","v":0},{"$f":"IF(X28=0,0,SUM(N28/X28))","v":0},{"$f":"SUM(P26:P27)","v":0},{"$f":"IF(X28=0,0,SUM(P28/X28))","v":0},{"$f":"SUM(R26:R27)","v":0},{"$f":"IF(X28=0,0,SUM(R28/X28))","v":0},{"$f":"SUM(T26:T27)","v":0},{"$f":"IF(X28=0,0,SUM(T28/X28))","v":0},{"$f":"SUM(V26:V27)","v":0},{"$f":"IF(X28=0,0,SUM(V28/X28))","v":0},{"$f":"SUM(X26:X27)","v":0}]
[]
["Other Non Pay & Grading Structure F/T",{"$f":"Query!B41","v":0},{"$f":"IF(X30=0,0,SUM(B30/X30))","v":0},{"$f":"Query!C41","v":2},{"$f":"IF(X30=0,0,SUM(D30/X30))","v":6.4516129032258063E-2},{"$f":"Query!D41","v":0},{"$f":"IF(X30=0,0,SUM(F30/X30))","v":0},{"$f":"Query!E41","v":0},{"$f":"IF(X30=0,0,SUM(H30/X30))","v":0},{"$f":"Query!F41","v":0},{"$f":"IF(X30=0,0,SUM(J30/X30))","v":0},{"$f":"Query!G41","v":0},{"$f":"IF(X30=0,0,SUM(L30/X30))","v":0},{"$f":"Query!H41","v":1},{"$f":"IF(X30=0,0,SUM(N30/X30))","v":3.2258064516129031E-2},{"$f":"Query!I41","v":0},{"$f":"IF(X30=0,0,SUM(P30/X30))","v":0},{"$f":"Query!J41","v":0},{"$f":"IF(X30=0,0,SUM(R30/X30))","v":0},{"$f":"Query!K41","v":4},{"$f":"IF(X30=0,0,SUM(T30/X30))","v":0.12903225806451613},{"$f":"Query!L41","v":24},{"$f":"IF(X30=0,0,SUM(V30/X30))","v":0.77419354838709675},{"$f":"SUM(B30,D30,F30,H30,J30,L30,N30,P30,R30,T30,V30)","v":31}]
["Other Non Pay & Grading Structure P/T",{"$f":"Query!B42","v":0},{"$f":"IF(X31=0,0,SUM(B31/X31))","v":0},{"$f":"Query!C42","v":0},{"$f":"IF(X31=0,0,SUM(D31/X31))","v":0},{"$f":"Query!D42","v":0},{"$f":"IF(X31=0,0,SUM(F31/X31))","v":0},{"$f":"Query!E42","v":0},{"$f":"IF(X31=0,0,SUM(H31/X31))","v":0},{"$f":"Query!F42","v":0},{"$f":"IF(X31=0,0,SUM(J31/X31))","v":0},{"$f":"Query!G42","v":0},{"$f":"IF(X31=0,0,SUM(L31/X31))","v":0},{"$f":"Query!H42","v":0},{"$f":"IF(X31=0,0,SUM(N31/X31))","v":0},{"$f":"Query!I42","v":0},{"$f":"IF(X31=0,0,SUM(P31/X31))","v":0},{"$f":"Query!J42","v":0},{"$f":"IF(X31=0,0,SUM(R31/X31))","v":0},{"$f":"Query!K42","v":0},{"$f":"IF(X31=0,0,SUM(T31/X31))","v":0},{"$f":"Query!L42","v":23},{"$f":"IF(X31=0,0,SUM(V31/X31))","v":1},{"$f":"SUM(B31,D31,F31,H31,J31,L31,N31,P31,R31,T31,V31)","v":23}]
["Other Non P&G Structure Total",{"$f":"SUM(B30:B31)","v":0},0,{"$f":"SUM(D30:D31)","v":2},3.7037037037037035E-2,{"$f":"SUM(F30:F31)","v":0},0,0,0,0,0,0,0,1,1.8518518518518517E-2,{"$f":"SUM(P30:P31)","v":0},0,{"$f":"SUM(R30:R31)","v":0},0,{"$f":"SUM(T30:T31)","v":4},7.407407407407407E-2,{"$f":"SUM(V30:V31)","v":47},0.87037037037037035,{"$f":"SUM(X30:X31)","v":54}]
[]
["Total Workforce F/T",{"$f":"SUM(B6,B10,B14,B18,B22,B26,B30)","v":1},5.9988002399520091E-4,{"$f":"SUM(D6,D10,D14,D18,D22,D26,D30)","v":82},4.9190161967606477E-2,1,5.9988002399520091E-4,0,0,5,2.999400119976005E-3,22,1.3197360527894421E-2,{"$f":"SUM(N6,N10,N14,N18,N22,N26,N30)","v":95},5.6988602279544089E-2,1,5.9988002399520091E-4,{"$f":"SUM(R6,R10,R14,R18,R22,R26,R30)","v":16},9.5980803839232146E-3,{"$f":"SUM(T6,T10,T14,T18,T22,T26,T30)","v":251},0.15056988602279545,{"$f":"SUM(V6,V10,V14,V18,V22,V26,V30)","v":1193},0.71565686862627476,{"$f":"SUM(B34,D34,F34,H34,J34,L34,N34,P34,R34,T34,V34)","v":1667}]
[]
["Total Workforce P/T",{"$f":"SUM(B7,B11,B15,B19,B23,B27,B31)","v":2},2.2075055187637969E-3,{"$f":"SUM(D7,D11,D15,D19,D23,D27,D31)","v":46},5.0772626931567331E-2,1,1.1037527593818985E-3,0,0,2,2.2075055187637969E-3,22,2.4282560706401765E-2,74,8.1677704194260486E-2,1,1.1037527593818985E-3,{"$f":"SUM(R7,R11,R15,R19,R23,R27,R31)","v":5},5.5187637969094927E-3,{"$f":"SUM(T7,T11,T15,T19,T23,T27,T31)","v":177},0.19536423841059603,{"$f":"SUM(V7,V11,V15,V19,V23,V27,V31)","v":576},0.63576158940397354,{"$f":"SUM(B36,D36,F36,H36,J36,L36,N36,P36,R36,T36,V36)","v":906}]
[]
["Total Workforce",{"$f":"SUM(B34,B36)","v":3},1.165954139137194E-3,{"$f":"SUM(D34,D36)","v":128},4.9747376603186941E-2,2,7.7730275942479595E-4,0,0,7,2.7205596579867857E-3,44,1.7100660707345512E-2,{"$f":"SUM(N34,N36)","v":169},6.5682083171395261E-2,2,7.7730275942479595E-4,{"$f":"SUM(R34,R36)","v":21},8.1616789739603571E-3,{"$f":"SUM(T34,T36)","v":428},0.16634279051690634,{"$f":"SUM(V34,V36)","v":1769},0.687524290711232,{"$f":"SUM(X34,X36)","v":2573}]
[]
["Fields update automatically"]
["CBS Complete"]

{"sheet":"Query","index":5,"n_rows":56,"n_cols":14,"rows_kept":56,"cut":false,"hidden":true,"merged":[]}
["Workforce Profile Religion & Belief (2011) Revised"]
[]
["Payroll Area",""]
["ZPersonal Area","0161"]
["Organizational Unit",""]
["Personnel Subarea","]GL Bank["]
["Checkbox for Part-Ti",""]
["ZPrimary Employee ID",""]
["Religion - Rev 2011",""]
["WP Bandings",""]
[]
["Employee Subgroup","]Teachers 35.00 M1[, ]Teachers 35.00 M2[, ]Skillseekers[, ]External Non Payroll[, ]Traineeship Program[, ]Non-Payroll Lunar["]
["Employment Status","Active"]
["Organizational Unit","CSG, ]CE00112561[, ]DR00000029[, ]DR00000035[, ]EP10000000[, ]LS00000500[, ]GL00000001[, ]DR00000145[, ]L000000A00["]
["Personnel Subarea","]ZZZZ["]
["Employment End",">= 30/09/2019"]
["Employment Start","<= 30/09/2019"]
["ZPersonal Area","]9980..9991[, ]0021[, 0161"]
[]
["Contract Type",""]
[]
["","Buddhist","Church of Scotland","Hindu","Jewish","Muslim","Other Christian","Roman Catholic","Sikh","Another Religion","None","Non Disclosed"]
["Grade 1 - 4 F/T",null,44,1,null,1,11,51,null,5,136,652,{"$f":"SUM(B23:L23)","v":901}]
["Grade 1 - 4 P/T",1,38,1,null,2,16,65,1,5,157,463,{"$f":"SUM(B24:L24)","v":749}]
["Grade 1 - 4 Total",1,82,2,null,3,27,116,1,10,293,1115]
["Grade 5 - 7 F/T",1,34,null,null,4,10,36,1,9,99,462,656]
["Grade 5 - 7 P/T",1,8,null,null,null,6,9,null,null,20,87,131]
["Grade 5 - 7 Total",2,42,null,null,4,16,45,1,9,119,549]
["Grade 8 F/T",null,2,null,null,null,1,3,null,1,10,31,48]
["Grade 8 P/T",null,null,null,null,null,null,null,null,null,null,3,3]
["Grade 8 Total",null,2,null,null,null,1,3,null,1,10,34]
["ACZ Grade 8 F/T",null,null,null,null,null,null,null,null,null,null,null,0]
["ACZ Grade 8 P/T",null,null,null,null,null,null,null,null,null,null,null,0]
["ACZ Grade 8 Total"]
["Grade 9 - 15 F/T",null,null,null,null,null,null,4,null,1,2,24,31]
["Grade 9 - 15 P/T",null,null,null,null,null,null,null,null,null,null,null,0]
["Grade 9 - 15 Total",null,null,null,null,null,null,4,null,1,2,24]
["ACZ Grade 9 - 15 F/T",null,null,null,null,null,null,null,null,null,null,null,0]
["ACZ Grade 9 - 15 P/T",null,null,null,null,null,null,null,null,null,null,null,0]
["ACZ Grade 9 - 15 Total"]
["Other (Not Migrated) F/T",0,2,0,null,0,0,1,0,0,4,24,31]
["Other (Not Migrated) P/T",0,0,0,null,0,0,0,0,0,0,23,23]
["Other (Not Migrated) Total",0,2,0,null,0,0,1,0,0,4,47]
["Total Teaching Staff F/T",null,null,null,null,null,null,null,null,null,null,null,0]
["Total Teaching Staff P/T",null,null,null,null,null,null,null,null,null,null,null,0]
["Total Teaching Staff",null,null,null,null,null,null,null,null,null,null,null,0]
["Total Non-Teaching Staff F/T",1,82,1,null,5,22,95,1,16,251,1193,1667]
["Total Non-Teaching Staff P/T",2,46,1,null,2,22,74,1,5,177,576,906]
["Total Non-Teaching Staff",3,128,2,null,7,44,169,2,21,428,1769,2573]
["Total - All WPBR Grades F/T",1,80,1,null,5,22,94,1,16,247,1169,1636]
["Total - All WPBR Grades P/T",2,46,1,null,2,22,74,1,5,177,553,883]
["Total Workforce - All WPBR Grades",3,126,2,null,7,44,168,2,21,424,1722,2519]
["Total Workforce (All) F/T",1,82,1,null,5,22,95,1,16,251,1193,1667]
["Total Workforce (All) P/T",2,46,1,null,2,22,74,1,5,177,576,906]
["Total Workforce (All)",3,128,2,null,7,44,169,2,21,428,1769,2573]
[null,null,null,null,null,null,null,null,null,null,null,null,{"$f":"SUM(M23:M43)","v":2573},"TOTAL"]